Body Name,Transaction Number,Account code Description,Expenses Type,Service Code,Service Area Categorisation,Supplier Name,Date,Amount
Bath & North East Somerset Council,80480203,LM2,Foster Carer Allowances,P02,"Early Years, Children & Youth",REDACTED,01/07/2015,50
Bath & North East Somerset Council,80480203,LM2,Foster Carer Allowances,P02,"Early Years, Children & Youth",REDACTED,01/07/2015,125
Bath & North East Somerset Council,80480203,LM2,Foster Carer Allowances,P02,"Early Years, Children & Youth",REDACTED,01/07/2015,246.44
Bath & North East Somerset Council,80480203,LM2,Foster Carer Allowances,P02,"Early Years, Children & Youth",REDACTED,01/07/2015,492.88
Bath & North East Somerset Council,80480306,LM8,Home Care,P03,Wellbeing,AMBER HOMECARE LTD,01/07/2015,26.91
Bath & North East Somerset Council,80480306,LM8,Home Care,P03,Wellbeing,AMBER HOMECARE LTD,01/07/2015,347.66
Bath & North East Somerset Council,80480306,LM8,Home Care,P03,Wellbeing,AMBER HOMECARE LTD,01/07/2015,347.66
Bath & North East Somerset Council,80480306,LM8,Home Care,P03,Wellbeing,AMBER HOMECARE LTD,01/07/2015,347.66
Bath & North East Somerset Council,80480306,LM8,Home Care,P03,Wellbeing,AMBER HOMECARE LTD,01/07/2015,347.66
Bath & North East Somerset Council,80480307,LM8,Home Care,P03,Wellbeing,AMBER HOMECARE LTD,01/07/2015,347.66
Bath & North East Somerset Council,80480307,LM8,Home Care,P03,Wellbeing,AMBER HOMECARE LTD,01/07/2015,347.66
Bath & North East Somerset Council,80480307,LM8,Home Care,P03,Wellbeing,AMBER HOMECARE LTD,01/07/2015,347.66
Bath & North East Somerset Council,80480307,LM8,Home Care,P03,Wellbeing,AMBER HOMECARE LTD,01/07/2015,384.8
Bath & North East Somerset Council,10781297,LH2,Advertising,P02,"Early Years, Children & Youth",ZEST MEDIA SOUTH WEST LTD,01/07/2015,0.92
Bath & North East Somerset Council,80480237,LM2,Foster Carer Allowances,P02,"Early Years, Children & Youth",REDACTED,01/07/2015,100
Bath & North East Somerset Council,80480237,LM2,Foster Carer Allowances,P02,"Early Years, Children & Youth",REDACTED,01/07/2015,250
Bath & North East Somerset Council,80480237,LM2,Foster Carer Allowances,P02,"Early Years, Children & Youth",REDACTED,01/07/2015,405.16
Bath & North East Somerset Council,80480237,LM2,Foster Carer Allowances,P02,"Early Years, Children & Youth",REDACTED,01/07/2015,405.16
Bath & North East Somerset Council,10781007,KE2,Payment to Parents/Students,P02,"Early Years, Children & Youth",REDACTED,01/07/2015,1008
Bath & North East Somerset Council,10781127,LV2,Contributions to Organisations,Z98,West of England Partnership,BLUE ORB RECRUITMENT LYD,01/07/2015,12769.39
Bath & North East Somerset Council,80480319,LM8,Home Care,P03,Wellbeing,BLUEBIRD CARE (BATH),01/07/2015,96.51
Bath & North East Somerset Council,80480320,LM8,Home Care,P03,Wellbeing,BLUEBIRD CARE (BATH),01/07/2015,155.7
Bath & North East Somerset Council,80480322,LM8,Home Care,P03,Wellbeing,BLUEBIRD CARE (BATH),01/07/2015,182.75
Bath & North East Somerset Council,80480322,LM8,Home Care,P03,Wellbeing,BLUEBIRD CARE (BATH),01/07/2015,467.1
Bath & North East Somerset Council,80480322,LM8,Home Care,P03,Wellbeing,BLUEBIRD CARE (BATH),01/07/2015,467.1
Bath & North East Somerset Council,80480322,LM8,Home Care,P03,Wellbeing,BLUEBIRD CARE (BATH),01/07/2015,467.1
Bath & North East Somerset Council,80480322,LM8,Home Care,P03,Wellbeing,BLUEBIRD CARE (BATH),01/07/2015,467.1
Bath & North East Somerset Council,80480319,LM8,Home Care,P03,Wellbeing,BLUEBIRD CARE (BATH),01/07/2015,622.8
Bath & North East Somerset Council,80480319,LM8,Home Care,P03,Wellbeing,BLUEBIRD CARE (BATH),01/07/2015,622.8
Bath & North East Somerset Council,80480319,LM8,Home Care,P03,Wellbeing,BLUEBIRD CARE (BATH),01/07/2015,934.2
Bath & North East Somerset Council,80480319,LM8,Home Care,P03,Wellbeing,BLUEBIRD CARE (BATH),01/07/2015,934.2
Bath & North East Somerset Council,80480321,LM8,Home Care,P03,Wellbeing,BLUEBIRD CARE (BATH),01/07/2015,950
Bath & North East Somerset Council,80480321,LM8,Home Care,P03,Wellbeing,BLUEBIRD CARE (BATH),01/07/2015,1089.9
Bath & North East Somerset Council,80480319,LM8,Home Care,P03,Wellbeing,BLUEBIRD CARE (BATH),01/07/2015,1960
Bath & North East Somerset Council,80480320,LM8,Home Care,P03,Wellbeing,BLUEBIRD CARE (BATH),01/07/2015,2275
Bath & North East Somerset Council,80480329,LM8,Home Care,P03,Wellbeing,BUTTERFLY HOME HELP,01/07/2015,55.8
Bath & North East Somerset Council,80480328,LM8,Home Care,P03,Wellbeing,BUTTERFLY HOME HELP,01/07/2015,260
Bath & North East Somerset Council,80480327,LM8,Home Care,P03,Wellbeing,BUTTERFLY HOME HELP,01/07/2015,351
Bath & North East Somerset Council,80480327,LM8,Home Care,P03,Wellbeing,BUTTERFLY HOME HELP,01/07/2015,390
Bath & North East Somerset Council,80480328,LM8,Home Care,P03,Wellbeing,BUTTERFLY HOME HELP,01/07/2015,520
Bath & North East Somerset Council,80480327,LM8,Home Care,P03,Wellbeing,BUTTERFLY HOME HELP,01/07/2015,650
Bath & North East Somerset Council,80480328,LM8,Home Care,P03,Wellbeing,BUTTERFLY HOME HELP,01/07/2015,702
Bath & North East Somerset Council,80480327,LM8,Home Care,P03,Wellbeing,BUTTERFLY HOME HELP,01/07/2015,843.38
Bath & North East Somerset Council,80480328,LM8,Home Care,P03,Wellbeing,BUTTERFLY HOME HELP,01/07/2015,877.5
Bath & North East Somerset Council,80480330,LM8,Home Care,P03,Wellbeing,BUTTERFLY HOME HELP,01/07/2015,884.77
Bath & North East Somerset Council,80480330,LM8,Home Care,P03,Wellbeing,BUTTERFLY HOME HELP,01/07/2015,910
Bath & North East Somerset Council,80480318,LM8,Home Care,P03,Wellbeing,BUTTERFLY HOME HELP,01/07/2015,1228.5
Bath & North East Somerset Council,80480328,LM8,Home Care,P03,Wellbeing,BUTTERFLY HOME HELP,01/07/2015,1228.5
Bath & North East Somerset Council,80480329,LM8,Home Care,P03,Wellbeing,BUTTERFLY HOME HELP,01/07/2015,1228.5
Bath & North East Somerset Council,80480329,LM8,Home Care,P03,Wellbeing,BUTTERFLY HOME HELP,01/07/2015,1228.5
Bath & North East Somerset Council,80480329,LM8,Home Care,P03,Wellbeing,BUTTERFLY HOME HELP,01/07/2015,1228.5
Bath & North East Somerset Council,80480330,LM8,Home Care,P03,Wellbeing,BUTTERFLY HOME HELP,01/07/2015,1228.5
Bath & North East Somerset Council,80480327,LM8,Home Care,P03,Wellbeing,BUTTERFLY HOME HELP,01/07/2015,1298.82
Bath & North East Somerset Council,80480175,KE3,Transport & Travel,P02,"Early Years, Children & Youth",REDACTED,01/07/2015,204.75
Bath & North East Somerset Council,80480175,LM2,Foster Carer Allowances,P02,"Early Years, Children & Youth",REDACTED,01/07/2015,405.16
Bath & North East Somerset Council,80480175,LM2,Foster Carer Allowances,P02,"Early Years, Children & Youth",REDACTED,01/07/2015,762
Bath & North East Somerset Council,80480184,LM2,Foster Carer Allowances,P02,"Early Years, Children & Youth",REDACTED,01/07/2015,100
Bath & North East Somerset Council,80480184,LM2,Foster Carer Allowances,P02,"Early Years, Children & Youth",REDACTED,01/07/2015,250
Bath & North East Somerset Council,80480184,LM2,Foster Carer Allowances,P02,"Early Years, Children & Youth",REDACTED,01/07/2015,492.88
Bath & North East Somerset Council,80480184,LM2,Foster Carer Allowances,P02,"Early Years, Children & Youth",REDACTED,01/07/2015,492.88
Bath & North East Somerset Council,10781126,LV2,Contributions to Organisations,Z98,West of England Partnership,CLARITUM LTD,01/07/2015,2277.74
Bath & North East Somerset Council,80479096,LA7,Purchases for Resale,P06,Sustainable Development,REDACTED,01/07/2015,10
Bath & North East Somerset Council,80479096,LA7,Purchases for Resale,P06,Sustainable Development,REDACTED,01/07/2015,827.5
Bath & North East Somerset Council,80480151,LM2,Foster Carer Allowances,P02,"Early Years, Children & Youth",REDACTED,01/07/2015,100
Bath & North East Somerset Council,80480151,LM2,Foster Carer Allowances,P02,"Early Years, Children & Youth",REDACTED,01/07/2015,285.72
Bath & North East Somerset Council,80480151,LM2,Foster Carer Allowances,P02,"Early Years, Children & Youth",REDACTED,01/07/2015,285.72
Bath & North East Somerset Council,80480186,LM2,Foster Carer Allowances,P02,"Early Years, Children & Youth",REDACTED,01/07/2015,100
Bath & North East Somerset Council,80480186,LM2,Foster Carer Allowances,P02,"Early Years, Children & Youth",REDACTED,01/07/2015,250
Bath & North East Somerset Council,80480186,LM2,Foster Carer Allowances,P02,"Early Years, Children & Youth",REDACTED,01/07/2015,325.46
Bath & North East Somerset Council,80480186,LM2,Foster Carer Allowances,P02,"Early Years, Children & Youth",REDACTED,01/07/2015,492.88
Bath & North East Somerset Council,80480186,LM2,Foster Carer Allowances,P02,"Early Years, Children & Youth",REDACTED,01/07/2015,492.88
Bath & North East Somerset Council,80480186,LM2,Foster Carer Allowances,P02,"Early Years, Children & Youth",REDACTED,01/07/2015,822
Bath & North East Somerset Council,80480180,LM2,Foster Carer Allowances,P02,"Early Years, Children & Youth",REDACTED,01/07/2015,100
Bath & North East Somerset Council,80480180,LM2,Foster Carer Allowances,P02,"Early Years, Children & Youth",REDACTED,01/07/2015,250
Bath & North East Somerset Council,80480180,LM2,Foster Carer Allowances,P02,"Early Years, Children & Youth",REDACTED,01/07/2015,405.16
Bath & North East Somerset Council,80480180,LM2,Foster Carer Allowances,P02,"Early Years, Children & Youth",REDACTED,01/07/2015,405.16
Bath & North East Somerset Council,10781155,LV2,Contributions to Organisations,Z98,West of England Partnership,ETM RECYCLING LTD,01/07/2015,4000
Bath & North East Somerset Council,80480205,LM2,Foster Carer Allowances,P02,"Early Years, Children & Youth",REDACTED,01/07/2015,100
Bath & North East Somerset Council,80480205,LM2,Foster Carer Allowances,P02,"Early Years, Children & Youth",REDACTED,01/07/2015,405.16
Bath & North East Somerset Council,80480205,LM2,Foster Carer Allowances,P02,"Early Years, Children & Youth",REDACTED,01/07/2015,405.16
Bath & North East Somerset Council,80480205,LL2,Personal Needs of Clients,P02,"Early Years, Children & Youth",REDACTED,01/07/2015,592.88
Bath & North East Somerset Council,10781268,LF2,Photocopying,P05,Neighbourhoods,CANON (UK) LTD,01/07/2015,98.88
Bath & North East Somerset Council,10781274,LK2,Licences (non IT),P02,"Early Years, Children & Youth",PERFORMING RIGHT SOCIETY LTD,01/07/2015,102.96
Bath & North East Somerset Council,10781274,LK2,Licences (non IT),P02,"Early Years, Children & Youth",PERFORMING RIGHT SOCIETY LTD,01/07/2015,102.96
Bath & North East Somerset Council,80480078,LL4,Direct Payments,P03,Wellbeing,REDACTED,01/07/2015,993.53
Bath & North East Somerset Council,80480078,LL4,Direct Payments,P03,Wellbeing,REDACTED,01/07/2015,993.53
Bath & North East Somerset Council,10781157,LV2,Contributions to Organisations,Z98,West of England Partnership,HIGHZONE LTD T/A HIGH ADVENTURES,01/07/2015,2769.99
Bath & North East Somerset Council,80480223,LM2,Foster Carer Allowances,P02,"Early Years, Children & Youth",REDACTED,01/07/2015,325.46
Bath & North East Somerset Council,80480223,LM2,Foster Carer Allowances,P02,"Early Years, Children & Youth",REDACTED,01/07/2015,405.16
Bath & North East Somerset Council,80480223,LM2,Foster Carer Allowances,P02,"Early Years, Children & Youth",REDACTED,01/07/2015,802
Bath & North East Somerset Council,80480223,LM2,Foster Carer Allowances,P02,"Early Years, Children & Youth",REDACTED,01/07/2015,802
Bath & North East Somerset Council,80480155,LL5,Adoption Allowances,P02,"Early Years, Children & Youth",REDACTED,01/07/2015,269.9
Bath & North East Somerset Council,80480155,LL5,Adoption Allowances,P02,"Early Years, Children & Youth",REDACTED,01/07/2015,269.92
Bath & North East Somerset Council,80480177,LM2,Foster Carer Allowances,P02,"Early Years, Children & Youth",REDACTED,01/07/2015,405.16
Bath & North East Somerset Council,80480177,LM2,Foster Carer Allowances,P02,"Early Years, Children & Youth",REDACTED,01/07/2015,405.16
Bath & North East Somerset Council,80480177,LM2,Foster Carer Allowances,P02,"Early Years, Children & Youth",REDACTED,01/07/2015,807
Bath & North East Somerset Council,80480177,LM2,Foster Carer Allowances,P02,"Early Years, Children & Youth",REDACTED,01/07/2015,807
Bath & North East Somerset Council,80480161,LM2,Foster Carer Allowances,P02,"Early Years, Children & Youth",REDACTED,01/07/2015,100
Bath & North East Somerset Council,80480161,LM2,Foster Carer Allowances,P02,"Early Years, Children & Youth",REDACTED,01/07/2015,100
Bath & North East Somerset Council,80480161,LM2,Foster Carer Allowances,P02,"Early Years, Children & Youth",REDACTED,01/07/2015,250
Bath & North East Somerset Council,80480161,LM2,Foster Carer Allowances,P02,"Early Years, Children & Youth",REDACTED,01/07/2015,250
Bath & North East Somerset Council,80480161,LM2,Foster Carer Allowances,P02,"Early Years, Children & Youth",REDACTED,01/07/2015,492.88
Bath & North East Somerset Council,80480161,LM2,Foster Carer Allowances,P02,"Early Years, Children & Youth",REDACTED,01/07/2015,492.88
Bath & North East Somerset Council,80480161,LM2,Foster Carer Allowances,P02,"Early Years, Children & Youth",REDACTED,01/07/2015,492.88
Bath & North East Somerset Council,80480161,LM2,Foster Carer Allowances,P02,"Early Years, Children & Youth",REDACTED,01/07/2015,492.88
Bath & North East Somerset Council,80480245,LL6,Needs & Services,P02,"Early Years, Children & Youth",REDACTED,01/07/2015,60
Bath & North East Somerset Council,80480245,LM2,Foster Carer Allowances,P02,"Early Years, Children & Youth",REDACTED,01/07/2015,492.88
Bath & North East Somerset Council,80480245,LM2,Foster Carer Allowances,P02,"Early Years, Children & Youth",REDACTED,01/07/2015,492.88
Bath & North East Somerset Council,80480245,LL2,Personal Needs of Clients,P02,"Early Years, Children & Youth",REDACTED,01/07/2015,492.88
Bath & North East Somerset Council,80480181,LM2,Foster Carer Allowances,P02,"Early Years, Children & Youth",REDACTED,01/07/2015,100
Bath & North East Somerset Council,80480181,LM2,Foster Carer Allowances,P02,"Early Years, Children & Youth",REDACTED,01/07/2015,100
Bath & North East Somerset Council,80480181,LM2,Foster Carer Allowances,P02,"Early Years, Children & Youth",REDACTED,01/07/2015,285.72
Bath & North East Somerset Council,80480181,LM2,Foster Carer Allowances,P02,"Early Years, Children & Youth",REDACTED,01/07/2015,285.72
Bath & North East Somerset Council,80480181,LM2,Foster Carer Allowances,P02,"Early Years, Children & Youth",REDACTED,01/07/2015,285.72
Bath & North East Somerset Council,80480181,LM2,Foster Carer Allowances,P02,"Early Years, Children & Youth",REDACTED,01/07/2015,285.72
Bath & North East Somerset Council,80480215,LM2,Foster Carer Allowances,P02,"Early Years, Children & Youth",REDACTED,01/07/2015,100
Bath & North East Somerset Council,80480215,LM2,Foster Carer Allowances,P02,"Early Years, Children & Youth",REDACTED,01/07/2015,100
Bath & North East Somerset Council,80480215,LM2,Foster Carer Allowances,P02,"Early Years, Children & Youth",REDACTED,01/07/2015,162.73
Bath & North East Somerset Council,80480215,LM2,Foster Carer Allowances,P02,"Early Years, Children & Youth",REDACTED,01/07/2015,325.46
Bath & North East Somerset Council,80480215,LM2,Foster Carer Allowances,P02,"Early Years, Children & Youth",REDACTED,01/07/2015,325.46
Bath & North East Somerset Council,80480215,LM2,Foster Carer Allowances,P02,"Early Years, Children & Youth",REDACTED,01/07/2015,405.16
Bath & North East Somerset Council,80480215,LM2,Foster Carer Allowances,P02,"Early Years, Children & Youth",REDACTED,01/07/2015,405.16
Bath & North East Somerset Council,80480191,LM2,Foster Carer Allowances,P02,"Early Years, Children & Youth",REDACTED,01/07/2015,325.46
Bath & North East Somerset Council,80480191,LM2,Foster Carer Allowances,P02,"Early Years, Children & Youth",REDACTED,01/07/2015,325.46
Bath & North East Somerset Council,80480191,LM2,Foster Carer Allowances,P02,"Early Years, Children & Youth",REDACTED,01/07/2015,325.46
Bath & North East Somerset Council,80480191,LM2,Foster Carer Allowances,P02,"Early Years, Children & Youth",REDACTED,01/07/2015,830
Bath & North East Somerset Council,80480191,LM2,Foster Carer Allowances,P02,"Early Years, Children & Youth",REDACTED,01/07/2015,830
Bath & North East Somerset Council,80480191,LM2,Foster Carer Allowances,P02,"Early Years, Children & Youth",REDACTED,01/07/2015,830
Bath & North East Somerset Council,80480157,LM2,Foster Carer Allowances,P02,"Early Years, Children & Youth",REDACTED,01/07/2015,352.06
Bath & North East Somerset Council,80480157,LM2,Foster Carer Allowances,P02,"Early Years, Children & Youth",REDACTED,01/07/2015,1576.89
Bath & North East Somerset Council,80480268,LM8,Home Care,P03,Wellbeing,KUMARI HOMECARE SERVICE,01/07/2015,25.62
Bath & North East Somerset Council,80480279,LM8,Home Care,P03,Wellbeing,KUMARI HOMECARE SERVICE,01/07/2015,120.48
Bath & North East Somerset Council,80480268,LM8,Home Care,P03,Wellbeing,KUMARI HOMECARE SERVICE,01/07/2015,615.02
Bath & North East Somerset Council,80480279,LM8,Home Care,P03,Wellbeing,KUMARI HOMECARE SERVICE,01/07/2015,615.02
Bath & North East Somerset Council,80480290,LM8,Home Care,P03,Wellbeing,KUMARI HOMECARE SERVICE,01/07/2015,659.75
Bath & North East Somerset Council,80480301,LM8,Home Care,P03,Wellbeing,KUMARI HOMECARE SERVICE,01/07/2015,659.75
Bath & North East Somerset Council,10777620,LF4,Stationery,P06,Sustainable Development,LYRECO UK LIMITED,01/07/2015,421.82
Bath & North East Somerset Council,10781268,LF2,Photocopying,P05,Neighbourhoods,CANON (UK) LTD,01/07/2015,140.54
Bath & North East Somerset Council,10781268,LF2,Photocopying,P05,Neighbourhoods,CANON (UK) LTD,01/07/2015,140.54
Bath & North East Somerset Council,80480249,LM2,Foster Carer Allowances,P02,"Early Years, Children & Youth",REDACTED,01/07/2015,100
Bath & North East Somerset Council,10781274,LK2,Licences (non IT),P02,"Early Years, Children & Youth",PERFORMING RIGHT SOCIETY LTD,01/07/2015,143.32
Bath & North East Somerset Council,80480249,LM2,Foster Carer Allowances,P02,"Early Years, Children & Youth",REDACTED,01/07/2015,405.16
Bath & North East Somerset Council,80480249,LM2,Foster Carer Allowances,P02,"Early Years, Children & Youth",REDACTED,01/07/2015,405.16
Bath & North East Somerset Council,80480201,LM2,Foster Carer Allowances,P02,"Early Years, Children & Youth",REDACTED,01/07/2015,325.46
Bath & North East Somerset Council,80480201,LM2,Foster Carer Allowances,P02,"Early Years, Children & Youth",REDACTED,01/07/2015,405.16
Bath & North East Somerset Council,80480201,LM2,Foster Carer Allowances,P02,"Early Years, Children & Youth",REDACTED,01/07/2015,837
Bath & North East Somerset Council,80480201,LM2,Foster Carer Allowances,P02,"Early Years, Children & Youth",REDACTED,01/07/2015,837
Bath & North East Somerset Council,80480236,LM2,Foster Carer Allowances,P02,"Early Years, Children & Youth",REDACTED,01/07/2015,492.88
Bath & North East Somerset Council,80480236,LM2,Foster Carer Allowances,P02,"Early Years, Children & Youth",REDACTED,01/07/2015,492.88
Bath & North East Somerset Council,80480163,LM2,Foster Carer Allowances,P02,"Early Years, Children & Youth",REDACTED,01/07/2015,100
Bath & North East Somerset Council,80480163,LM2,Foster Carer Allowances,P02,"Early Years, Children & Youth",REDACTED,01/07/2015,405.16
Bath & North East Somerset Council,80480163,LM2,Foster Carer Allowances,P02,"Early Years, Children & Youth",REDACTED,01/07/2015,405.16
Bath & North East Somerset Council,80480243,LM2,Foster Carer Allowances,P02,"Early Years, Children & Youth",REDACTED,01/07/2015,405.16
Bath & North East Somerset Council,80480243,LM2,Foster Carer Allowances,P02,"Early Years, Children & Youth",REDACTED,01/07/2015,405.16
Bath & North East Somerset Council,80480166,LM2,Foster Carer Allowances,P02,"Early Years, Children & Youth",REDACTED,01/07/2015,100
Bath & North East Somerset Council,80480166,LM2,Foster Carer Allowances,P02,"Early Years, Children & Youth",REDACTED,01/07/2015,100
Bath & North East Somerset Council,80480166,LM2,Foster Carer Allowances,P02,"Early Years, Children & Youth",REDACTED,01/07/2015,250
Bath & North East Somerset Council,80480166,LM2,Foster Carer Allowances,P02,"Early Years, Children & Youth",REDACTED,01/07/2015,250
Bath & North East Somerset Council,80480166,LM2,Foster Carer Allowances,P02,"Early Years, Children & Youth",REDACTED,01/07/2015,405.16
Bath & North East Somerset Council,80480166,LM2,Foster Carer Allowances,P02,"Early Years, Children & Youth",REDACTED,01/07/2015,405.16
Bath & North East Somerset Council,80480166,LM2,Foster Carer Allowances,P02,"Early Years, Children & Youth",REDACTED,01/07/2015,492.88
Bath & North East Somerset Council,80480166,LM2,Foster Carer Allowances,P02,"Early Years, Children & Youth",REDACTED,01/07/2015,492.88
Bath & North East Somerset Council,80480244,LM2,Foster Carer Allowances,P02,"Early Years, Children & Youth",REDACTED,01/07/2015,50
Bath & North East Somerset Council,80480244,LM2,Foster Carer Allowances,P02,"Early Years, Children & Youth",REDACTED,01/07/2015,125
Bath & North East Somerset Council,80480244,LM2,Foster Carer Allowances,P02,"Early Years, Children & Youth",REDACTED,01/07/2015,202.58
Bath & North East Somerset Council,80480244,LM2,Foster Carer Allowances,P02,"Early Years, Children & Youth",REDACTED,01/07/2015,202.58
Bath & North East Somerset Council,80480244,LM2,Foster Carer Allowances,P02,"Early Years, Children & Youth",REDACTED,01/07/2015,376
Bath & North East Somerset Council,80480244,LM2,Foster Carer Allowances,P02,"Early Years, Children & Youth",REDACTED,01/07/2015,405.16
Bath & North East Somerset Council,80480244,LM2,Foster Carer Allowances,P02,"Early Years, Children & Youth",REDACTED,01/07/2015,405.16
Bath & North East Somerset Council,80480187,LM2,Foster Carer Allowances,P02,"Early Years, Children & Youth",REDACTED,01/07/2015,405.16
Bath & North East Somerset Council,80480187,LL2,Personal Needs of Clients,P02,"Early Years, Children & Youth",REDACTED,01/07/2015,560.76
Bath & North East Somerset Council,80480187,LM2,Foster Carer Allowances,P02,"Early Years, Children & Youth",REDACTED,01/07/2015,834
Bath & North East Somerset Council,80480220,LM2,Foster Carer Allowances,P02,"Early Years, Children & Youth",REDACTED,01/07/2015,100
Bath & North East Somerset Council,80480220,LM2,Foster Carer Allowances,P02,"Early Years, Children & Youth",REDACTED,01/07/2015,250
Bath & North East Somerset Council,80480220,LM2,Foster Carer Allowances,P02,"Early Years, Children & Youth",REDACTED,01/07/2015,405.16
Bath & North East Somerset Council,80480220,LM2,Foster Carer Allowances,P02,"Early Years, Children & Youth",REDACTED,01/07/2015,405.16
Bath & North East Somerset Council,80480174,LL5,Adoption Allowances,P02,"Early Years, Children & Youth",REDACTED,01/07/2015,264.8
Bath & North East Somerset Council,80480174,LL5,Adoption Allowances,P02,"Early Years, Children & Youth",REDACTED,01/07/2015,264.82
Bath & North East Somerset Council,80480207,LM2,Foster Carer Allowances,P02,"Early Years, Children & Youth",REDACTED,01/07/2015,100
Bath & North East Somerset Council,80480207,LM2,Foster Carer Allowances,P02,"Early Years, Children & Youth",REDACTED,01/07/2015,405.16
Bath & North East Somerset Council,80480207,LM2,Foster Carer Allowances,P02,"Early Years, Children & Youth",REDACTED,01/07/2015,405.16
Bath & North East Somerset Council,80480172,LL5,Adoption Allowances,P02,"Early Years, Children & Youth",REDACTED,01/07/2015,396.84
Bath & North East Somerset Council,80480172,LL5,Adoption Allowances,P02,"Early Years, Children & Youth",REDACTED,01/07/2015,410.74
Bath & North East Somerset Council,80480173,LL5,Adoption Allowances,P02,"Early Years, Children & Youth",REDACTED,01/07/2015,257.9
Bath & North East Somerset Council,80480173,LL5,Adoption Allowances,P02,"Early Years, Children & Youth",REDACTED,01/07/2015,257.9
Bath & North East Somerset Council,80480197,LM2,Foster Carer Allowances,P02,"Early Years, Children & Youth",REDACTED,01/07/2015,100
Bath & North East Somerset Council,80480197,LM2,Foster Carer Allowances,P02,"Early Years, Children & Youth",REDACTED,01/07/2015,100
Bath & North East Somerset Council,80480197,LM2,Foster Carer Allowances,P02,"Early Years, Children & Youth",REDACTED,01/07/2015,325.46
Bath & North East Somerset Council,80480197,LM2,Foster Carer Allowances,P02,"Early Years, Children & Youth",REDACTED,01/07/2015,325.46
Bath & North East Somerset Council,80480197,LM2,Foster Carer Allowances,P02,"Early Years, Children & Youth",REDACTED,01/07/2015,325.46
Bath & North East Somerset Council,80480197,LM2,Foster Carer Allowances,P02,"Early Years, Children & Youth",REDACTED,01/07/2015,325.46
Bath & North East Somerset Council,80480239,LM2,Foster Carer Allowances,P02,"Early Years, Children & Youth",REDACTED,01/07/2015,100
Bath & North East Somerset Council,80480239,LM2,Foster Carer Allowances,P02,"Early Years, Children & Youth",REDACTED,01/07/2015,250
Bath & North East Somerset Council,80480239,LM2,Foster Carer Allowances,P02,"Early Years, Children & Youth",REDACTED,01/07/2015,405.16
Bath & North East Somerset Council,80480239,LM2,Foster Carer Allowances,P02,"Early Years, Children & Youth",REDACTED,01/07/2015,405.16
Bath & North East Somerset Council,80480176,LM2,Foster Carer Allowances,P02,"Early Years, Children & Youth",REDACTED,01/07/2015,100
Bath & North East Somerset Council,80480176,LM2,Foster Carer Allowances,P02,"Early Years, Children & Youth",REDACTED,01/07/2015,250
Bath & North East Somerset Council,80480176,LM2,Foster Carer Allowances,P02,"Early Years, Children & Youth",REDACTED,01/07/2015,492.88
Bath & North East Somerset Council,80480176,LM2,Foster Carer Allowances,P02,"Early Years, Children & Youth",REDACTED,01/07/2015,492.88
Bath & North East Somerset Council,80480182,LM2,Foster Carer Allowances,P02,"Early Years, Children & Youth",REDACTED,01/07/2015,100
Bath & North East Somerset Council,80480182,LM2,Foster Carer Allowances,P02,"Early Years, Children & Youth",REDACTED,01/07/2015,250
Bath & North East Somerset Council,80480182,LM2,Foster Carer Allowances,P02,"Early Years, Children & Youth",REDACTED,01/07/2015,405.16
Bath & North East Somerset Council,80480182,LM2,Foster Carer Allowances,P02,"Early Years, Children & Youth",REDACTED,01/07/2015,492.88
Bath & North East Somerset Council,80480182,LM2,Foster Carer Allowances,P02,"Early Years, Children & Youth",REDACTED,01/07/2015,492.88
Bath & North East Somerset Council,80480182,LM2,Foster Carer Allowances,P02,"Early Years, Children & Youth",REDACTED,01/07/2015,807
Bath & North East Somerset Council,80480179,LM2,Foster Carer Allowances,P02,"Early Years, Children & Youth",REDACTED,01/07/2015,100
Bath & North East Somerset Council,80480179,LM2,Foster Carer Allowances,P02,"Early Years, Children & Youth",REDACTED,01/07/2015,250
Bath & North East Somerset Council,80480179,LM2,Foster Carer Allowances,P02,"Early Years, Children & Youth",REDACTED,01/07/2015,405.16
Bath & North East Somerset Council,80480179,LM2,Foster Carer Allowances,P02,"Early Years, Children & Youth",REDACTED,01/07/2015,492.88
Bath & North East Somerset Council,80480179,LM2,Foster Carer Allowances,P02,"Early Years, Children & Youth",REDACTED,01/07/2015,492.88
Bath & North East Somerset Council,80480179,LM2,Foster Carer Allowances,P02,"Early Years, Children & Youth",REDACTED,01/07/2015,791
Bath & North East Somerset Council,10781268,LF2,Photocopying,P05,Neighbourhoods,CANON (UK) LTD,01/07/2015,307.32
Bath & North East Somerset Council,80480188,LM2,Foster Carer Allowances,P02,"Early Years, Children & Youth",REDACTED,01/07/2015,100
Bath & North East Somerset Council,80480188,LM2,Foster Carer Allowances,P02,"Early Years, Children & Youth",REDACTED,01/07/2015,100
Bath & North East Somerset Council,80480188,LM2,Foster Carer Allowances,P02,"Early Years, Children & Youth",REDACTED,01/07/2015,100
Bath & North East Somerset Council,80480188,LM2,Foster Carer Allowances,P02,"Early Years, Children & Youth",REDACTED,01/07/2015,140
Bath & North East Somerset Council,80480188,LM2,Foster Carer Allowances,P02,"Early Years, Children & Youth",REDACTED,01/07/2015,250
Bath & North East Somerset Council,80480188,LM2,Foster Carer Allowances,P02,"Early Years, Children & Youth",REDACTED,01/07/2015,285.72
Bath & North East Somerset Council,80480188,LM2,Foster Carer Allowances,P02,"Early Years, Children & Youth",REDACTED,01/07/2015,285.72
Bath & North East Somerset Council,80480188,LM2,Foster Carer Allowances,P02,"Early Years, Children & Youth",REDACTED,01/07/2015,285.72
Bath & North East Somerset Council,80480188,LM2,Foster Carer Allowances,P02,"Early Years, Children & Youth",REDACTED,01/07/2015,285.72
Bath & North East Somerset Council,80480188,LM2,Foster Carer Allowances,P02,"Early Years, Children & Youth",REDACTED,01/07/2015,492.88
Bath & North East Somerset Council,80480188,LM2,Foster Carer Allowances,P02,"Early Years, Children & Youth",REDACTED,01/07/2015,492.88
Bath & North East Somerset Council,80480158,LM2,Foster Carer Allowances,P02,"Early Years, Children & Youth",REDACTED,01/07/2015,100
Bath & North East Somerset Council,80480158,LM2,Foster Carer Allowances,P02,"Early Years, Children & Youth",REDACTED,01/07/2015,100
Bath & North East Somerset Council,80480158,LM2,Foster Carer Allowances,P02,"Early Years, Children & Youth",REDACTED,01/07/2015,492.88
Bath & North East Somerset Council,80480158,LM2,Foster Carer Allowances,P02,"Early Years, Children & Youth",REDACTED,01/07/2015,492.88
Bath & North East Somerset Council,80480158,LM2,Foster Carer Allowances,P02,"Early Years, Children & Youth",REDACTED,01/07/2015,492.88
Bath & North East Somerset Council,80480158,LM2,Foster Carer Allowances,P02,"Early Years, Children & Youth",REDACTED,01/07/2015,492.88
Bath & North East Somerset Council,80480208,LM2,Foster Carer Allowances,P02,"Early Years, Children & Youth",REDACTED,01/07/2015,100
Bath & North East Somerset Council,80480208,LM2,Foster Carer Allowances,P02,"Early Years, Children & Youth",REDACTED,01/07/2015,285.72
Bath & North East Somerset Council,80480208,LM2,Foster Carer Allowances,P02,"Early Years, Children & Youth",REDACTED,01/07/2015,285.72
Bath & North East Somerset Council,80480194,LM4,Respite Care,P02,"Early Years, Children & Youth",REDACTED,01/07/2015,172.93
Bath & North East Somerset Council,80480194,LM4,Respite Care,P02,"Early Years, Children & Youth",REDACTED,01/07/2015,172.93
Bath & North East Somerset Council,80480194,LM2,Foster Carer Allowances,P02,"Early Years, Children & Youth",REDACTED,01/07/2015,405.16
Bath & North East Somerset Council,80480194,LL2,Personal Needs of Clients,P02,"Early Years, Children & Youth",REDACTED,01/07/2015,426.6
Bath & North East Somerset Council,80480194,LM2,Foster Carer Allowances,P02,"Early Years, Children & Youth",REDACTED,01/07/2015,807
Bath & North East Somerset Council,80480336,PG1,Rent Allowances,P07,Community Resources,REDACTED,01/07/2015,595.48
Bath & North East Somerset Council,80480217,LM2,Foster Carer Allowances,P02,"Early Years, Children & Youth",REDACTED,01/07/2015,50
Bath & North East Somerset Council,80480217,LM2,Foster Carer Allowances,P02,"Early Years, Children & Youth",REDACTED,01/07/2015,125
Bath & North East Somerset Council,80480217,LM2,Foster Carer Allowances,P02,"Early Years, Children & Youth",REDACTED,01/07/2015,246.44
Bath & North East Somerset Council,80480217,LM2,Foster Carer Allowances,P02,"Early Years, Children & Youth",REDACTED,01/07/2015,492.88
Bath & North East Somerset Council,80480222,LM2,Foster Carer Allowances,P02,"Early Years, Children & Youth",REDACTED,01/07/2015,100
Bath & North East Somerset Council,80480222,LM2,Foster Carer Allowances,P02,"Early Years, Children & Youth",REDACTED,01/07/2015,100
Bath & North East Somerset Council,80480222,LM2,Foster Carer Allowances,P02,"Early Years, Children & Youth",REDACTED,01/07/2015,250
Bath & North East Somerset Council,80480222,LM2,Foster Carer Allowances,P02,"Early Years, Children & Youth",REDACTED,01/07/2015,250
Bath & North East Somerset Council,80480222,LM2,Foster Carer Allowances,P02,"Early Years, Children & Youth",REDACTED,01/07/2015,492.88
Bath & North East Somerset Council,80480222,LM2,Foster Carer Allowances,P02,"Early Years, Children & Youth",REDACTED,01/07/2015,492.88
Bath & North East Somerset Council,80480222,LM2,Foster Carer Allowances,P02,"Early Years, Children & Youth",REDACTED,01/07/2015,492.88
Bath & North East Somerset Council,80480222,LM2,Foster Carer Allowances,P02,"Early Years, Children & Youth",REDACTED,01/07/2015,492.88
Bath & North East Somerset Council,10781248,3N7,Misc. Costs,P01,Transport,TMP (UK) LTD,01/07/2015,417.62
Bath & North East Somerset Council,10781251,3N7,Misc. Costs,P01,Transport,TMP (UK) LTD,01/07/2015,438.49
Bath & North East Somerset Council,10781252,3N7,Misc. Costs,P01,Transport,TMP (UK) LTD,01/07/2015,471.57
Bath & North East Somerset Council,80480193,LM2,Foster Carer Allowances,P02,"Early Years, Children & Youth",REDACTED,01/07/2015,100
Bath & North East Somerset Council,80480193,LM2,Foster Carer Allowances,P02,"Early Years, Children & Youth",REDACTED,01/07/2015,100
Bath & North East Somerset Council,80480193,LM2,Foster Carer Allowances,P02,"Early Years, Children & Youth",REDACTED,01/07/2015,325.46
Bath & North East Somerset Council,80480193,LM2,Foster Carer Allowances,P02,"Early Years, Children & Youth",REDACTED,01/07/2015,325.46
Bath & North East Somerset Council,80480193,LM2,Foster Carer Allowances,P02,"Early Years, Children & Youth",REDACTED,01/07/2015,325.46
Bath & North East Somerset Council,80480193,LM2,Foster Carer Allowances,P02,"Early Years, Children & Youth",REDACTED,01/07/2015,325.46
Bath & North East Somerset Council,80480259,LM2,Foster Carer Allowances,P02,"Early Years, Children & Youth",REDACTED,01/07/2015,285.72
Bath & North East Somerset Council,80480259,LM2,Foster Carer Allowances,P02,"Early Years, Children & Youth",REDACTED,01/07/2015,285.72
Bath & North East Somerset Council,80480156,LM2,Foster Carer Allowances,P02,"Early Years, Children & Youth",REDACTED,01/07/2015,100
Bath & North East Somerset Council,80480156,LM2,Foster Carer Allowances,P02,"Early Years, Children & Youth",REDACTED,01/07/2015,492.88
Bath & North East Somerset Council,80480156,LM2,Foster Carer Allowances,P02,"Early Years, Children & Youth",REDACTED,01/07/2015,492.88
Bath & North East Somerset Council,80480302,LL3,Supported Living,P03,Wellbeing,PRESTIGE NURSING HEALTHCARE,01/07/2015,5.87
Bath & North East Somerset Council,80480299,LL3,Supported Living,P03,Wellbeing,PRESTIGE NURSING HEALTHCARE,01/07/2015,2506.94
Bath & North East Somerset Council,80480302,LL3,Supported Living,P03,Wellbeing,PRESTIGE NURSING HEALTHCARE,01/07/2015,2590.45
Bath & North East Somerset Council,80480304,LL3,Supported Living,P03,Wellbeing,PRESTIGE NURSING HEALTHCARE,01/07/2015,2855.37
Bath & North East Somerset Council,10781156,LV2,Contributions to Organisations,Z98,West of England Partnership,PULSE ROLL LABEL PRODUCTS LTD,01/07/2015,11091.5
Bath & North East Somerset Council,10781274,LK2,Licences (non IT),P02,"Early Years, Children & Youth",PERFORMING RIGHT SOCIETY LTD,01/07/2015,610.46
Bath & North East Somerset Council,80480323,LM8,Home Care,P03,Wellbeing,ROBERT SAGE LTD T/A PRESTIGE NURSING PAYROLL,01/07/2015,1338.4
Bath & North East Somerset Council,10781250,3N7,Misc. Costs,P01,Transport,TMP (UK) LTD,01/07/2015,646.89
Bath & North East Somerset Council,80480272,LL3,Supported Living,P03,Wellbeing,ROYAL MENCAP SOCIETY,01/07/2015,1160.15
Bath & North East Somerset Council,80480272,LL3,Supported Living,P03,Wellbeing,ROYAL MENCAP SOCIETY,01/07/2015,1160.15
Bath & North East Somerset Council,80480272,LL3,Supported Living,P03,Wellbeing,ROYAL MENCAP SOCIETY,01/07/2015,1160.15
Bath & North East Somerset Council,80480272,LL3,Supported Living,P03,Wellbeing,ROYAL MENCAP SOCIETY,01/07/2015,1160.15
Bath & North East Somerset Council,80480272,LL3,Supported Living,P03,Wellbeing,ROYAL MENCAP SOCIETY,01/07/2015,1470.24
Bath & North East Somerset Council,80480246,LM2,Foster Carer Allowances,P02,"Early Years, Children & Youth",REDACTED,01/07/2015,100
Bath & North East Somerset Council,80480246,LM2,Foster Carer Allowances,P02,"Early Years, Children & Youth",REDACTED,01/07/2015,100
Bath & North East Somerset Council,80480246,LM2,Foster Carer Allowances,P02,"Early Years, Children & Youth",REDACTED,01/07/2015,325.46
Bath & North East Somerset Council,80480246,LM2,Foster Carer Allowances,P02,"Early Years, Children & Youth",REDACTED,01/07/2015,325.46
Bath & North East Somerset Council,80480246,LM2,Foster Carer Allowances,P02,"Early Years, Children & Youth",REDACTED,01/07/2015,325.46
Bath & North East Somerset Council,80480246,LM2,Foster Carer Allowances,P02,"Early Years, Children & Youth",REDACTED,01/07/2015,325.46
Bath & North East Somerset Council,80480274,LL3,Supported Living,P03,Wellbeing,S.W.A.L.L.O.W. LTD,01/07/2015,0.03
Bath & North East Somerset Council,80480273,LL3,Supported Living,P03,Wellbeing,S.W.A.L.L.O.W. LTD,01/07/2015,33.33
Bath & North East Somerset Council,80480273,LL3,Supported Living,P03,Wellbeing,S.W.A.L.L.O.W. LTD,01/07/2015,33.33
Bath & North East Somerset Council,80480273,LL3,Supported Living,P03,Wellbeing,S.W.A.L.L.O.W. LTD,01/07/2015,33.33
Bath & North East Somerset Council,80480273,LL3,Supported Living,P03,Wellbeing,S.W.A.L.L.O.W. LTD,01/07/2015,66.66
Bath & North East Somerset Council,80480273,LL3,Supported Living,P03,Wellbeing,S.W.A.L.L.O.W. LTD,01/07/2015,66.66
Bath & North East Somerset Council,80480273,LL3,Supported Living,P03,Wellbeing,S.W.A.L.L.O.W. LTD,01/07/2015,66.66
Bath & North East Somerset Council,80480273,LL3,Supported Living,P03,Wellbeing,S.W.A.L.L.O.W. LTD,01/07/2015,66.66
Bath & North East Somerset Council,80480273,LL3,Supported Living,P03,Wellbeing,S.W.A.L.L.O.W. LTD,01/07/2015,164.94
Bath & North East Somerset Council,10781274,LK2,Licences (non IT),P02,"Early Years, Children & Youth",PERFORMING RIGHT SOCIETY LTD,01/07/2015,678.6
Bath & North East Somerset Council,80480274,LL3,Supported Living,P03,Wellbeing,S.W.A.L.L.O.W. LTD,01/07/2015,344.56
Bath & North East Somerset Council,80480274,LL3,Supported Living,P03,Wellbeing,S.W.A.L.L.O.W. LTD,01/07/2015,344.56
Bath & North East Somerset Council,80480274,LL3,Supported Living,P03,Wellbeing,S.W.A.L.L.O.W. LTD,01/07/2015,344.56
Bath & North East Somerset Council,80480274,LL3,Supported Living,P03,Wellbeing,S.W.A.L.L.O.W. LTD,01/07/2015,344.56
Bath & North East Somerset Council,80480274,LL3,Supported Living,P03,Wellbeing,S.W.A.L.L.O.W. LTD,01/07/2015,344.56
Bath & North East Somerset Council,10781266,LE1,Education Payment (independent school),P02,"Early Years, Children & Youth",NATUREWORKS TRAINING,01/07/2015,715
Bath & North East Somerset Council,80480258,LM2,Foster Carer Allowances,P02,"Early Years, Children & Youth",REDACTED,01/07/2015,325.46
Bath & North East Somerset Council,80480258,LM2,Foster Carer Allowances,P02,"Early Years, Children & Youth",REDACTED,01/07/2015,325.46
Bath & North East Somerset Council,10781277,LA1,Equipment Purchase,P01,Transport,CO-CHANNEL ELECTRONICS LIMITED,01/07/2015,750
Bath & North East Somerset Council,10781165,EA1,Training,P04,Leader,TALLOWOOD TRAINING SOLUTIONS LTD,01/07/2015,750
Bath & North East Somerset Council,80480308,LL3,Supported Living,P03,Wellbeing,SELBORNE CARE LTD,01/07/2015,575.1
Bath & North East Somerset Council,80480154,LM2,Foster Carer Allowances,P02,"Early Years, Children & Youth",REDACTED,01/07/2015,100
Bath & North East Somerset Council,80480154,LL7,Residence Orders,P02,"Early Years, Children & Youth",REDACTED,01/07/2015,357
Bath & North East Somerset Council,80480154,LM2,Foster Carer Allowances,P02,"Early Years, Children & Youth",REDACTED,01/07/2015,492.88
Bath & North East Somerset Council,80480154,LM2,Foster Carer Allowances,P02,"Early Years, Children & Youth",REDACTED,01/07/2015,492.88
Bath & North East Somerset Council,80480326,LM8,Home Care,P03,Wellbeing,SOMERSET CARE AT HOME LTD,01/07/2015,674.5
Bath & North East Somerset Council,10781182,EA1,Training,P02,"Early Years, Children & Youth",RACHEL RINGHAM LTD,01/07/2015,800
Bath & North East Somerset Council,10781297,LH2,Advertising,P02,"Early Years, Children & Youth",ZEST MEDIA SOUTH WEST LTD,01/07/2015,929.02
Bath & North East Somerset Council,10779862,LJ8,PCB External Fees,P06,Sustainable Development,SPIERS AND MAJOR ASSOCIATES LIMITED,01/07/2015,998.75
Bath & North East Somerset Council,80480152,LM2,Foster Carer Allowances,P02,"Early Years, Children & Youth",REDACTED,01/07/2015,100
Bath & North East Somerset Council,80480152,LM2,Foster Carer Allowances,P02,"Early Years, Children & Youth",REDACTED,01/07/2015,100
Bath & North East Somerset Council,80480152,LM2,Foster Carer Allowances,P02,"Early Years, Children & Youth",REDACTED,01/07/2015,285.72
Bath & North East Somerset Council,80480152,LM2,Foster Carer Allowances,P02,"Early Years, Children & Youth",REDACTED,01/07/2015,285.72
Bath & North East Somerset Council,80480152,LM2,Foster Carer Allowances,P02,"Early Years, Children & Youth",REDACTED,01/07/2015,285.72
Bath & North East Somerset Council,80480152,LM2,Foster Carer Allowances,P02,"Early Years, Children & Youth",REDACTED,01/07/2015,285.72
Bath & North East Somerset Council,10781176,LJ2,Legal Fees,P02,"Early Years, Children & Youth",MRS NICHOLA MARTIN,01/07/2015,1056
Bath & North East Somerset Council,10780788,LJ4,Contracts,P05,Neighbourhoods,TECALEMIT GARAGE EQUIPMENT CO LTD,01/07/2015,1180.11
Bath & North East Somerset Council,10781185,LK1,Fees,P07,Community Resources,NEIL BENN CONSULTING LTD,01/07/2015,1500
Bath & North East Somerset Council,10781209,3N7,Misc. Costs,P07,Community Resources,THEATRE LEARNING,01/07/2015,1576
Bath & North East Somerset Council,10781019,LF5,Postages,P07,Community Resources,WHISTL,01/07/2015,1683.36
Bath & North East Somerset Council,80480219,LM2,Foster Carer Allowances,P02,"Early Years, Children & Youth",REDACTED,01/07/2015,100
Bath & North East Somerset Council,80480219,KE3,Transport & Travel,P02,"Early Years, Children & Youth",REDACTED,01/07/2015,198
Bath & North East Somerset Council,80480219,KE3,Transport & Travel,P02,"Early Years, Children & Youth",REDACTED,01/07/2015,198
Bath & North East Somerset Council,80480219,LM2,Foster Carer Allowances,P02,"Early Years, Children & Youth",REDACTED,01/07/2015,250
Bath & North East Somerset Council,80480219,LM2,Foster Carer Allowances,P02,"Early Years, Children & Youth",REDACTED,01/07/2015,405.16
Bath & North East Somerset Council,80480219,LM2,Foster Carer Allowances,P02,"Early Years, Children & Youth",REDACTED,01/07/2015,492.88
Bath & North East Somerset Council,80480219,LM2,Foster Carer Allowances,P02,"Early Years, Children & Youth",REDACTED,01/07/2015,492.88
Bath & North East Somerset Council,80480219,LM2,Foster Carer Allowances,P02,"Early Years, Children & Youth",REDACTED,01/07/2015,770
Bath & North East Somerset Council,10779455,LJ1,Consultants Fees,P02,"Early Years, Children & Youth",SIRONA CARE SERVICES LTD,01/07/2015,3625
Bath & North East Somerset Council,10781265,LK1,Fees,P02,"Early Years, Children & Youth",BYTEBACK IT SOLUTIONS LTD,01/07/2015,3643.29
Bath & North East Somerset Council,10778456,LJ1,Consultants Fees,P07,Community Resources,PRITCHETTS LAW,01/07/2015,3750
Bath & North East Somerset Council,10778457,LJ1,Consultants Fees,P07,Community Resources,PRITCHETTS LAW,01/07/2015,3750
Bath & North East Somerset Council,10781183,LJ1,Consultants Fees,P07,Community Resources,PRITCHETTS LAW,01/07/2015,3750
Bath & North East Somerset Council,10781137,HE5,Security of Premises,P07,Community Resources,UNITED KINGDOM SECURITY,01/07/2015,3888
Bath & North East Somerset Council,10781292,LA1,Equipment Purchase,P07,Community Resources,WILLIS MOSS LTD T/A ASSURED MOBILITY,01/07/2015,4650
Bath & North East Somerset Council,10781129,LV2,Contributions to Organisations,Z98,West of England Partnership,JANE CLAYTON AND COMPANY LTD,01/07/2015,4776.52
Bath & North East Somerset Council,10781136,HE5,Security of Premises,P07,Community Resources,UNITED KINGDOM SECURITY,01/07/2015,5184
Bath & North East Somerset Council,10781227,LJ1,Consultants Fees,P07,Community Resources,MENDIP SURVEY & DESIGN LTD,01/07/2015,5478
Bath & North East Somerset Council,10781084,LV1,Grants to Voluntary Bodies,P01,Transport,SEVERNSIDE COMMUNITY RAIL PARTNERSHIP,01/07/2015,6000
Bath & North East Somerset Council,10781184,LH2,Advertising,P05,Neighbourhoods,HELLO STUDIO LTD,01/07/2015,6500
Bath & North East Somerset Council,10781129,LV2,Contributions to Organisations,Z98,West of England Partnership,JANE CLAYTON AND COMPANY LTD,01/07/2015,13583.48
Bath & North East Somerset Council,10781273,LJ4,Contracts,P03,Wellbeing,SIRONA CARE SERVICES LTD,01/07/2015,18572.25
Bath & North East Somerset Council,10781009,LF1,Printing/Design,P04,Leader,LATCHAM DIRECT LTD,01/07/2015,18786.65
Bath & North East Somerset Council,10781161,LV2,Contributions to Organisations,Z98,West of England Partnership,SAFELAB SYSTEMS LTD,01/07/2015,53823.65
Bath & North East Somerset Council,10781270,LJ4,Contracts,P03,Wellbeing,SIRONA CARE SERVICES LTD,01/07/2015,68440.33
Bath & North East Somerset Council,80480255,LM2,Foster Carer Allowances,P02,"Early Years, Children & Youth",REDACTED,01/07/2015,325.46
Bath & North East Somerset Council,80480255,LM2,Foster Carer Allowances,P02,"Early Years, Children & Youth",REDACTED,01/07/2015,325.46
Bath & North East Somerset Council,10781272,LJ4,Contracts,P03,Wellbeing,SIRONA CARE SERVICES LTD,01/07/2015,191348.83
Bath & North East Somerset Council,10781269,LJ4,Contracts,P03,Wellbeing,SIRONA CARE & HEALTH C.I.C.,01/07/2015,337646.75
Bath & North East Somerset Council,10781275,LJ4,Contracts,P03,Wellbeing,SIRONA CARE SERVICES LTD,01/07/2015,431948.09
Bath & North East Somerset Council,10781271,LJ4,Contracts,P03,Wellbeing,SIRONA CARE SERVICES LTD,01/07/2015,526042.59
Bath & North East Somerset Council,80482602,PG1,Rent Allowances,P07,Community Resources,REDACTED,02/07/2015,713.42
Bath & North East Somerset Council,80482877,PG1,Rent Allowances,P07,Community Resources,REDACTED,02/07/2015,612.86
Bath & North East Somerset Council,80480390,LL3,Supported Living,P03,Wellbeing,Age Concern Bath & North East Somerset,02/07/2015,19081.35
Bath & North East Somerset Council,80480370,LL3,Supported Living,P03,Wellbeing,Alzheimer's Society,02/07/2015,6448.52
Bath & North East Somerset Council,80480385,LL3,Supported Living,P03,Wellbeing,B&NES Supported Lodgings Scheme,02/07/2015,5827.22
Bath & North East Somerset Council,80480391,LL3,Supported Living,P03,Wellbeing,Bath & District Citizens Advice Bureau,02/07/2015,31221.92
Bath & North East Somerset Council,80480366,LL3,Supported Living,P03,Wellbeing,BATH & NORTH EAST SOMERSET CARERS CENTRE,02/07/2015,32986.3
Bath & North East Somerset Council,80480381,LL3,Supported Living,P03,Wellbeing,BATH MIND,02/07/2015,2919.33
Bath & North East Somerset Council,80480387,LL3,Supported Living,P03,Wellbeing,BATH SELF HELP HOUSING ASSOC,02/07/2015,33244.26
Bath & North East Somerset Council,80480389,LL3,Supported Living,P03,Wellbeing,BCHA,02/07/2015,28241.92
Bath & North East Somerset Council,80480371,LL3,Supported Living,P03,Wellbeing,Breakthrough Deaf Hearing Integration,02/07/2015,7603.12
Bath & North East Somerset Council,80480376,LL3,Supported Living,P03,Wellbeing,Bristol Credit Union,02/07/2015,536.96
Bath & North East Somerset Council,80480383,LL3,Supported Living,P03,Wellbeing,CLEAN SLATE TRAINING & EMPLOYMENT LTD,02/07/2015,2761.64
Bath & North East Somerset Council,80480372,LL3,Supported Living,P03,Wellbeing,CREATIVITY WORKS,02/07/2015,2450.44
Bath & North East Somerset Council,80480331,PG1,Rent Allowances,P07,Community Resources,CURO,02/07/2015,1000
Bath & North East Somerset Council,80480395,LL3,Supported Living,P03,Wellbeing,DEVELOPING HEALTH & INDEPENDENCE,02/07/2015,34472.57
Bath & North East Somerset Council,80480379,LL3,Supported Living,P03,Wellbeing,DEVELOPING HEALTH & INDEPENDENCE,02/07/2015,35131
Bath & North East Somerset Council,10781229,LV2,Contributions to Organisations,Z98,West of England Partnership,DIGITAL TV LABS LTD,02/07/2015,14283.45
Bath & North East Somerset Council,10781230,LV2,Contributions to Organisations,Z98,West of England Partnership,DIGITAL TV LABS LTD,02/07/2015,28580.41
Bath & North East Somerset Council,80480384,LL3,Supported Living,P03,Wellbeing,Freeways,02/07/2015,17490.41
Bath & North East Somerset Council,80480394,LL3,Supported Living,P03,Wellbeing,GUINNESS HOUSING ASSOCIATION,02/07/2015,1319.14
Bath & North East Somerset Council,80482589,PG1,Rent Allowances,P07,Community Resources,REDACTED,02/07/2015,969.92
Bath & North East Somerset Council,80480361,LL3,Supported Living,P03,Wellbeing,KEY RING LIVING SUPPORT NETWOR,02/07/2015,2953.48
Bath & North East Somerset Council,80482588,PG1,Rent Allowances,P07,Community Resources,KNIGHTSTONE HOUSING ASSOCIATION,02/07/2015,945.74
Bath & North East Somerset Council,80482088,PG1,Rent Allowances,P07,Community Resources,REDACTED,02/07/2015,1043.12
Bath & North East Somerset Council,80480600,PG1,Rent Allowances,P07,Community Resources,REDACTED,02/07/2015,591.84
Bath & North East Somerset Council,80482433,PG1,Rent Allowances,P07,Community Resources,REDACTED,02/07/2015,557.96
Bath & North East Somerset Council,80482395,PG1,Rent Allowances,P07,Community Resources,REDACTED,02/07/2015,1256.53
Bath & North East Somerset Council,80480765,PG1,Rent Allowances,P07,Community Resources,REDACTED,02/07/2015,643.99
Bath & North East Somerset Council,80481250,PG1,Rent Allowances,P07,Community Resources,REDACTED,02/07/2015,847.66
Bath & North East Somerset Council,80482485,PG1,Rent Allowances,P07,Community Resources,REDACTED,02/07/2015,562.6
Bath & North East Somerset Council,80482162,PG1,Rent Allowances,P07,Community Resources,REDACTED,02/07/2015,535.1
Bath & North East Somerset Council,80480813,PG1,Rent Allowances,P07,Community Resources,REDACTED,02/07/2015,1256.95
Bath & North East Somerset Council,80480493,PG1,Rent Allowances,P07,Community Resources,REDACTED,02/07/2015,595.48
Bath & North East Somerset Council,80481679,PG1,Rent Allowances,P07,Community Resources,REDACTED,02/07/2015,667.67
Bath & North East Somerset Council,80482872,PG1,Rent Allowances,P07,Community Resources,REDACTED,02/07/2015,576.92
Bath & North East Somerset Council,10781365,LM8,Home Care,P03,Wellbeing,REDACTED,02/07/2015,20500.06
Bath & North East Somerset Council,80482685,PG1,Rent Allowances,P07,Community Resources,REDACTED,02/07/2015,661.84
Bath & North East Somerset Council,80480711,PG1,Rent Allowances,P07,Community Resources,REDACTED,02/07/2015,529.1
Bath & North East Somerset Council,80482066,PG1,Rent Allowances,P07,Community Resources,REDACTED,02/07/2015,553.84
Bath & North East Somerset Council,80482446,PG1,Rent Allowances,P07,Community Resources,REDACTED,02/07/2015,553.84
Bath & North East Somerset Council,80482686,PG1,Rent Allowances,P07,Community Resources,REDACTED,02/07/2015,2251.2
Bath & North East Somerset Council,80482402,PG1,Rent Allowances,P07,Community Resources,REDACTED,02/07/2015,700.78
Bath & North East Somerset Council,80481934,PG1,Rent Allowances,P07,Community Resources,REDACTED,02/07/2015,554.72
Bath & North East Somerset Council,80482698,PG1,Rent Allowances,P07,Community Resources,REDACTED,02/07/2015,581.54
Bath & North East Somerset Council,80482194,PG1,Rent Allowances,P07,Community Resources,REDACTED,02/07/2015,583.8
Bath & North East Somerset Council,80482664,PG1,Rent Allowances,P07,Community Resources,REDACTED,02/07/2015,532.18
Bath & North East Somerset Council,80482806,PG1,Rent Allowances,P07,Community Resources,REDACTED,02/07/2015,568.82
Bath & North East Somerset Council,80482405,PG1,Rent Allowances,P07,Community Resources,REDACTED,02/07/2015,561.6
Bath & North East Somerset Council,80480828,PG1,Rent Allowances,P07,Community Resources,REDACTED,02/07/2015,553.84
Bath & North East Somerset Council,80482168,PG1,Rent Allowances,P07,Community Resources,REDACTED,02/07/2015,583.8
Bath & North East Somerset Council,80481574,PG1,Rent Allowances,P07,Community Resources,REDACTED,02/07/2015,583.8
Bath & North East Somerset Council,80482672,PG1,Rent Allowances,P07,Community Resources,REDACTED,02/07/2015,530.76
Bath & North East Somerset Council,80480360,LL3,Supported Living,P03,Wellbeing,OFF THE RECORD BATH & N E SOMERSET,02/07/2015,969.98
Bath & North East Somerset Council,10781285,HK1,Highway Maintenance,P01,Transport,LOCAL WORLD LTD,02/07/2015,491.4
Bath & North East Somerset Council,10781243,3F7,External Fees,P07,Community Resources,CASWELL ENVIRONMENTAL SERVICES LTD,02/07/2015,500
Bath & North East Somerset Council,10781355,HP6,Water Charges,P02,"Early Years, Children & Youth",BWBSL,02/07/2015,522.32
Bath & North East Somerset Council,80480359,LL3,Supported Living,P03,Wellbeing,Rethink,02/07/2015,3717.47
Bath & North East Somerset Council,10780203,LA5,Materials,P07,Community Resources,PREMIER PAPER,02/07/2015,612.36
Bath & North East Somerset Council,80482838,PG1,Rent Allowances,P07,Community Resources,ROSAMUND COPPEN & COMPANY SOLICI,02/07/2015,2843.13
Bath & North East Somerset Council,10781307,LK1,Fees,P02,"Early Years, Children & Youth",BO PEEP PRE SCHOOL,02/07/2015,650
Bath & North East Somerset Council,10781380,HV3,Window Cleaning,P06,Sustainable Development,MACABSEIL.COM,02/07/2015,650
Bath & North East Somerset Council,80480362,LL3,Supported Living,P03,Wellbeing,Second Step Housing Association,02/07/2015,6670.8
Bath & North East Somerset Council,80482587,PG1,Rent Allowances,P07,Community Resources,SHAPE HA (DO NOT USE),02/07/2015,2730
Bath & North East Somerset Council,10781306,LK1,Fees,P02,"Early Years, Children & Youth",MR JONATHAN R GILMURRAY,02/07/2015,780
Bath & North East Somerset Council,80480377,LL3,Supported Living,P03,Wellbeing,SIRONA CARE & HEALTH [SEDGEMOOR],02/07/2015,3513.93
Bath & North East Somerset Council,80480363,LL3,Supported Living,P03,Wellbeing,SOLON SW HA LTD,02/07/2015,6045.6
Bath & North East Somerset Council,80480396,LL3,Supported Living,P03,Wellbeing,SOMER COMMUNITY HOUSING TRUST,02/07/2015,73914.14
Bath & North East Somerset Council,80480386,LL3,Supported Living,P03,Wellbeing,Soundwell Music Therapy Trust,02/07/2015,767.12
Bath & North East Somerset Council,80482595,PG1,Rent Allowances,P07,Community Resources,SOVEREIGN HOUSING ASSOCIATION,02/07/2015,1266.05
Bath & North East Somerset Council,80480388,LL3,Supported Living,P03,Wellbeing,SPA,02/07/2015,5369.86
Bath & North East Somerset Council,80480382,LL3,Supported Living,P03,Wellbeing,ST MUNGO COMMUNITY HOUSING ASSOCIATION LTD,02/07/2015,25173.85
Bath & North East Somerset Council,80480369,LL3,Supported Living,P03,Wellbeing,STONEHAM HOUSING ASSOCIATION,02/07/2015,6257.88
Bath & North East Somerset Council,10781379,LK1,Fees,P06,Sustainable Development,GATEWAY TICKETING SYSTEMS UK LTD,02/07/2015,885
Bath & North East Somerset Council,80482601,PG1,Rent Allowances,P07,Community Resources,SUPPORTED INDEPENDENCE LTD,02/07/2015,1105.62
Bath & North East Somerset Council,80480368,LL3,Supported Living,P03,Wellbeing,SWALLOW LTD,02/07/2015,5557.15
Bath & North East Somerset Council,80480373,LL3,Supported Living,P03,Wellbeing,SWAN Advice Network,02/07/2015,1593.16
Bath & North East Somerset Council,80482597,PG1,Rent Allowances,P07,Community Resources,THE BATH PROPERTY SHOP,02/07/2015,586.16
Bath & North East Somerset Council,80480392,LL3,Supported Living,P03,Wellbeing,The Care Forum,02/07/2015,6459.33
Bath & North East Somerset Council,10781202,LJ4,Contracts,P03,Wellbeing,SIRONA CARE SERVICES LTD,02/07/2015,1250
Bath & North East Somerset Council,10781367,LH5,Marketing,P06,Sustainable Development,CITY SIGHTSEEING,02/07/2015,1390
Bath & North East Somerset Council,10780551,HA2,Servicing,P06,Sustainable Development,ASHTON AIR CONDITIONING SERVICES LIMITED,02/07/2015,1644
Bath & North East Somerset Council,80480378,LL3,Supported Living,P03,Wellbeing,WE CARE AND REPAIR,02/07/2015,14997.27
Bath & North East Somerset Council,10781232,3G1,Grants/Advances,P03,Wellbeing,P & J SHOWERS LTD,02/07/2015,2665
Bath & North East Somerset Council,10781215,3E6,IT Software,P04,Leader,LANDESK INTERNATIONAL LTD,02/07/2015,3000
Bath & North East Somerset Council,10781369,HP1,Rent Payable,P06,Sustainable Development,THE NATIONAL TRUST,02/07/2015,3750
Bath & North East Somerset Council,10781373,LK1,Fees,P06,Sustainable Development,BRITISH MUSEUM GREAT COURT LTD TREASURE ACCOU,02/07/2015,5000
Bath & North East Somerset Council,10781203,LJ4,Contracts,P03,Wellbeing,SIRONA CARE SERVICES LTD,02/07/2015,5000
Bath & North East Somerset Council,10782181,HK2,Street Lighting Maintenance,P01,Transport,SOUTHERN ELECTRIC CONTRACTING LTD,02/07/2015,5582.66
Bath & North East Somerset Council,10781333,3F7,External Fees,P02,"Early Years, Children & Youth",MOTT MACDONALD LIMITED,02/07/2015,7500
Bath & North East Somerset Council,10780931,LV1,Grants to Voluntary Bodies,P04,Leader,ACHIEVE BREAKTHROUGH LTD,02/07/2015,10000
Bath & North East Somerset Council,10780933,LV1,Grants to Voluntary Bodies,P04,Leader,ACHIEVE BREAKTHROUGH LTD,02/07/2015,10000
Bath & North East Somerset Council,10781298,LX1,Educational Activity,P02,"Early Years, Children & Youth",CITY OF BATH COLLEGE,02/07/2015,27000
Bath & North East Somerset Council,80482586,PG1,Rent Allowances,P07,Community Resources,Y.M.C.A.,02/07/2015,580
Bath & North East Somerset Council,10781239,PB4,Payments to Private Contractors,P05,Neighbourhoods,KIER MG,02/07/2015,254711.89
Bath & North East Somerset Council,10781233,3G1,Grants/Advances,P03,Wellbeing,AQUA SHOWERS,03/07/2015,3190
Bath & North East Somerset Council,10781324,LV2,Contributions to Organisations,Z98,West of England Partnership,BEYOND THE BEAN LTD,03/07/2015,8447.99
Bath & North East Somerset Council,10781164,3G1,Grants/Advances,P06,Sustainable Development,BLUE FLAME GAS SERVICES,03/07/2015,696.87
Bath & North East Somerset Council,80482995,LM8,Home Care,P03,Wellbeing,BLUEBIRD CARE (BATH),03/07/2015,23.43
Bath & North East Somerset Council,80482998,LM8,Home Care,P03,Wellbeing,BLUEBIRD CARE (BATH),03/07/2015,57.2
Bath & North East Somerset Council,80483066,LM8,Home Care,P03,Wellbeing,BLUEBIRD CARE (BATH),03/07/2015,122.88
Bath & North East Somerset Council,80483067,LM8,Home Care,P03,Wellbeing,BLUEBIRD CARE (BATH),03/07/2015,173.21
Bath & North East Somerset Council,80482991,LM8,Home Care,P03,Wellbeing,BLUEBIRD CARE (BATH),03/07/2015,242.2
Bath & North East Somerset Council,80483000,LM8,Home Care,P03,Wellbeing,BLUEBIRD CARE (BATH),03/07/2015,242.2
Bath & North East Somerset Council,80483000,LM8,Home Care,P03,Wellbeing,BLUEBIRD CARE (BATH),03/07/2015,242.2
Bath & North East Somerset Council,80483071,LM8,Home Care,P03,Wellbeing,BLUEBIRD CARE (BATH),03/07/2015,304
Bath & North East Somerset Council,80483071,LM8,Home Care,P03,Wellbeing,BLUEBIRD CARE (BATH),03/07/2015,304
Bath & North East Somerset Council,80482992,LM8,Home Care,P03,Wellbeing,BLUEBIRD CARE (BATH),03/07/2015,432.98
Bath & North East Somerset Council,80482995,LM8,Home Care,P03,Wellbeing,BLUEBIRD CARE (BATH),03/07/2015,441.15
Bath & North East Somerset Council,80482995,LM8,Home Care,P03,Wellbeing,BLUEBIRD CARE (BATH),03/07/2015,441.15
Bath & North East Somerset Council,80482994,LM8,Home Care,P03,Wellbeing,BLUEBIRD CARE (BATH),03/07/2015,467.1
Bath & North East Somerset Council,80482994,LM8,Home Care,P03,Wellbeing,BLUEBIRD CARE (BATH),03/07/2015,467.1
Bath & North East Somerset Council,80483000,LM8,Home Care,P03,Wellbeing,BLUEBIRD CARE (BATH),03/07/2015,723.86
Bath & North East Somerset Council,80482989,LM8,Home Care,P03,Wellbeing,BLUEBIRD CARE (BATH),03/07/2015,778.5
Bath & North East Somerset Council,80482997,LM8,Home Care,P03,Wellbeing,BLUEBIRD CARE (BATH),03/07/2015,778.5
Bath & North East Somerset Council,80483066,LM8,Home Care,P03,Wellbeing,BLUEBIRD CARE (BATH),03/07/2015,860
Bath & North East Somerset Council,80483067,LM8,Home Care,P03,Wellbeing,BLUEBIRD CARE (BATH),03/07/2015,860
Bath & North East Somerset Council,80483074,LM8,Home Care,P03,Wellbeing,BLUEBIRD CARE (BATH),03/07/2015,860
Bath & North East Somerset Council,80483075,LM8,Home Care,P03,Wellbeing,BLUEBIRD CARE (BATH),03/07/2015,860
Bath & North East Somerset Council,80482991,LM8,Home Care,P03,Wellbeing,BLUEBIRD CARE (BATH),03/07/2015,950
Bath & North East Somerset Council,80482992,LM8,Home Care,P03,Wellbeing,BLUEBIRD CARE (BATH),03/07/2015,950
Bath & North East Somerset Council,80483000,LM8,Home Care,P03,Wellbeing,BLUEBIRD CARE (BATH),03/07/2015,950
Bath & North East Somerset Council,80483001,LM8,Home Care,P03,Wellbeing,BLUEBIRD CARE (BATH),03/07/2015,950
Bath & North East Somerset Council,80482991,LM8,Home Care,P03,Wellbeing,BLUEBIRD CARE (BATH),03/07/2015,1089.9
Bath & North East Somerset Council,80482991,LM8,Home Care,P03,Wellbeing,BLUEBIRD CARE (BATH),03/07/2015,1089.9
Bath & North East Somerset Council,80482992,LM8,Home Care,P03,Wellbeing,BLUEBIRD CARE (BATH),03/07/2015,1089.9
Bath & North East Somerset Council,80482998,LM8,Home Care,P03,Wellbeing,BLUEBIRD CARE (BATH),03/07/2015,1089.9
Bath & North East Somerset Council,80482998,LM8,Home Care,P03,Wellbeing,BLUEBIRD CARE (BATH),03/07/2015,1089.9
Bath & North East Somerset Council,80482998,LM8,Home Care,P03,Wellbeing,BLUEBIRD CARE (BATH),03/07/2015,1089.9
Bath & North East Somerset Council,80483001,LM8,Home Care,P03,Wellbeing,BLUEBIRD CARE (BATH),03/07/2015,1089.9
Bath & North East Somerset Council,80482998,LM8,Home Care,P03,Wellbeing,BLUEBIRD CARE (BATH),03/07/2015,2275
Bath & North East Somerset Council,10781428,LV2,Contributions to Organisations,Z98,West of England Partnership,BRIGHTWATER DIAGNOSTICS LTD,03/07/2015,1277.32
Bath & North East Somerset Council,10781427,LV2,Contributions to Organisations,Z98,West of England Partnership,BRIGHTWATER DIAGNOSTICS LTD,03/07/2015,1987.26
Bath & North East Somerset Council,80483065,LM8,Home Care,P03,Wellbeing,BUTTERFLY HOME HELP,03/07/2015,820.4
Bath & North East Somerset Council,80483065,LM8,Home Care,P03,Wellbeing,BUTTERFLY HOME HELP,03/07/2015,820.4
Bath & North East Somerset Council,80483065,LM8,Home Care,P03,Wellbeing,BUTTERFLY HOME HELP,03/07/2015,820.4
Bath & North East Somerset Council,80483065,LM8,Home Care,P03,Wellbeing,BUTTERFLY HOME HELP,03/07/2015,820.4
Bath & North East Somerset Council,80483012,LM8,Home Care,P03,Wellbeing,BUTTERFLY HOME HELP,03/07/2015,910
Bath & North East Somerset Council,80483012,LM8,Home Care,P03,Wellbeing,BUTTERFLY HOME HELP,03/07/2015,910
Bath & North East Somerset Council,80483014,LM9,Day Care,P03,Wellbeing,CARE FUTURES,03/07/2015,171
Bath & North East Somerset Council,80483014,LM9,Day Care,P03,Wellbeing,CARE FUTURES,03/07/2015,171
Bath & North East Somerset Council,80483014,LM9,Day Care,P03,Wellbeing,CARE FUTURES,03/07/2015,171
Bath & North East Somerset Council,80483014,LM9,Day Care,P03,Wellbeing,CARE FUTURES,03/07/2015,171
Bath & North East Somerset Council,80483014,LM9,Day Care,P03,Wellbeing,CARE FUTURES,03/07/2015,171
Bath & North East Somerset Council,80483013,LM9,Day Care,P03,Wellbeing,CARE FUTURES,03/07/2015,310
Bath & North East Somerset Council,80483013,LM9,Day Care,P03,Wellbeing,CARE FUTURES,03/07/2015,310
Bath & North East Somerset Council,80483013,LM9,Day Care,P03,Wellbeing,CARE FUTURES,03/07/2015,310
Bath & North East Somerset Council,80483013,LM9,Day Care,P03,Wellbeing,CARE FUTURES,03/07/2015,310
Bath & North East Somerset Council,80483013,LM9,Day Care,P03,Wellbeing,CARE FUTURES,03/07/2015,310
Bath & North East Somerset Council,80483015,LM9,Day Care,P03,Wellbeing,CARE FUTURES,03/07/2015,435
Bath & North East Somerset Council,80483015,LM9,Day Care,P03,Wellbeing,CARE FUTURES,03/07/2015,435
Bath & North East Somerset Council,80483015,LM9,Day Care,P03,Wellbeing,CARE FUTURES,03/07/2015,435
Bath & North East Somerset Council,80483015,LM9,Day Care,P03,Wellbeing,CARE FUTURES,03/07/2015,435
Bath & North East Somerset Council,80483015,LM9,Day Care,P03,Wellbeing,CARE FUTURES,03/07/2015,435
Bath & North East Somerset Council,80482967,LK4,Nursery/Childcare Vouchers,P02,"Early Years, Children & Youth",CHILDBASE LTD,03/07/2015,2317.32
Bath & North East Somerset Council,80483010,LM8,Home Care,P03,Wellbeing,CORINIUM CARE LIMITED,03/07/2015,1910.16
Bath & North East Somerset Council,80483010,LM8,Home Care,P03,Wellbeing,CORINIUM CARE LIMITED,03/07/2015,1910.16
Bath & North East Somerset Council,80483011,LM8,Home Care,P03,Wellbeing,CORINIUM CARE LIMITED,03/07/2015,1910.16
Bath & North East Somerset Council,80483011,LM8,Home Care,P03,Wellbeing,CORINIUM CARE LIMITED,03/07/2015,1910.16
Bath & North East Somerset Council,80482964,LK4,Nursery/Childcare Vouchers,P02,"Early Years, Children & Youth",COUNTRY GARDEN DAY NURSERY,03/07/2015,518.4
Bath & North East Somerset Council,80483108,PG1,Rent Allowances,P07,Community Resources,CURO,03/07/2015,1000
Bath & North East Somerset Council,80483111,PG1,Rent Allowances,P07,Community Resources,CURO,03/07/2015,19729.55
Bath & North East Somerset Council,80483110,PG1,Rent Allowances,P07,Community Resources,CURO,03/07/2015,84264.04
Bath & North East Somerset Council,80483056,LL3,Supported Living,P03,Wellbeing,DIMENSIONS (UK) LTD,03/07/2015,469.15
Bath & North East Somerset Council,80483056,LL3,Supported Living,P03,Wellbeing,DIMENSIONS (UK) LTD,03/07/2015,469.15
Bath & North East Somerset Council,80483056,LL3,Supported Living,P03,Wellbeing,DIMENSIONS (UK) LTD,03/07/2015,469.15
Bath & North East Somerset Council,80483056,LL3,Supported Living,P03,Wellbeing,DIMENSIONS (UK) LTD,03/07/2015,469.15
Bath & North East Somerset Council,80483086,LL4,Direct Payments,P02,"Early Years, Children & Youth",ENHAM TRUST CLIENT ACCOUNT,03/07/2015,134.52
Bath & North East Somerset Council,80483086,LL4,Direct Payments,P02,"Early Years, Children & Youth",ENHAM TRUST CLIENT ACCOUNT,03/07/2015,134.52
Bath & North East Somerset Council,80483086,LL4,Direct Payments,P02,"Early Years, Children & Youth",ENHAM TRUST CLIENT ACCOUNT,03/07/2015,669
Bath & North East Somerset Council,80482987,LK4,Nursery/Childcare Vouchers,P02,"Early Years, Children & Youth",FIRST STEPS NURSERY,03/07/2015,975
Bath & North East Somerset Council,80482890,LA7,Purchases for Resale,P06,Sustainable Development,RHODAWN LIMITED T/A BOOKSPEED,03/07/2015,44.95
Bath & North East Somerset Council,80482971,LK4,Nursery/Childcare Vouchers,P02,"Early Years, Children & Youth",FOOTSTEPS NURSERY (PAULTON),03/07/2015,975
Bath & North East Somerset Council,80482961,LK4,Nursery/Childcare Vouchers,P02,"Early Years, Children & Youth",GUINEA LANE NURSERY,03/07/2015,1242.6
Bath & North East Somerset Council,80482931,LK4,Nursery/Childcare Vouchers,P02,"Early Years, Children & Youth",HOPSCOTCH NURSERY SCHOOL,03/07/2015,1667.6
Bath & North East Somerset Council,80483087,LL4,Direct Payments,P02,"Early Years, Children & Youth",REDACTED,03/07/2015,253
Bath & North East Somerset Council,80483087,LL4,Direct Payments,P02,"Early Years, Children & Youth",REDACTED,03/07/2015,264.61
Bath & North East Somerset Council,80483087,LL4,Direct Payments,P02,"Early Years, Children & Youth",REDACTED,03/07/2015,264.61
Bath & North East Somerset Council,80482982,LK4,Nursery/Childcare Vouchers,P02,"Early Years, Children & Youth",REDACTED,03/07/2015,690
Bath & North East Somerset Council,80483029,LM8,Home Care,P03,Wellbeing,KUMARI HOMECARE SERVICE,03/07/2015,14
Bath & North East Somerset Council,80483031,LM8,Home Care,P03,Wellbeing,KUMARI HOMECARE SERVICE,03/07/2015,14
Bath & North East Somerset Council,80483040,LM8,Home Care,P03,Wellbeing,KUMARI HOMECARE SERVICE,03/07/2015,14.01
Bath & North East Somerset Council,80483039,LM8,Home Care,P03,Wellbeing,KUMARI HOMECARE SERVICE,03/07/2015,545.92
Bath & North East Somerset Council,80483029,LM8,Home Care,P03,Wellbeing,KUMARI HOMECARE SERVICE,03/07/2015,615.02
Bath & North East Somerset Council,80483031,LM8,Home Care,P03,Wellbeing,KUMARI HOMECARE SERVICE,03/07/2015,615.02
Bath & North East Somerset Council,80483025,LM8,Home Care,P03,Wellbeing,KUMARI HOMECARE SERVICE,03/07/2015,659.75
Bath & North East Somerset Council,80483035,LM8,Home Care,P03,Wellbeing,KUMARI HOMECARE SERVICE,03/07/2015,659.75
Bath & North East Somerset Council,80483047,LM8,Home Care,P03,Wellbeing,KUMARI HOMECARE SERVICE,03/07/2015,659.75
Bath & North East Somerset Council,80483083,LM8,Home Care,P03,Wellbeing,KUMARI HOMECARE SERVICE,03/07/2015,659.75
Bath & North East Somerset Council,80483033,LM8,Home Care,P03,Wellbeing,KUMARI HOMECARE SERVICE,03/07/2015,816.38
Bath & North East Somerset Council,80483062,LM8,Home Care,P03,Wellbeing,KUMARI HOMECARE SERVICE,03/07/2015,816.38
Bath & North East Somerset Council,80483032,LM8,Home Care,P03,Wellbeing,KUMARI HOMECARE SERVICE,03/07/2015,1007.36
Bath & North East Somerset Council,80483040,LM8,Home Care,P03,Wellbeing,KUMARI HOMECARE SERVICE,03/07/2015,1007.36
Bath & North East Somerset Council,10781370,LK2,Licences (non IT),P07,Community Resources,PHONOGRAPHIC PERFORMANCE LTD,03/07/2015,157.99
Bath & North East Somerset Council,10781370,LK2,Licences (non IT),P06,Sustainable Development,PHONOGRAPHIC PERFORMANCE LTD,03/07/2015,160.9
Bath & North East Somerset Council,80482880,LA7,Purchases for Resale,P06,Sustainable Development,GRANTHAM BOOK SERVICES LTD,03/07/2015,162.3
Bath & North East Somerset Council,80482980,LK4,Nursery/Childcare Vouchers,P02,"Early Years, Children & Youth",REDACTED,03/07/2015,552.5
Bath & North East Somerset Council,10781370,LK2,Licences (non IT),P06,Sustainable Development,PHONOGRAPHIC PERFORMANCE LTD,03/07/2015,193.23
Bath & North East Somerset Council,80482915,LA7,Purchases for Resale,P06,Sustainable Development,F H SWIFT,03/07/2015,226.8
Bath & North East Somerset Council,80482880,LA7,Purchases for Resale,P06,Sustainable Development,GRANTHAM BOOK SERVICES LTD,03/07/2015,305.69
Bath & North East Somerset Council,80482903,LA7,Purchases for Resale,P06,Sustainable Development,THE BAY TREE FOOD CO LTD,03/07/2015,316
Bath & North East Somerset Council,80482895,LA7,Purchases for Resale,P06,Sustainable Development,NATURAL PRODUCTS LTD,03/07/2015,428.4
Bath & North East Somerset Council,10781430,LV2,Contributions to Organisations,Z98,West of England Partnership,NINE FEET TALL LIMITED,03/07/2015,5638.3
Bath & North East Somerset Council,80482999,LM8,Home Care,P03,Wellbeing,NURSING SOLUTIONS LIMITED,03/07/2015,1552
Bath & North East Somerset Council,80482885,LA7,Purchases for Resale,P06,Sustainable Development,SOMERSET TOILETRY COMPANY LTD,03/07/2015,448.5
Bath & North East Somerset Council,10781258,LA5,Materials,P05,Neighbourhoods,RENTEQ TM (SOUTH WEST) LTD,03/07/2015,450
Bath & North East Somerset Council,80482978,LK4,Nursery/Childcare Vouchers,P02,"Early Years, Children & Youth",ORCHARD LEA NURSERY LTD [KEYNSHAM],03/07/2015,660
Bath & North East Somerset Council,80482886,LA7,Purchases for Resale,P06,Sustainable Development,ST NICOLAS,03/07/2015,503.4
Bath & North East Somerset Council,80482906,LA7,Purchases for Resale,P06,Sustainable Development,HARPER COLLINS PUBLISHERS,03/07/2015,521.45
Bath & North East Somerset Council,80482903,LA7,Purchases for Resale,P06,Sustainable Development,THE BAY TREE FOOD CO LTD,03/07/2015,528
Bath & North East Somerset Council,80482984,LK4,Nursery/Childcare Vouchers,P02,"Early Years, Children & Youth",CLUTTON PLAYGROUP,03/07/2015,537
Bath & North East Somerset Council,10781383,LK1,Fees,P06,Sustainable Development,CAROLINE HOMFRAY,03/07/2015,544.94
Bath & North East Somerset Council,80482936,LK4,Nursery/Childcare Vouchers,P02,"Early Years, Children & Youth",OAK TREE DAY NURSERY,03/07/2015,562.5
Bath & North East Somerset Council,80482894,LA7,Purchases for Resale,P06,Sustainable Development,HELEN COOMBE,03/07/2015,576
Bath & North East Somerset Council,80482902,LA7,Purchases for Resale,P06,Sustainable Development,TYMEAGAIN LTD,03/07/2015,595
Bath & North East Somerset Council,80482878,LA7,Purchases for Resale,P06,Sustainable Development,ANCESTORS OF DOVER LTD,03/07/2015,600
Bath & North East Somerset Council,10781377,HV5,Refuse Collection,P06,Sustainable Development,SITA UK LTD,03/07/2015,601.64
Bath & North East Somerset Council,80482889,LA7,Purchases for Resale,P06,Sustainable Development,AHMAD TEA LIMITED,03/07/2015,605.04
Bath & North East Somerset Council,10781235,3G1,Grants/Advances,P03,Wellbeing,PRACTICAL BATHING LTD,03/07/2015,1095
Bath & North East Somerset Council,10781378,HV5,Refuse Collection,P06,Sustainable Development,SITA UK LTD,03/07/2015,606.85
Bath & North East Somerset Council,80482970,LK4,Nursery/Childcare Vouchers,P02,"Early Years, Children & Youth",TRINITY C OF E ACADEMY TRUST,03/07/2015,621.84
Bath & North East Somerset Council,10779416,LH2,Advertising,P05,Neighbourhoods,LOCAL WORLD LTD,03/07/2015,625
Bath & North East Somerset Council,10781287,LH2,Advertising,P09,Homes & Planning,LOCAL WORLD LTD,03/07/2015,626.32
Bath & North East Somerset Council,80482898,LA7,Purchases for Resale,P06,Sustainable Development,SOMERSET TOILETRY COMPANY LTD,03/07/2015,628.5
Bath & North East Somerset Council,10781068,LP5,Software Support,P07,Community Resources,M SCIENCE LTD,03/07/2015,635.95
Bath & North East Somerset Council,80482932,LK4,Nursery/Childcare Vouchers,P02,"Early Years, Children & Youth",KING EDWARDS PRE PREP SCHOOL,03/07/2015,644.4
Bath & North East Somerset Council,80483006,LM8,Home Care,P03,Wellbeing,ROBERT SAGE LTD T/A PRESTIGE NURSING PAYROLL,03/07/2015,1338.4
Bath & North East Somerset Council,10781254,LA5,Materials,P05,Neighbourhoods,MR L D TAYLOR T/A AQUARIUS SOLUTIONS,03/07/2015,647.6
Bath & North East Somerset Council,10781401,KA3,Fuel,P05,Neighbourhoods,FORD FUELS LTD,03/07/2015,673.92
Bath & North East Somerset Council,80482974,LK4,Nursery/Childcare Vouchers,P02,"Early Years, Children & Youth",BO PEEP PRE SCHOOL,03/07/2015,698.1
Bath & North East Somerset Council,80482939,LK4,Nursery/Childcare Vouchers,P02,"Early Years, Children & Youth",SNAPDRAGONS NURSERY,03/07/2015,717.6
Bath & North East Somerset Council,80482896,LA7,Purchases for Resale,P06,Sustainable Development,ROMAN CANDLES OF BATH LTD,03/07/2015,718.56
Bath & North East Somerset Council,80482897,LA7,Purchases for Resale,P06,Sustainable Development,ST JUSTIN CORNWALL LIMITED,03/07/2015,723.6
Bath & North East Somerset Council,10781323,LV2,Contributions to Organisations,Z98,West of England Partnership,SAVILLE'S FREIGHTS LTD,03/07/2015,5077.67
Bath & North East Somerset Council,80483064,LL3,Supported Living,P03,Wellbeing,SELBORNE CARE LTD,03/07/2015,149.5
Bath & North East Somerset Council,80483064,LL3,Supported Living,P03,Wellbeing,SELBORNE CARE LTD,03/07/2015,149.5
Bath & North East Somerset Council,80483064,LL3,Supported Living,P03,Wellbeing,SELBORNE CARE LTD,03/07/2015,149.5
Bath & North East Somerset Council,80483064,LL3,Supported Living,P03,Wellbeing,SELBORNE CARE LTD,03/07/2015,209.5
Bath & North East Somerset Council,80483063,LL3,Supported Living,P03,Wellbeing,SELBORNE CARE LTD,03/07/2015,299
Bath & North East Somerset Council,80483063,LL3,Supported Living,P03,Wellbeing,SELBORNE CARE LTD,03/07/2015,329
Bath & North East Somerset Council,80483063,LL3,Supported Living,P03,Wellbeing,SELBORNE CARE LTD,03/07/2015,329
Bath & North East Somerset Council,80483063,LL3,Supported Living,P03,Wellbeing,SELBORNE CARE LTD,03/07/2015,329
Bath & North East Somerset Council,80482975,LK4,Nursery/Childcare Vouchers,P02,"Early Years, Children & Youth",SNAPDRAGONS NURSERIES (KEYNHSAM) LTD,03/07/2015,2203.4
Bath & North East Somerset Council,80482949,LK4,Nursery/Childcare Vouchers,P02,"Early Years, Children & Youth",ST ANDREWS PRIMARY SCHOOL,03/07/2015,1858.4
Bath & North East Somerset Council,80482955,LK4,Nursery/Childcare Vouchers,P02,"Early Years, Children & Youth",ST SAVIOURS C OF E INFANTS SCHOOL,03/07/2015,761.76
Bath & North East Somerset Council,10781423,LA1,Equipment Purchase,P04,Leader,HYPERTEC LTD,03/07/2015,828.05
Bath & North East Somerset Council,80482900,LA7,Purchases for Resale,P06,Sustainable Development,TIMOTHY RICHARDS ARCHITECTURAL FINE ARTS COMM LTD,03/07/2015,836
Bath & North East Somerset Council,80482988,LM8,Home Care,P03,Wellbeing,STAR HOME CARE SERVICES LIMITED,03/07/2015,524.03
Bath & North East Somerset Council,10781617,LK1,Fees,P02,"Early Years, Children & Youth",HEDLEY HALL TRAINING,03/07/2015,880
Bath & North East Somerset Council,10781316,LF6,Subscriptions,P07,Community Resources,CIPFA BUSINESS LTD,03/07/2015,905
Bath & North East Somerset Council,80482953,LK4,Nursery/Childcare Vouchers,P02,"Early Years, Children & Youth",YMCA DAY NURSERY,03/07/2015,975
Bath & North East Somerset Council,80482958,LK4,Nursery/Childcare Vouchers,P02,"Early Years, Children & Youth",STEPPING STONES PLAYGROUP,03/07/2015,1064.44
Bath & North East Somerset Council,80482968,LK4,Nursery/Childcare Vouchers,P02,"Early Years, Children & Youth",LITTLE WILLOW DAY NURSERY,03/07/2015,1072.8
Bath & North East Somerset Council,80482901,LA7,Purchases for Resale,P06,Sustainable Development,TOWER MINT LTD,03/07/2015,1117.5
Bath & North East Somerset Council,80482942,LK4,Nursery/Childcare Vouchers,P02,"Early Years, Children & Youth",STANTON DREW & PENSFORD PRESCH,03/07/2015,1133.07
Bath & North East Somerset Council,80482959,LK4,Nursery/Childcare Vouchers,P02,"Early Years, Children & Youth",SNAPDRAGONS NURSERY,03/07/2015,1150.2
Bath & North East Somerset Council,10781388,LK1,Fees,P06,Sustainable Development,CAROLINE WHITEHEAD,03/07/2015,1200
Bath & North East Somerset Council,10781523,EA1,Training,P02,"Early Years, Children & Youth",RACHEL RINGHAM LTD,03/07/2015,1200
Bath & North East Somerset Council,80482904,LA7,Purchases for Resale,P06,Sustainable Development,CINDERELA B LTD,03/07/2015,1229.6
Bath & North East Somerset Council,80482915,LA7,Purchases for Resale,P06,Sustainable Development,F H SWIFT,03/07/2015,1357.2
Bath & North East Somerset Council,10781615,LE2,Statementing Payment to other LEAs/Schools,P02,"Early Years, Children & Youth",SOMERSET COUNTY COUNCIL,03/07/2015,1507.5
Bath & North East Somerset Council,10781533,EA1,Training,P07,Community Resources,ASTA DEVELOPMENT PLC,03/07/2015,1548.5
Bath & North East Somerset Council,10781514,LK1,Fees,P02,"Early Years, Children & Youth",ASSOCIATION  OF DIRECTORS OF CHILDREN'S SERVICES,03/07/2015,1567.5
Bath & North East Somerset Council,80482890,LA7,Purchases for Resale,P06,Sustainable Development,RHODAWN LIMITED T/A BOOKSPEED,03/07/2015,1605.7
Bath & North East Somerset Council,10781520,LK1,Fees,P06,Sustainable Development,METHOD CONSULTING LLP,03/07/2015,1687.5
Bath & North East Somerset Council,80482943,LK4,Nursery/Childcare Vouchers,P02,"Early Years, Children & Youth",SUNFLOWERS NURSERY LTD,03/07/2015,1692.6
Bath & North East Somerset Council,10781410,LK1,Fees,P03,Wellbeing,UK HEALTH FORUM,03/07/2015,1700
Bath & North East Somerset Council,80482888,LA7,Purchases for Resale,P06,Sustainable Development,WESTAIR REPRODUCTIONS LIMITED,03/07/2015,1709.86
Bath & North East Somerset Council,80483061,LL3,Supported Living,P03,Wellbeing,UNITED RESPONSE,03/07/2015,184.98
Bath & North East Somerset Council,80483061,LL3,Supported Living,P03,Wellbeing,UNITED RESPONSE,03/07/2015,184.98
Bath & North East Somerset Council,80483061,LL3,Supported Living,P03,Wellbeing,UNITED RESPONSE,03/07/2015,184.98
Bath & North East Somerset Council,80483061,LL3,Supported Living,P03,Wellbeing,UNITED RESPONSE,03/07/2015,184.98
Bath & North East Somerset Council,80483060,LL3,Supported Living,P03,Wellbeing,UNITED RESPONSE,03/07/2015,1806.1
Bath & North East Somerset Council,80483060,LL3,Supported Living,P03,Wellbeing,UNITED RESPONSE,03/07/2015,1806.1
Bath & North East Somerset Council,80483060,LL3,Supported Living,P03,Wellbeing,UNITED RESPONSE,03/07/2015,1806.1
Bath & North East Somerset Council,80483060,LL3,Supported Living,P03,Wellbeing,UNITED RESPONSE,03/07/2015,1806.1
Bath & North East Somerset Council,10781432,LV2,Contributions to Organisations,Z98,West of England Partnership,VIPER SUBSEA TECHNOLOGY LTD,03/07/2015,25225
Bath & North East Somerset Council,10781432,LV2,Contributions to Organisations,Z98,West of England Partnership,VIPER SUBSEA TECHNOLOGY LTD,03/07/2015,47990
Bath & North East Somerset Council,10781315,LV2,Contributions to Organisations,Z98,West of England Partnership,WE CARE AND REPAIR ENTERPRISES LTD,03/07/2015,1679.29
Bath & North East Somerset Council,10781359,HK1,Highway Maintenance,P01,Transport,SAKNEL HIGHWAYS STRUCTURES CONTRACTOR,03/07/2015,1925
Bath & North East Somerset Council,10781385,LA3,Equipment Maintenance,P06,Sustainable Development,MOBYDOC,03/07/2015,2000
Bath & North East Somerset Council,10781359,HK1,Highway Maintenance,P01,Transport,SAKNEL HIGHWAYS STRUCTURES CONTRACTOR,03/07/2015,2277.27
Bath & North East Somerset Council,10781516,LK1,Fees,P05,Neighbourhoods,BOLDSCAN LTD,03/07/2015,2320.64
Bath & North East Somerset Council,10781135,HA4,Responsive Maintenance PCB,P07,Community Resources,N K S CONTRACTS LTD,03/07/2015,2604.37
Bath & North East Somerset Council,80482887,LA7,Purchases for Resale,P06,Sustainable Development,UNEX DESIGNS LTD,03/07/2015,3167.35
Bath & North East Somerset Council,10778549,LJ1,Consultants Fees,P07,Community Resources,BEACHCROFT LLP OFFICE ACCOUNT,03/07/2015,3400
Bath & North East Somerset Council,10781437,LN4,Mobile Phones,P07,Community Resources,ORANGE PERSONAL COMMUNICATION,03/07/2015,3530.5
Bath & North East Somerset Council,80482947,LK4,Nursery/Childcare Vouchers,P02,"Early Years, Children & Youth",TWERTON INFANT SCHOOL,03/07/2015,4102.8
Bath & North East Somerset Council,10781242,LP3,Hardware Lease,P04,Leader,CANON (UK) LTD,03/07/2015,4256.25
Bath & North East Somerset Council,80482930,LK4,Nursery/Childcare Vouchers,P02,"Early Years, Children & Youth",TIDDLERS DAY NURSERY LTD,03/07/2015,4474.5
Bath & North East Somerset Council,10781425,3E6,IT Software,P07,Community Resources,NEXUS OPEN SYSTEMS LTD,03/07/2015,4500
Bath & North East Somerset Council,10781437,LN4,Mobile Phones,P04,Leader,ORANGE PERSONAL COMMUNICATION,03/07/2015,7362.18
Bath & North East Somerset Council,10781439,LP5,Software Support,P04,Leader,CETUS SOLUTIONS LIMITED,03/07/2015,9340
Bath & North East Somerset Council,10781489,DB1,Agency Staff,P01,Transport,APSE,03/07/2015,10400
Bath & North East Somerset Council,10781371,LJ4,Contracts,P06,Sustainable Development,BATH ARTS WORKSHOP LTD,03/07/2015,12513.6
Bath & North East Somerset Council,10780574,LJ1,Consultants Fees,P07,Community Resources,PRICE WATERHOUSE COOPERS,03/07/2015,16655.5
Bath & North East Somerset Council,10781525,LK1,Fees,P03,Wellbeing,NHS BATH & NORTH EAST SOMERSET CCG,03/07/2015,19551.48
Bath & North East Somerset Council,10780665,LM1,Volunt Homes Placements Top/Up,P02,"Early Years, Children & Youth",KEEPING KIDS COMPANY,03/07/2015,20000
Bath & North East Somerset Council,10781526,LK1,Fees,P03,Wellbeing,NHS BATH & NORTH EAST SOMERSET CCG,03/07/2015,21034.97
Bath & North East Somerset Council,10781387,LH5,Marketing,P06,Sustainable Development,26 MARKETING,03/07/2015,22694.62
Bath & North East Somerset Council,10781234,LV3,Commissioned Services,P09,Homes & Planning,WE CARE & REPAIR LTD,03/07/2015,25000
Bath & North East Somerset Council,10781524,LK1,Fees,P03,Wellbeing,NHS BATH & NORTH EAST SOMERSET CCG,03/07/2015,33873.82
Bath & North East Somerset Council,10781449,LJ4,Contracts,P02,"Early Years, Children & Youth",DEVELOPING HEALTH AND INDEPENDENCE,03/07/2015,56214.5
Bath & North East Somerset Council,10781433,LP5,Software Support,P04,Leader,CETUS SOLUTIONS LIMITED,03/07/2015,61700
Bath & North East Somerset Council,10781444,LJ4,Contracts,P02,"Early Years, Children & Youth",SOUTHSIDE FAMILY PROJECT,03/07/2015,83000
Bath & North East Somerset Council,10780993,LA1,Equipment Purchase,P05,Neighbourhoods,TERBERG MATEC UK LTD,03/07/2015,102150
Bath & North East Somerset Council,10782044,HK1,Highway Maintenance,P01,Transport,SAKNEL HIGHWAYS STRUCTURES CONTRACTOR,04/07/2015,2892.46
Bath & North East Somerset Council,10781461,LV1,Grants to Voluntary Bodies,P01,Transport,AGE UK BATH & N E SOMERSET,06/07/2015,1960
Bath & North East Somerset Council,10781416,LW9,Other Expenses,P02,"Early Years, Children & Youth",BATH & NORTH EAST SOMERSET COUNCIL - OFFICE SERVIC,06/07/2015,33.33
Bath & North East Somerset Council,10781416,LW9,Other Expenses,P02,"Early Years, Children & Youth",BATH & NORTH EAST SOMERSET COUNCIL - OFFICE SERVIC,06/07/2015,2638.3
Bath & North East Somerset Council,10781480,LV2,Contributions to Organisations,P06,Sustainable Development,BATH ARTISTS STUDIOS,06/07/2015,4000
Bath & North East Somerset Council,10781465,LV1,Grants to Voluntary Bodies,P01,Transport,CHEW VALLEY COMMUNITY TRANSPORT,06/07/2015,1125
Bath & North East Somerset Council,10781644,LV2,Contributions to Organisations,Z98,West of England Partnership,OAK TREE MOBILITY LTD,06/07/2015,50000
Bath & North East Somerset Council,10781635,HV3,Window Cleaning,P07,Community Resources,ABC WINDOW CLEANING SERVICES,06/07/2015,463.1
Bath & North East Somerset Council,10781390,LK6,Photography/Artworks/Graphics,P06,Sustainable Development,ACOUSTIGUIDE LTD,06/07/2015,480
Bath & North East Somerset Council,10781606,LH2,Advertising,P01,Transport,HEMMING GROUP LTD,06/07/2015,500
Bath & North East Somerset Council,10781332,EA1,Training,P05,Neighbourhoods,INSTITUTE OF LICENSING (EVENTS LTD),06/07/2015,500
Bath & North East Somerset Council,10781679,LH2,Advertising,P01,Transport,TMP (UK) LTD,06/07/2015,518.19
Bath & North East Somerset Council,10781517,HA4,Responsive Maintenance PCB,P07,Community Resources,MANNINGS FACILITIES MANAGEMENT LTD,06/07/2015,525.46
Bath & North East Somerset Council,10781536,HA4,Responsive Maintenance PCB,P07,Community Resources,MANNINGS FACILITIES MANAGEMENT LTD,06/07/2015,543.7
Bath & North East Somerset Council,10781613,KE3,Transport & Travel,P07,Community Resources,STEVE WARREN TRANSPORT SERVICES LTD,06/07/2015,550
Bath & North East Somerset Council,10781510,HA4,Responsive Maintenance PCB,P07,Community Resources,MANNINGS FACILITIES MANAGEMENT LTD,06/07/2015,642.65
Bath & North East Somerset Council,10781534,DB1,Agency Staff,P09,Homes & Planning,HAYS CONSTRUCTON + PROPERTY,06/07/2015,651.58
Bath & North East Somerset Council,10781502,HA4,Responsive Maintenance PCB,P07,Community Resources,MANNINGS FACILITIES MANAGEMENT LTD,06/07/2015,685
Bath & North East Somerset Council,10781393,HP6,Water Charges,P06,Sustainable Development,BWBSL,06/07/2015,696.93
Bath & North East Somerset Council,10781574,LJ4,Contracts,P01,Transport,STEVE WARREN TRANSPORT SERVICES LTD,06/07/2015,711
Bath & North East Somerset Council,10781491,HA4,Responsive Maintenance PCB,P07,Community Resources,MANNINGS FACILITIES MANAGEMENT LTD,06/07/2015,726.66
Bath & North East Somerset Council,10781519,HA4,Responsive Maintenance PCB,P07,Community Resources,MANNINGS FACILITIES MANAGEMENT LTD,06/07/2015,739.23
Bath & North East Somerset Council,10781572,LJ4,Contracts,P01,Transport,STEVE WARREN TRANSPORT SERVICES LTD,06/07/2015,756
Bath & North East Somerset Council,10781071,LA1,Equipment Purchase,P05,Neighbourhoods,J V BARRETT & CO LTD,06/07/2015,775.02
Bath & North East Somerset Council,10781328,LV2,Contributions to Organisations,Z98,West of England Partnership,SLENDERGLAZE LTD,06/07/2015,6600
Bath & North East Somerset Council,10781264,LA5,Materials,P05,Neighbourhoods,BRYAN G BISHOP,06/07/2015,813.1
Bath & North East Somerset Council,10781467,LV1,Grants to Voluntary Bodies,P01,Transport,ST PHILLIPS COMMUNITY MINIBUS,06/07/2015,1244.5
Bath & North East Somerset Council,10781666,LJ4,Contracts,P03,Wellbeing,SIRONA CARE SERVICES LTD,06/07/2015,825.08
Bath & North East Somerset Council,10781627,LJ1,Consultants Fees,P02,"Early Years, Children & Youth",D R NICHOLAS EDUCATIONAL LTD,06/07/2015,900
Bath & North East Somerset Council,10781500,HA4,Responsive Maintenance PCB,P07,Community Resources,MANNINGS FACILITIES MANAGEMENT LTD,06/07/2015,924.26
Bath & North East Somerset Council,10781468,LV1,Grants to Voluntary Bodies,P01,Transport,SWAN ADVICE NETWORK,06/07/2015,3969
Bath & North East Somerset Council,10781494,HA4,Responsive Maintenance PCB,P07,Community Resources,MANNINGS FACILITIES MANAGEMENT LTD,06/07/2015,982.47
Bath & North East Somerset Council,10781548,LJ4,Contracts,P01,Transport,HIGHWAY TAXIS & TRAVEL,06/07/2015,990
Bath & North East Somerset Council,10781499,HA4,Responsive Maintenance PCB,P07,Community Resources,MANNINGS FACILITIES MANAGEMENT LTD,06/07/2015,1102
Bath & North East Somerset Council,10781469,LK1,Fees,P06,Sustainable Development,MINES RESCUE SERVICE LTD,06/07/2015,1121.05
Bath & North East Somerset Council,10781579,LJ4,Contracts,P01,Transport,EAST BRISTOL CARS,06/07/2015,1260
Bath & North East Somerset Council,10781528,HK1,Highway Maintenance,P01,Transport,SAKNEL HIGHWAYS STRUCTURES CONTRACTOR,06/07/2015,1495
Bath & North East Somerset Council,10781541,3F7,External Fees,P06,Sustainable Development,BBA ARCHITECTS,06/07/2015,1500
Bath & North East Somerset Council,10781457,LJ1,Consultants Fees,P07,Community Resources,SAVILLS (L&P) LIMITED,06/07/2015,1500
Bath & North East Somerset Council,10781336,HP6,Water Charges,P05,Neighbourhoods,BWBSL,06/07/2015,1574.9
Bath & North East Somerset Council,10781578,LJ4,Contracts,P01,Transport,TRAVELBILLITY LTD,06/07/2015,1650
Bath & North East Somerset Council,10781586,LJ4,Contracts,P01,Transport,MR M L BRACEY T/A A B M MINIBUSES,06/07/2015,1689.6
Bath & North East Somerset Council,10781585,LJ4,Contracts,P01,Transport,MR M L BRACEY T/A A B M MINIBUSES,06/07/2015,1701.48
Bath & North East Somerset Council,10781486,LJ4,Contracts,P01,Transport,PLUTO ENTERPRISES LTD T/A A.F.C. TAXIS,06/07/2015,1725
Bath & North East Somerset Council,10781604,LK1,Fees,P02,"Early Years, Children & Youth",SIRONA CARE SERVICES LTD,06/07/2015,1764
Bath & North East Somerset Council,10781657,LJ4,Contracts,P03,Wellbeing,SIRONA CARE SERVICES LTD,06/07/2015,1794.5
Bath & North East Somerset Council,10781592,3F7,External Fees,P02,"Early Years, Children & Youth",BBA ARCHITECTS,06/07/2015,1808
Bath & North East Somerset Council,10781603,LK1,Fees,P02,"Early Years, Children & Youth",SIRONA CARE SERVICES LTD,06/07/2015,1911
Bath & North East Somerset Council,10781556,LJ4,Contracts,P01,Transport,JASON KING LTD,06/07/2015,1932
Bath & North East Somerset Council,10781199,LJ1,Consultants Fees,P03,Wellbeing,ACTION FIRST IPEOPLE LIMITED,06/07/2015,1975
Bath & North East Somerset Council,10781628,LJ1,Consultants Fees,P02,"Early Years, Children & Youth",D R NICHOLAS EDUCATIONAL LTD,06/07/2015,2025
Bath & North East Somerset Council,10781391,AC2,Budgeted Savings,P06,Sustainable Development,SEARCY TANSLEY & CO LTD,06/07/2015,2058.24
Bath & North East Somerset Council,10781551,LJ4,Contracts,P01,Transport,JASON KING LTD,06/07/2015,2226
Bath & North East Somerset Council,10781553,LJ4,Contracts,P01,Transport,JASON KING LTD,06/07/2015,2310
Bath & North East Somerset Council,10781625,HP3,Room Hire Charges,P02,"Early Years, Children & Youth",HAYESFIELD SCHOOL,06/07/2015,2375
Bath & North East Somerset Council,10781487,LJ4,Contracts,P01,Transport,PLUTO ENTERPRISES LTD T/A A.F.C. TAXIS,06/07/2015,2415
Bath & North East Somerset Council,10781656,HE5,Security of Premises,P05,Neighbourhoods,S P WATKINS,06/07/2015,2425
Bath & North East Somerset Council,10781574,LJ4,Contracts,P01,Transport,STEVE WARREN TRANSPORT SERVICES LTD,06/07/2015,2860
Bath & North East Somerset Council,10781342,LJ4,Contracts,P06,Sustainable Development,DEREK STUART CLARK,06/07/2015,3560.48
Bath & North East Somerset Council,10781673,LJ4,Contracts,P03,Wellbeing,SIRONA CARE SERVICES LTD,06/07/2015,3707.5
Bath & North East Somerset Council,10781547,LJ4,Contracts,P01,Transport,GLENVIC COACHES,06/07/2015,3740
Bath & North East Somerset Council,10781674,LJ4,Contracts,P03,Wellbeing,SIRONA CARE SERVICES LTD,06/07/2015,3750
Bath & North East Somerset Council,10781548,LJ4,Contracts,P01,Transport,HIGHWAY TAXIS & TRAVEL,06/07/2015,3907.64
Bath & North East Somerset Council,10781528,HK1,Highway Maintenance,P01,Transport,SAKNEL HIGHWAYS STRUCTURES CONTRACTOR,06/07/2015,4033
Bath & North East Somerset Council,10781658,LJ4,Contracts,P03,Wellbeing,SIRONA CARE SERVICES LTD,06/07/2015,4316.25
Bath & North East Somerset Council,10781453,LN4,Mobile Phones,P04,Leader,VODAFONE LIMITED,06/07/2015,5417.24
Bath & North East Somerset Council,10781424,3E5,PCB IT Hardware,P07,Community Resources,PROXIMITY COMMUNICATIONS PLC,06/07/2015,5897
Bath & North East Somerset Council,10781688,LA3,Equipment Maintenance,P05,Neighbourhoods,WESSEX HYDRAULICS SERVICES,06/07/2015,5952
Bath & North East Somerset Council,10781668,LJ4,Contracts,P03,Wellbeing,SIRONA CARE SERVICES LTD,06/07/2015,7068.5
Bath & North East Somerset Council,10781580,LJ4,Contracts,P01,Transport,S. J. & J M MUNDEN T/A GUYAN MINI BUSES,06/07/2015,9733.48
Bath & North East Somerset Council,10781582,LJ4,Contracts,P01,Transport,MINIBUS TRAVEL,06/07/2015,9799.12
Bath & North East Somerset Council,10781574,LJ4,Contracts,P01,Transport,STEVE WARREN TRANSPORT SERVICES LTD,06/07/2015,10620
Bath & North East Somerset Council,10781319,LJ2,Legal Fees,P07,Community Resources,BEVAN BRITTAN,06/07/2015,10866.67
Bath & North East Somerset Council,10781643,LJ4,Contracts,P02,"Early Years, Children & Youth",GLOBAL MEDIATION,06/07/2015,11250
Bath & North East Somerset Council,10781281,LK1,Fees,P02,"Early Years, Children & Youth",Frontline Data Ltd,06/07/2015,11995
Bath & North East Somerset Council,10781659,LJ4,Contracts,P03,Wellbeing,SIRONA CARE SERVICES LTD,06/07/2015,12692.5
Bath & North East Somerset Council,10781464,LV1,Grants to Voluntary Bodies,P01,Transport,BATH COMMUNITY TRANSPORT,06/07/2015,12938.5
Bath & North East Somerset Council,10781545,LJ4,Contracts,P01,Transport,CENTURION TRAVEL LTD,06/07/2015,13794.9
Bath & North East Somerset Council,10781546,LJ4,Contracts,P01,Transport,FILERS COACHES,06/07/2015,15600
Bath & North East Somerset Council,10781473,LV1,Grants to Voluntary Bodies,P01,Transport,KEYNSHAM & DISTRICT DIAL-A-RIDE,06/07/2015,18989
Bath & North East Somerset Council,10781669,LJ4,Contracts,P03,Wellbeing,SIRONA CARE SERVICES LTD,06/07/2015,23412.08
Bath & North East Somerset Council,10781471,LV1,Grants to Voluntary Bodies,P01,Transport,MIDSOMER NORTON & RADSTOCK RING & RIDE,06/07/2015,25737.75
Bath & North East Somerset Council,10781671,LJ4,Contracts,P03,Wellbeing,SIRONA CARE SERVICES LTD,06/07/2015,26055.25
Bath & North East Somerset Council,10781670,LJ4,Contracts,P03,Wellbeing,SIRONA CARE SERVICES LTD,06/07/2015,28529.42
Bath & North East Somerset Council,10781280,LJ3,Other Services to the Council,P07,Community Resources,GRANT THORNTON UK LLP,06/07/2015,41009.75
Bath & North East Somerset Council,10781350,3F7,External Fees,P07,Community Resources,ERH COMMUNICATIONS LTD,06/07/2015,82127.15
Bath & North East Somerset Council,80483243,LM2,Foster Carer Allowances,P02,"Early Years, Children & Youth",REDACTED,08/07/2015,50
Bath & North East Somerset Council,80483243,LM2,Foster Carer Allowances,P02,"Early Years, Children & Youth",REDACTED,08/07/2015,125
Bath & North East Somerset Council,80483243,LM4,Respite Care,P02,"Early Years, Children & Youth",REDACTED,08/07/2015,170.57
Bath & North East Somerset Council,80483243,LM4,Respite Care,P02,"Early Years, Children & Youth",REDACTED,08/07/2015,170.57
Bath & North East Somerset Council,80483243,LM2,Foster Carer Allowances,P02,"Early Years, Children & Youth",REDACTED,08/07/2015,246.44
Bath & North East Somerset Council,80483269,LL5,Adoption Allowances,P02,"Early Years, Children & Youth",REDACTED,08/07/2015,729.22
Bath & North East Somerset Council,80483269,LL5,Adoption Allowances,P02,"Early Years, Children & Youth",REDACTED,08/07/2015,743.1
Bath & North East Somerset Council,10781479,LV2,Contributions to Organisations,P06,Sustainable Development,BATH ARTISTS STUDIOS,08/07/2015,1000
Bath & North East Somerset Council,80480365,LL3,Supported Living,P03,Wellbeing,Bath Ethnic Minority Senior Citizens Association,08/07/2015,2684.93
Bath & North East Somerset Council,10781715,LV2,Contributions to Organisations,Z98,West of England Partnership,BEACH BAKER PROFESSIONAL RECRUITMENT LTD,08/07/2015,1568.82
Bath & North East Somerset Council,10781717,LV2,Contributions to Organisations,Z98,West of England Partnership,BEACH BAKER PROFESSIONAL RECRUITMENT LTD,08/07/2015,5147.7
Bath & North East Somerset Council,10781544,EA1,Training,P07,Community Resources,BPP PROFESSIONAL EDUCATION,08/07/2015,6
Bath & North East Somerset Council,10781841,LV2,Contributions to Organisations,Z98,West of England Partnership,EUNOMIA RESEARCH & CONSULTING LTD,08/07/2015,13504
Bath & North East Somerset Council,80483253,LK1,Fees,P09,Homes & Planning,REDACTED,08/07/2015,75
Bath & North East Somerset Council,80483253,LK1,Fees,P09,Homes & Planning,REDACTED,08/07/2015,1018.75
Bath & North East Somerset Council,10781843,LJ1,Consultants Fees,P09,Homes & Planning,PLANNING SERVICES (UK) LTD,08/07/2015,110
Bath & North East Somerset Council,10781776,LV2,Contributions to Organisations,Z98,West of England Partnership,HYDRATE FOR HEALTH LTD,08/07/2015,14976.08
Bath & North East Somerset Council,10781564,LJ4,Contracts,P01,Transport,ROAD RUNNER TAXI BUSES,08/07/2015,128.79
Bath & North East Somerset Council,80483245,LM2,Foster Carer Allowances,P02,"Early Years, Children & Youth",REDACTED,08/07/2015,100
Bath & North East Somerset Council,80483245,LM2,Foster Carer Allowances,P02,"Early Years, Children & Youth",REDACTED,08/07/2015,325.46
Bath & North East Somerset Council,80483245,LM2,Foster Carer Allowances,P02,"Early Years, Children & Youth",REDACTED,08/07/2015,325.46
Bath & North East Somerset Council,80483263,LM2,Foster Carer Allowances,P02,"Early Years, Children & Youth",REDACTED,08/07/2015,50
Bath & North East Somerset Council,80483263,LM2,Foster Carer Allowances,P02,"Early Years, Children & Youth",REDACTED,08/07/2015,125
Bath & North East Somerset Council,80483263,LM2,Foster Carer Allowances,P02,"Early Years, Children & Youth",REDACTED,08/07/2015,202.58
Bath & North East Somerset Council,80483263,LM2,Foster Carer Allowances,P02,"Early Years, Children & Youth",REDACTED,08/07/2015,376
Bath & North East Somerset Council,10781848,LJ2,Legal Fees,P09,Homes & Planning,39 ESSEX STREET LLP PFA,08/07/2015,280
Bath & North East Somerset Council,80483246,LM2,Foster Carer Allowances,P02,"Early Years, Children & Youth",REDACTED,08/07/2015,100
Bath & North East Somerset Council,80483246,LM2,Foster Carer Allowances,P02,"Early Years, Children & Youth",REDACTED,08/07/2015,285.72
Bath & North East Somerset Council,80483246,LM2,Foster Carer Allowances,P02,"Early Years, Children & Youth",REDACTED,08/07/2015,285.72
Bath & North East Somerset Council,80483231,LM2,Foster Carer Allowances,P02,"Early Years, Children & Youth",REDACTED,08/07/2015,285.72
Bath & North East Somerset Council,80483231,LM2,Foster Carer Allowances,P02,"Early Years, Children & Youth",REDACTED,08/07/2015,285.72
Bath & North East Somerset Council,80483231,LM2,Foster Carer Allowances,P02,"Early Years, Children & Youth",REDACTED,08/07/2015,826
Bath & North East Somerset Council,80483231,LM2,Foster Carer Allowances,P02,"Early Years, Children & Youth",REDACTED,08/07/2015,826
Bath & North East Somerset Council,80483270,LM2,Foster Carer Allowances,P02,"Early Years, Children & Youth",REDACTED,08/07/2015,405.16
Bath & North East Somerset Council,80483270,LM2,Foster Carer Allowances,P02,"Early Years, Children & Youth",REDACTED,08/07/2015,785.96
Bath & North East Somerset Council,80483242,LM2,Foster Carer Allowances,P02,"Early Years, Children & Youth",REDACTED,08/07/2015,100
Bath & North East Somerset Council,80483242,LM2,Foster Carer Allowances,P02,"Early Years, Children & Youth",REDACTED,08/07/2015,140
Bath & North East Somerset Council,80483242,LM2,Foster Carer Allowances,P02,"Early Years, Children & Youth",REDACTED,08/07/2015,285.72
Bath & North East Somerset Council,80483242,LM2,Foster Carer Allowances,P02,"Early Years, Children & Youth",REDACTED,08/07/2015,430
Bath & North East Somerset Council,10781914,3N7,Misc. Costs,P01,Transport,TMP (UK) LTD,08/07/2015,417.62
Bath & North East Somerset Council,10781930,3N7,Misc. Costs,P01,Transport,TMP (UK) LTD,08/07/2015,417.62
Bath & North East Somerset Council,10781414,HK2,Street Lighting Maintenance,P01,Transport,WESTERN POWER DISTRIBUTION (SO,08/07/2015,426.76
Bath & North East Somerset Council,10781565,HV4,Cleaning Materials,P07,Community Resources,SOUTHSIDE FAMILY PROJECT,08/07/2015,429.06
Bath & North East Somerset Council,10781735,LJ1,Consultants Fees,P09,Homes & Planning,PLANNING SERVICES (UK) LTD,08/07/2015,440
Bath & North East Somerset Council,10781322,3C4,Building Works,P01,Transport,ACS TESTING LTD,08/07/2015,444
Bath & North East Somerset Council,80480367,LL3,Supported Living,P03,Wellbeing,Next Link Domestic Abuse Services,08/07/2015,3331.1
Bath & North East Somerset Council,80480364,LL3,Supported Living,P03,Wellbeing,Next Link Domestic Abuse Services,08/07/2015,5087.7
Bath & North East Somerset Council,10781895,HK1,Highway Maintenance,P01,Transport,GREEN MANTLE (ECOSOPHY) LIMITED,08/07/2015,461.9
Bath & North East Somerset Council,10781977,HV1,Contract Cleaning,P07,Community Resources,PHS GROUP LTD,08/07/2015,470.95
Bath & North East Somerset Council,10781278,LJ3,Other Services to the Council,Z98,West of England Partnership,EXPERIAN LTD,08/07/2015,500
Bath & North East Somerset Council,10781738,LJ1,Consultants Fees,P09,Homes & Planning,CARTER JONAS LLP,08/07/2015,500
Bath & North East Somerset Council,10781946,LJ3,Other Services to the Council,P07,Community Resources,RELYON GUARDING & SECURITY SERVICES,08/07/2015,500
Bath & North East Somerset Council,10781485,LJ2,Legal Fees,P09,Homes & Planning,LANDMARK CHAMBERS LTD,08/07/2015,520
Bath & North East Somerset Council,10779058,HA4,Responsive Maintenance PCB,P07,Community Resources,GREEN COMPLIANCE WATER DIVISION LTD,08/07/2015,524.4
Bath & North East Somerset Council,10781737,LJ4,Contracts,P01,Transport,MARIAN CALINOIU (MARIO PRIVATE HIRE LTD),08/07/2015,550
Bath & North East Somerset Council,10781782,LJ4,Contracts,P01,Transport,KEYNSHAM CARS,08/07/2015,560
Bath & North East Somerset Council,10781998,DB1,Agency Staff,P01,Transport,C R DAWSON LTD,08/07/2015,580.01
Bath & North East Somerset Council,10782071,LK6,Photography/Artworks/Graphics,P06,Sustainable Development,NINEPOINT DESIGN LTD,08/07/2015,585
Bath & North East Somerset Council,10781909,KA2,Running Costs,P05,Neighbourhoods,TENNANT UK CLEANING SOLUTIONS LTD,08/07/2015,586.2
Bath & North East Somerset Council,10779008,HA4,Responsive Maintenance PCB,P07,Community Resources,TYCO FIRE & INTEGRATED SOLUTIONS (UK) LTD,08/07/2015,599
Bath & North East Somerset Council,10781873,LF1,Printing/Design,P05,Neighbourhoods,ST PHILIP & ST JAMES CHURCH,08/07/2015,600
Bath & North East Somerset Council,10781870,LJ4,Contracts,P05,Neighbourhoods,ALLEN FORD,08/07/2015,600.37
Bath & North East Somerset Council,10781840,LV2,Contributions to Organisations,Z98,West of England Partnership,PORTISHEAD ENGINEERING & CONSTRUCTION LTD,08/07/2015,6020.71
Bath & North East Somerset Council,80483227,LM2,Foster Carer Allowances,P02,"Early Years, Children & Youth",REDACTED,08/07/2015,78.57
Bath & North East Somerset Council,80483227,LM2,Foster Carer Allowances,P02,"Early Years, Children & Youth",REDACTED,08/07/2015,110
Bath & North East Somerset Council,80483227,LM2,Foster Carer Allowances,P02,"Early Years, Children & Youth",REDACTED,08/07/2015,224.49
Bath & North East Somerset Council,80483227,LM2,Foster Carer Allowances,P02,"Early Years, Children & Youth",REDACTED,08/07/2015,285.72
Bath & North East Somerset Council,10781731,3E5,PCB IT Hardware,P07,Community Resources,PROXIMITY COMMUNICATIONS PLC,08/07/2015,630
Bath & North East Somerset Council,10781800,3F4,PCB Legal Fees,P07,Community Resources,DAVITT JONES BOULD,08/07/2015,638
Bath & North East Somerset Council,10779057,HA4,Responsive Maintenance PCB,P07,Community Resources,GREEN COMPLIANCE WATER DIVISION LTD,08/07/2015,661.04
Bath & North East Somerset Council,10781895,HK1,Highway Maintenance,P01,Transport,GREEN MANTLE (ECOSOPHY) LIMITED,08/07/2015,664.78
Bath & North East Somerset Council,10781978,LF3,Books & Publications,P04,Leader,CIPFA BUSINESS LTD,08/07/2015,680
Bath & North East Somerset Council,10781532,3C4,Building Works,P01,Transport,NICHOLAS PEARSON ASSOCIATES,08/07/2015,690
Bath & North East Somerset Council,10781795,LJ4,Contracts,P01,Transport,KEYNSHAM CARS,08/07/2015,740
Bath & North East Somerset Council,10781463,3F7,External Fees,P01,Transport,ATG ACCESS LTD,08/07/2015,750
Bath & North East Somerset Council,10779041,HA4,Responsive Maintenance PCB,P07,Community Resources,TYCO FIRE & INTEGRATED SOLUTIONS (UK) LTD,08/07/2015,756.82
Bath & North East Somerset Council,10776745,HA4,Responsive Maintenance PCB,P07,Community Resources,ADT FIRE & SECURITY PLC,08/07/2015,760
Bath & North East Somerset Council,10781938,LM2,Foster Carer Allowances,P02,"Early Years, Children & Youth",SWIIS FOSTER CARE LTD,08/07/2015,765.03
Bath & North East Somerset Council,10781728,3F7,External Fees,P02,"Early Years, Children & Youth",BBA ARCHITECTS,08/07/2015,775.88
Bath & North East Somerset Council,10781317,LF5,Postages,P04,Leader,ROYAL MAIL GROUP PLC,08/07/2015,794.66
Bath & North East Somerset Council,10780272,3N7,Misc. Costs,P02,"Early Years, Children & Youth",BRISTOL STORAGE EQUIPMENT LTD,08/07/2015,881
Bath & North East Somerset Council,10780273,3N7,Misc. Costs,P02,"Early Years, Children & Youth",BRISTOL STORAGE EQUIPMENT LTD,08/07/2015,881
Bath & North East Somerset Council,10781741,LJ4,Contracts,P01,Transport,RUSSELLS OF BATH PRIVATE HIRE,08/07/2015,897.5
Bath & North East Somerset Council,10780071,HA4,Responsive Maintenance PCB,P07,Community Resources,K P WILTON & SON LTD,08/07/2015,902.26
Bath & North East Somerset Council,10782045,KB1,Hire of Vehicles,P05,Neighbourhoods,BURNT TREE VEHICLE HIRE,08/07/2015,938.12
Bath & North East Somerset Council,10782064,LK1,Fees,P06,Sustainable Development,BLAZE NETWORKS LTD,08/07/2015,946.54
Bath & North East Somerset Council,80480380,LL3,Supported Living,P03,Wellbeing,Swan Advocacy Network,08/07/2015,6632.4
Bath & North East Somerset Council,10781878,LA5,Materials,P05,Neighbourhoods,NOMIX ENVIRO,08/07/2015,970
Bath & North East Somerset Council,10781691,LP4,Software Purchase,P02,"Early Years, Children & Youth",LIQUIDLOGIC LIMITED,08/07/2015,1000.63
Bath & North East Somerset Council,10781692,LP4,Software Purchase,P02,"Early Years, Children & Youth",LIQUIDLOGIC LIMITED,08/07/2015,1000.63
Bath & North East Somerset Council,10781544,EA1,Training,P07,Community Resources,BPP PROFESSIONAL EDUCATION,08/07/2015,1020.85
Bath & North East Somerset Council,10781806,KD1,Employees Public Transport,P04,Leader,N WASHBOURNE PERSONAL DRIVER,08/07/2015,1050
Bath & North East Somerset Council,10781631,3F7,External Fees,P07,Community Resources,DTZ SHARED SERVICE CENTRE,08/07/2015,1100
Bath & North East Somerset Council,10781745,LJ4,Contracts,P01,Transport,MARIAN CALINOIU (MARIO PRIVATE HIRE LTD),08/07/2015,1100
Bath & North East Somerset Council,10781752,LJ4,Contracts,P01,Transport,MARIAN CALINOIU (MARIO PRIVATE HIRE LTD),08/07/2015,1100
Bath & North East Somerset Council,10781789,LJ4,Contracts,P01,Transport,KEYNSHAM CARS,08/07/2015,1144
Bath & North East Somerset Council,10781945,LA5,Materials,P05,Neighbourhoods,G WILLIAMS & SONS LTD,08/07/2015,1170.85
Bath & North East Somerset Council,10781843,LJ1,Consultants Fees,P09,Homes & Planning,PLANNING SERVICES (UK) LTD,08/07/2015,1220
Bath & North East Somerset Council,10781808,LJ4,Contracts,P01,Transport,NEED TO GET HOME? TAXI COMPANY,08/07/2015,1309
Bath & North East Somerset Council,10781697,3C4,Building Works,P01,Transport,BRITISH TELECOMMUNICATIONS PLC,08/07/2015,1326.59
Bath & North East Somerset Council,10781844,LJ1,Consultants Fees,P09,Homes & Planning,PLANNING SERVICES (UK) LTD,08/07/2015,1328
Bath & North East Somerset Council,10781848,LJ2,Legal Fees,P09,Homes & Planning,39 ESSEX STREET LLP PFA,08/07/2015,1400
Bath & North East Somerset Council,10781742,LJ4,Contracts,P01,Transport,RUSSELLS OF BATH PRIVATE HIRE,08/07/2015,1474
Bath & North East Somerset Council,10782040,LJ3,Other Services to the Council,Z98,West of England Partnership,OXFORD ECONOMICS LIMITED,08/07/2015,1500
Bath & North East Somerset Council,10780207,HA4,Responsive Maintenance PCB,P07,Community Resources,ADT FIRE & SECURITY PLC,08/07/2015,1504.01
Bath & North East Somerset Council,10781409,LJ1,Consultants Fees,Z98,West of England Partnership,GWE BUSINESS WEST LTD,08/07/2015,1517.33
Bath & North East Somerset Council,10782003,LK1,Fees,P02,"Early Years, Children & Youth",UNIVERSITY OF BRISTOL,08/07/2015,1540
Bath & North East Somerset Council,10781736,LJ1,Consultants Fees,P09,Homes & Planning,PLANNING SERVICES (UK) LTD,08/07/2015,1564
Bath & North East Somerset Council,10781925,LA5,Materials,P05,Neighbourhoods,SOUTH WESTERN REGIONAL LIBRARY SYSTEM,08/07/2015,1582
Bath & North East Somerset Council,10781957,LJ4,Contracts,P01,Transport,BBFI LTD,08/07/2015,1600
Bath & North East Somerset Council,10781438,EC9,Other Employee Expenses,P04,Leader,EAT5STAR LTD,08/07/2015,1620
Bath & North East Somerset Council,10781929,LH2,Advertising,P01,Transport,TMP (UK) LTD,08/07/2015,1658.38
Bath & North East Somerset Council,10781488,LJ1,Consultants Fees,P09,Homes & Planning,STEERS MCGILLAN EVES DESIGN LTD,08/07/2015,1710
Bath & North East Somerset Council,10780720,LA1,Equipment Purchase,P02,"Early Years, Children & Youth",DV247 LTD,08/07/2015,1752.63
Bath & North East Somerset Council,10781341,LJ4,Contracts,P06,Sustainable Development,LORNA OSBON,08/07/2015,1780.24
Bath & North East Somerset Council,10781340,LJ4,Contracts,P06,Sustainable Development,ROBERT HYMAN,08/07/2015,1780.24
Bath & North East Somerset Council,10782105,HA1,Responsive Maintenance,P06,Sustainable Development,SN SCAFFOLDS (BATH),08/07/2015,1820
Bath & North East Somerset Council,10781729,EA1,Training,P06,Sustainable Development,EDMOND SHIPWAY LLP,08/07/2015,1840.79
Bath & North East Somerset Council,10779583,HP8,Service Charges,P07,Community Resources,HILL STREET APARTMENTS LIMITED,08/07/2015,1843.14
Bath & North East Somerset Council,10781748,LJ4,Contracts,P01,Transport,V CARS,08/07/2015,2212
Bath & North East Somerset Council,10781748,LJ4,Contracts,P01,Transport,V CARS,08/07/2015,22738
Bath & North East Somerset Council,10781783,LJ4,Contracts,P01,Transport,KEYNSHAM CARS,08/07/2015,1864.8
Bath & North East Somerset Council,10781470,LV1,Grants to Voluntary Bodies,P01,Transport,WELLOW COMMUNITY BUS GROUP,08/07/2015,1236.25
Bath & North East Somerset Council,10782086,LP1,Hardware Purchase,P06,Sustainable Development,BLAZE NETWORKS LTD,08/07/2015,1950
Bath & North East Somerset Council,10781721,LK1,Fees,P05,Neighbourhoods,GET CYCLING CIC,08/07/2015,1995
Bath & North East Somerset Council,10781733,HA3,Planned Maintenance,P09,Homes & Planning,ZENITH INTERNATIONAL LTD,08/07/2015,2000
Bath & North East Somerset Council,10781807,LJ4,Contracts,P01,Transport,R E & V P JEFFRIES,08/07/2015,2048.76
Bath & North East Somerset Council,10781879,3N7,Misc. Costs,P05,Neighbourhoods,GLASDON UK LIMITED,08/07/2015,2115.36
Bath & North East Somerset Council,10781743,LJ4,Contracts,P01,Transport,MARIAN CALINOIU (MARIO PRIVATE HIRE LTD),08/07/2015,2200
Bath & North East Somerset Council,10781980,LK1,Fees,P06,Sustainable Development,BAT PRO LTD,08/07/2015,2255.06
Bath & North East Somerset Council,10781696,LH2,Advertising,P05,Neighbourhoods,GLOBAL RADIO SERVICES LIMITED,08/07/2015,2295
Bath & North East Somerset Council,10782000,EA1,Training,P02,"Early Years, Children & Youth",UNIVERSITY OF BRISTOL,08/07/2015,2310
Bath & North East Somerset Council,10781919,LM2,Foster Carer Allowances,P02,"Early Years, Children & Youth",FIVE RIVERS CHILD CARE LTD,08/07/2015,2457
Bath & North East Somerset Council,10781482,LK1,Fees,P06,Sustainable Development,BATH FESTIVALS TRUST,08/07/2015,2500
Bath & North East Somerset Council,10781802,LJ4,Contracts,P01,Transport,TOMMY JUKES,08/07/2015,2520
Bath & North East Somerset Council,10781836,LJ4,Contracts,P01,Transport,RADSTOCK TAXIS,08/07/2015,2548
Bath & North East Somerset Council,10781983,LM2,Foster Carer Allowances,P02,"Early Years, Children & Youth",FIVE RIVERS CHILD CARE LTD,08/07/2015,2574
Bath & North East Somerset Council,10781485,LJ2,Legal Fees,P09,Homes & Planning,LANDMARK CHAMBERS LTD,08/07/2015,2600
Bath & North East Somerset Council,10781888,LM1,Volunt Homes Placements Top/Up,P02,"Early Years, Children & Youth",DAVID SHAW,08/07/2015,2750
Bath & North East Somerset Council,10780721,LJ1,Consultants Fees,Z98,West of England Partnership,GWE BUSINESS WEST LTD,08/07/2015,2771.23
Bath & North East Somerset Council,10781877,3F7,External Fees,P07,Community Resources,BBA ARCHITECTS,08/07/2015,2843.75
Bath & North East Somerset Council,10781942,LM2,Foster Carer Allowances,P02,"Early Years, Children & Youth",CHILDRENS FAMILY TRUST,08/07/2015,2860.8
Bath & North East Somerset Council,10781916,LM2,Foster Carer Allowances,P02,"Early Years, Children & Youth",FOSTERING SOLUTIONS LTD,08/07/2015,2924.71
Bath & North East Somerset Council,10780286,HN2,Gas,P07,Community Resources,SOUTHERN ELECTRIC PLC,08/07/2015,2963.85
Bath & North East Somerset Council,10781483,LK1,Fees,P06,Sustainable Development,BATH FESTIVALS TRUST,08/07/2015,3000
Bath & North East Somerset Council,10781941,LM2,Foster Carer Allowances,P02,"Early Years, Children & Youth",CHILDRENS FAMILY TRUST,08/07/2015,3199.5
Bath & North East Somerset Council,10781746,LJ4,Contracts,P01,Transport,CENTURION TRAVEL LTD,08/07/2015,3217.5
Bath & North East Somerset Council,10781448,LM2,Foster Carer Allowances,P02,"Early Years, Children & Youth",AMICUS FOSTER CARE LIMITED,08/07/2015,3297.21
Bath & North East Somerset Council,10781446,LM2,Foster Carer Allowances,P02,"Early Years, Children & Youth",AMICUS FOSTER CARE LIMITED,08/07/2015,3407.11
Bath & North East Somerset Council,10781940,LM2,Foster Carer Allowances,P02,"Early Years, Children & Youth",NATIONAL FOSTERING AGENCY,08/07/2015,3432.32
Bath & North East Somerset Council,10781921,LM2,Foster Carer Allowances,P02,"Early Years, Children & Youth",FIVE RIVERS CHILD CARE LTD,08/07/2015,3445.71
Bath & North East Somerset Council,10781889,LM2,Foster Carer Allowances,P02,"Early Years, Children & Youth",THE FOSTER CARE COOPERATIVE,08/07/2015,3456.6
Bath & North East Somerset Council,10781943,LM2,Foster Carer Allowances,P02,"Early Years, Children & Youth",THE FOSTER CARE COOPERATIVE,08/07/2015,3456.6
Bath & North East Somerset Council,10781339,LJ4,Contracts,P06,Sustainable Development,KEITH TEMPEST,08/07/2015,3560.48
Bath & North East Somerset Council,10781966,EA1,Training,P06,Sustainable Development,COMMUNITY @ 67,08/07/2015,4000
Bath & North East Somerset Council,10781626,HV3,Window Cleaning,P07,Community Resources,ABC WINDOW CLEANING SERVICES,08/07/2015,4100
Bath & North East Somerset Council,10781744,LJ4,Contracts,P01,Transport,MARIAN CALINOIU (MARIO PRIVATE HIRE LTD),08/07/2015,4182
Bath & North East Somerset Council,10781591,3F7,External Fees,P06,Sustainable Development,MDA CONSULTING LTD,08/07/2015,4265.5
Bath & North East Somerset Council,10781763,LN5,Data Lines,P04,Leader,NETWORK EXTENDER TECHNOLOGIES LTD,08/07/2015,4309.65
Bath & North East Somerset Council,10781240,LK1,Fees,P07,Community Resources,HMCS,08/07/2015,4386
Bath & North East Somerset Council,10781589,LA4,Equipment Hire/Rent,P07,Community Resources,XEROX FINANCE LIMITED,08/07/2015,4692.25
Bath & North East Somerset Council,10781730,3C4,Building Works,P02,"Early Years, Children & Youth",BBA ARCHITECTS,08/07/2015,5037.5
Bath & North East Somerset Council,10781767,LP4,Software Purchase,P02,"Early Years, Children & Youth",REDSTOR LIMITED,08/07/2015,5100
Bath & North East Somerset Council,10781564,LJ4,Contracts,P01,Transport,ROAD RUNNER TAXI BUSES,08/07/2015,5510.58
Bath & North East Somerset Council,10781939,LM2,Foster Carer Allowances,P02,"Early Years, Children & Youth",NCH ACTION FOR CHILDREN,08/07/2015,5770.12
Bath & North East Somerset Council,10781836,LJ4,Contracts,P01,Transport,RADSTOCK TAXIS,08/07/2015,6454
Bath & North East Somerset Council,10781968,LN5,Data Lines,P04,Leader,ABRITAS LTD,08/07/2015,7589
Bath & North East Somerset Council,10781311,HP3,Room Hire Charges,P07,Community Resources,ELIOR UK PLC,08/07/2015,7614.2
Bath & North East Somerset Council,10781770,LJ1,Consultants Fees,P05,Neighbourhoods,MAX ASSOCIATES (HOLDINGS) LTD,08/07/2015,9000
Bath & North East Somerset Council,10781802,LJ4,Contracts,P01,Transport,TOMMY JUKES,08/07/2015,9757
Bath & North East Somerset Council,10781937,LM2,Foster Carer Allowances,P02,"Early Years, Children & Youth",QUARRIERS,08/07/2015,11576.95
Bath & North East Somerset Council,10781685,HA3,Planned Maintenance,P06,Sustainable Development,ALPHA LIFTING SERVICES,08/07/2015,11913.84
Bath & North East Somerset Council,10781922,LM1,Volunt Homes Placements Top/Up,P02,"Early Years, Children & Youth",CROSSWAYS CARE LTD,08/07/2015,12131.6
Bath & North East Somerset Council,10781887,LM1,Volunt Homes Placements Top/Up,P02,"Early Years, Children & Youth",WHAT'S OUT THERE LIMITED,08/07/2015,12214.2
Bath & North East Somerset Council,10781917,LM2,Foster Carer Allowances,P02,"Early Years, Children & Youth",HEADWAY ADOLESCENT RESOURCES L,08/07/2015,12400
Bath & North East Somerset Council,10781709,LJ4,Contracts,P02,"Early Years, Children & Youth",KIDS,08/07/2015,12439.5
Bath & North East Somerset Council,10781481,LK1,Fees,P06,Sustainable Development,BATH FESTIVALS TRUST,08/07/2015,14000
Bath & North East Somerset Council,10781845,LJ1,Consultants Fees,P09,Homes & Planning,ZMAPPING LTD,08/07/2015,15400
Bath & North East Somerset Council,10781891,LM2,Foster Carer Allowances,P02,"Early Years, Children & Youth",CROSSWAYS CARE LTD,08/07/2015,15810
Bath & North East Somerset Council,10781923,LM2,Foster Carer Allowances,P02,"Early Years, Children & Youth",CROSSWAYS CARE LTD,08/07/2015,15810
Bath & North East Somerset Council,10780286,HN2,Gas,P07,Community Resources,SOUTHERN ELECTRIC PLC,08/07/2015,16620.08
Bath & North East Somerset Council,10781890,LM2,Foster Carer Allowances,P02,"Early Years, Children & Youth",SPORTFIT,08/07/2015,16800
Bath & North East Somerset Council,10781417,3F7,External Fees,P06,Sustainable Development,CREST NICHOLSON REGENERATION LTD,08/07/2015,24456
Bath & North East Somerset Council,80483276,PB3,Payments to Other Establishments,P02,"Early Years, Children & Youth",WRITHLINGTON SCHOOL ACADEMY TRUST LTD,08/07/2015,5000
Bath & North East Somerset Council,10781693,LP4,Software Purchase,P02,"Early Years, Children & Youth",LIQUIDLOGIC LIMITED,08/07/2015,43762.63
Bath & North East Somerset Council,10781694,LP4,Software Purchase,P02,"Early Years, Children & Youth",LIQUIDLOGIC LIMITED,08/07/2015,43762.63
Bath & North East Somerset Council,10781846,YF2,Fees & Charges,P07,Community Resources,THE BATH BID (BUSINESS IMPROVEMENT DISTRICT) COMPANY,08/07/2015,70000
Bath & North East Somerset Council,10781451,DB1,Agency Staff,P07,Community Resources,COMENSURA LTD,08/07/2015,76327.1
Bath & North East Somerset Council,10782062,DB1,Agency Staff,P07,Community Resources,COMENSURA LTD,08/07/2015,80437.11
Bath & North East Somerset Council,10781587,LA1,Equipment Purchase,P05,Neighbourhoods,TERBERG MATEC UK LTD,08/07/2015,102150
Bath & North East Somerset Council,10781419,3F7,External Fees,P06,Sustainable Development,CREST NICHOLSON REGENERATION LTD,08/07/2015,106185.08
Bath & North East Somerset Council,10781590,3C4,Building Works,P02,"Early Years, Children & Youth",H MEALING & SONS LTD,08/07/2015,108669.71
Bath & North East Somerset Council,10781747,3C4,Building Works,P01,Transport,RAYMOND BROWN CONSTRUCTION LTD,08/07/2015,143271.4
Bath & North East Somerset Council,10781420,3F7,External Fees,P06,Sustainable Development,CREST NICHOLSON REGENERATION LTD,08/07/2015,152860
Bath & North East Somerset Council,10781421,3F7,External Fees,P06,Sustainable Development,CREST NICHOLSON REGENERATION LTD,08/07/2015,154683
Bath & North East Somerset Council,10781593,HK2,Street Lighting Maintenance,P01,Transport,SOUTHERN ELECTRIC CONTRACTING LTD,08/07/2015,206065.7
Bath & North East Somerset Council,10781412,3F7,External Fees,P06,Sustainable Development,CREST NICHOLSON REGENERATION LTD,08/07/2015,306415
Bath & North East Somerset Council,10781422,3F7,External Fees,P06,Sustainable Development,CREST NICHOLSON REGENERATION LTD,08/07/2015,558590
Bath & North East Somerset Council,80483630,PG1,Rent Allowances,P07,Community Resources,REDACTED,09/07/2015,2514.28
Bath & North East Somerset Council,80483646,PG1,Rent Allowances,P07,Community Resources,REDACTED,09/07/2015,618.48
Bath & North East Somerset Council,80483588,PG1,Rent Allowances,P07,Community Resources,ACCREDITED LETTINGS LTD,09/07/2015,921.36
Bath & North East Somerset Council,80483633,PG1,Rent Allowances,P07,Community Resources,ADVANCE HOUSING SUPPORT LTD,09/07/2015,3683.4
Bath & North East Somerset Council,80483518,PG1,Rent Allowances,P07,Community Resources,ANCHOR TRUST,09/07/2015,2274.95
Bath & North East Somerset Council,10781772,3G1,Grants/Advances,P03,Wellbeing,AQUA SHOWERS,09/07/2015,3960
Bath & North East Somerset Council,80483610,PG1,Rent Allowances,P07,Community Resources,AQUA SULIS FINANCIAL MANAGEMENT,09/07/2015,4449.64
Bath & North East Somerset Council,80483620,PG1,Rent Allowances,P07,Community Resources,ASTER COMMUNITIES,09/07/2015,14226.2
Bath & North East Somerset Council,80483523,PG1,Rent Allowances,P07,Community Resources,BATH MIND,09/07/2015,3302.16
Bath & North East Somerset Council,80483565,PG1,Rent Allowances,P07,Community Resources,BATH PROPERTY SERVICES,09/07/2015,567.68
Bath & North East Somerset Council,10781842,3G1,Grants/Advances,P03,Wellbeing,BIB & BRACE LTD,09/07/2015,2546
Bath & North East Somerset Council,80483558,PG1,Rent Allowances,P07,Community Resources,CITY CENTRAL,09/07/2015,756.92
Bath & North East Somerset Council,10782155,LV2,Contributions to Organisations,Z98,West of England Partnership,COMBINED BREWERIES LTD,09/07/2015,767.16
Bath & North East Somerset Council,10782155,LV2,Contributions to Organisations,Z98,West of England Partnership,COMBINED BREWERIES LTD,09/07/2015,4049.38
Bath & North East Somerset Council,80483629,PG1,Rent Allowances,P07,Community Resources,DELANEY PROPERTIES LTD,09/07/2015,537.24
Bath & North East Somerset Council,10782087,LP1,Hardware Purchase,P06,Sustainable Development,BLAZE NETWORKS LTD,09/07/2015,10
Bath & North East Somerset Council,80483536,PG1,Rent Allowances,P07,Community Resources,DIMENSIONS (UK) LTD,09/07/2015,14918.48
Bath & North East Somerset Council,80483594,PG1,Rent Allowances,P07,Community Resources,DOVETAIL PROPERTIES,09/07/2015,1498.32
Bath & North East Somerset Council,80483634,PG1,Rent Allowances,P07,Community Resources,REDACTED,09/07/2015,542.96
Bath & North East Somerset Council,80483564,PG1,Rent Allowances,P07,Community Resources,DRUGS & HOMELESS INITIATIVE,09/07/2015,5437.5
Bath & North East Somerset Council,80483686,PG1,Rent Allowances,P07,Community Resources,DRUGS & HOMELESS INTIATIVE HTL P,09/07/2015,15050.3
Bath & North East Somerset Council,80483537,PG1,Rent Allowances,P07,Community Resources,DUCHY OF CORNWALL,09/07/2015,1533.4
Bath & North East Somerset Council,80483714,PG1,Rent Allowances,P07,Community Resources,ELIM HOUSING ASSOCIATION,09/07/2015,1631.4
Bath & North East Somerset Council,80483557,PG1,Rent Allowances,P07,Community Resources,ENGLISH RURAL HOUSING ASSOCIATIO,09/07/2015,815.4
Bath & North East Somerset Council,80483508,LK4,Nursery/Childcare Vouchers,P02,"Early Years, Children & Youth",FIRST STEPS NURSERY,09/07/2015,2067
Bath & North East Somerset Council,80483568,PG1,Rent Allowances,P07,Community Resources,GOLDEN LANE HOUSING LTD,09/07/2015,4792.68
Bath & North East Somerset Council,80483543,PG1,Rent Allowances,P07,Community Resources,HANOVER HOUSING ASSOCIATION,09/07/2015,2708.92
Bath & North East Somerset Council,80483545,PG1,Rent Allowances,P07,Community Resources,HANOVER HOUSING ASSOCIATION,09/07/2015,9265.47
Bath & North East Somerset Council,10782152,LV2,Contributions to Organisations,Z98,West of England Partnership,HAPPY CITY CIC,09/07/2015,5927.77
Bath & North East Somerset Council,80483525,PG1,Rent Allowances,P07,Community Resources,REDACTED,09/07/2015,41796.43
Bath & North East Somerset Council,80483540,PG1,Rent Allowances,P07,Community Resources,KILMERSDON RURAL HOUSING ASSOCIA,09/07/2015,2907.4
Bath & North East Somerset Council,80483562,PG1,Rent Allowances,P07,Community Resources,KNIGHTSTONE COMMUNITY HOMES,09/07/2015,34060.78
Bath & North East Somerset Council,80483795,PG1,Rent Allowances,P07,Community Resources,KNIGHTSTONE HOUSING ASSOCIATION,09/07/2015,19454.67
Bath & North East Somerset Council,80483521,PG1,Rent Allowances,P07,Community Resources,KNIGHTSTONE HOUSING ASSOCIATION,09/07/2015,93816.2
Bath & North East Somerset Council,80483664,PG1,Rent Allowances,P07,Community Resources,LETTINGS-R-US PROPERTIES LIMITED,09/07/2015,556.76
Bath & North East Somerset Council,80483625,PG1,Rent Allowances,P07,Community Resources,MARK NAYLOR RESIDENTIAL SALES,09/07/2015,1050.64
Bath & North East Somerset Council,10782151,LV2,Contributions to Organisations,Z98,West of England Partnership,MARKS BREAD LTD,09/07/2015,50967.24
Bath & North East Somerset Council,80483628,PG1,Rent Allowances,P07,Community Resources,MARTIN & CO,09/07/2015,2590.6
Bath & North East Somerset Council,80483621,PG1,Rent Allowances,P07,Community Resources,MENCAP,09/07/2015,5471.02
Bath & North East Somerset Council,80483653,PG1,Rent Allowances,P07,Community Resources,MERLIN HOUSING SOCIETY,09/07/2015,2177.8
Bath & North East Somerset Council,80483520,PG1,Rent Allowances,P07,Community Resources,METHODIST HOMES (CHURCH COURT),09/07/2015,2345.32
Bath & North East Somerset Council,80483542,PG1,Rent Allowances,P07,Community Resources,METHODIST HOMES HOUSING ASSOCIAT,09/07/2015,3769.68
Bath & North East Somerset Council,10782026,HV1,Contract Cleaning,P05,Neighbourhoods,MINSTER CLEANING SERVICES,09/07/2015,755.9
Bath & North East Somerset Council,80483623,PG1,Rent Allowances,P07,Community Resources,REDACTED,09/07/2015,578.08
Bath & North East Somerset Council,80483659,PG1,Rent Allowances,P07,Community Resources,REDACTED,09/07/2015,596.24
Bath & North East Somerset Council,80483645,PG1,Rent Allowances,P07,Community Resources,REDACTED,09/07/2015,577.8
Bath & North East Somerset Council,80483709,PG1,Rent Allowances,P07,Community Resources,REDACTED,09/07/2015,540
Bath & North East Somerset Council,80483554,PG1,Rent Allowances,P07,Community Resources,REDACTED,09/07/2015,542.96
Bath & North East Somerset Council,80483570,PG1,Rent Allowances,P07,Community Resources,REDACTED,09/07/2015,717.12
Bath & North East Somerset Council,80483683,PG1,Rent Allowances,P07,Community Resources,REDACTED,09/07/2015,586.16
Bath & North East Somerset Council,80483592,PG1,Rent Allowances,P07,Community Resources,REDACTED,09/07/2015,553.84
Bath & North East Somerset Council,80483602,PG1,Rent Allowances,P07,Community Resources,REDACTED,09/07/2015,708.92
Bath & North East Somerset Council,80483678,PG1,Rent Allowances,P07,Community Resources,REDACTED,09/07/2015,618.48
Bath & North East Somerset Council,80483639,PG1,Rent Allowances,P07,Community Resources,REDACTED,09/07/2015,507.68
Bath & North East Somerset Council,80483548,PG1,Rent Allowances,P07,Community Resources,REDACTED,09/07/2015,606
Bath & North East Somerset Council,80483713,PG1,Rent Allowances,P07,Community Resources,REDACTED,09/07/2015,759.44
Bath & North East Somerset Council,80483685,PG1,Rent Allowances,P07,Community Resources,REDACTED,09/07/2015,530.76
Bath & North East Somerset Council,80483695,PG1,Rent Allowances,P07,Community Resources,REDACTED,09/07/2015,759.44
Bath & North East Somerset Council,80483688,PG1,Rent Allowances,P07,Community Resources,REDACTED,09/07/2015,1078.16
Bath & North East Somerset Council,80483648,PG1,Rent Allowances,P07,Community Resources,REDACTED,09/07/2015,567.76
Bath & North East Somerset Council,80483793,PG1,Rent Allowances,P07,Community Resources,REDACTED,09/07/2015,3830.88
Bath & North East Somerset Council,80483617,PG1,Rent Allowances,P07,Community Resources,REDACTED,09/07/2015,542.96
Bath & North East Somerset Council,80483689,PG1,Rent Allowances,P07,Community Resources,REDACTED,09/07/2015,1333.84
Bath & North East Somerset Council,80483676,PG1,Rent Allowances,P07,Community Resources,REDACTED,09/07/2015,668.92
Bath & North East Somerset Council,80483761,PG1,Rent Allowances,P07,Community Resources,REDACTED,09/07/2015,550.43
Bath & North East Somerset Council,80483573,PG1,Rent Allowances,P07,Community Resources,REDACTED,09/07/2015,507.68
Bath & North East Somerset Council,80483662,PG1,Rent Allowances,P07,Community Resources,REDACTED,09/07/2015,646.16
Bath & North East Somerset Council,80483618,PG1,Rent Allowances,P07,Community Resources,REDACTED,09/07/2015,600
Bath & North East Somerset Council,80483690,PG1,Rent Allowances,P07,Community Resources,REDACTED,09/07/2015,549.24
Bath & North East Somerset Council,80483608,PG1,Rent Allowances,P07,Community Resources,REDACTED,09/07/2015,655.4
Bath & North East Somerset Council,80483637,PG1,Rent Allowances,P07,Community Resources,REDACTED,09/07/2015,740
Bath & North East Somerset Council,80483655,PG1,Rent Allowances,P07,Community Resources,REDACTED,09/07/2015,646.16
Bath & North East Somerset Council,80483652,PG1,Rent Allowances,P07,Community Resources,REDACTED,09/07/2015,530.76
Bath & North East Somerset Council,80483654,PG1,Rent Allowances,P07,Community Resources,REDACTED,09/07/2015,507.68
Bath & North East Somerset Council,80483519,PG1,Rent Allowances,P07,Community Resources,REDACTED,09/07/2015,1842.52
Bath & North East Somerset Council,80483598,PG1,Rent Allowances,P07,Community Resources,REDACTED,09/07/2015,542.96
Bath & North East Somerset Council,80483596,PG1,Rent Allowances,P07,Community Resources,REDACTED,09/07/2015,530.76
Bath & North East Somerset Council,80483584,PG1,Rent Allowances,P07,Community Resources,REDACTED,09/07/2015,542.96
Bath & North East Somerset Council,80483642,PG1,Rent Allowances,P07,Community Resources,REDACTED,09/07/2015,714.41
Bath & North East Somerset Council,80483702,PG1,Rent Allowances,P07,Community Resources,REDACTED,09/07/2015,662.28
Bath & North East Somerset Council,80483599,PG1,Rent Allowances,P07,Community Resources,REDACTED,09/07/2015,692.32
Bath & North East Somerset Council,80483609,PG1,Rent Allowances,P07,Community Resources,REDACTED,09/07/2015,514.64
Bath & North East Somerset Council,80483668,PG1,Rent Allowances,P07,Community Resources,REDACTED,09/07/2015,1207.84
Bath & North East Somerset Council,80483567,PG1,Rent Allowances,P07,Community Resources,REDACTED,09/07/2015,553.84
Bath & North East Somerset Council,80483670,PG1,Rent Allowances,P07,Community Resources,REDACTED,09/07/2015,733.84
Bath & North East Somerset Council,80483711,PG1,Rent Allowances,P07,Community Resources,REDACTED,09/07/2015,1759.56
Bath & North East Somerset Council,80483694,PG1,Rent Allowances,P07,Community Resources,REDACTED,09/07/2015,538.96
Bath & North East Somerset Council,80483667,PG1,Rent Allowances,P07,Community Resources,REDACTED,09/07/2015,1080
Bath & North East Somerset Council,80483703,PG1,Rent Allowances,P07,Community Resources,REDACTED,09/07/2015,668.92
Bath & North East Somerset Council,80483591,PG1,Rent Allowances,P07,Community Resources,REDACTED,09/07/2015,4052.76
Bath & North East Somerset Council,80483583,PG1,Rent Allowances,P07,Community Resources,REDACTED,09/07/2015,733.84
Bath & North East Somerset Council,80483644,PG1,Rent Allowances,P07,Community Resources,REDACTED,09/07/2015,507.68
Bath & North East Somerset Council,80483705,PG1,Rent Allowances,P07,Community Resources,REDACTED,09/07/2015,759.44
Bath & North East Somerset Council,80483603,PG1,Rent Allowances,P07,Community Resources,REDACTED,09/07/2015,515.92
Bath & North East Somerset Council,80483641,PG1,Rent Allowances,P07,Community Resources,REDACTED,09/07/2015,507.68
Bath & North East Somerset Council,80483722,PG1,Rent Allowances,P07,Community Resources,REDACTED,09/07/2015,761.53
Bath & North East Somerset Council,80483589,PG1,Rent Allowances,P07,Community Resources,REDACTED,09/07/2015,507.68
Bath & North East Somerset Council,80483698,PG1,Rent Allowances,P07,Community Resources,REDACTED,09/07/2015,916.8
Bath & North East Somerset Council,80483757,PG1,Rent Allowances,P07,Community Resources,REDACTED,09/07/2015,738.48
Bath & North East Somerset Council,80483669,PG1,Rent Allowances,P07,Community Resources,REDACTED,09/07/2015,542.96
Bath & North East Somerset Council,80483658,PG1,Rent Allowances,P07,Community Resources,REDACTED,09/07/2015,516.92
Bath & North East Somerset Council,80483612,PG1,Rent Allowances,P07,Community Resources,REDACTED,09/07/2015,578.08
Bath & North East Somerset Council,80483681,PG1,Rent Allowances,P07,Community Resources,REDACTED,09/07/2015,600
Bath & North East Somerset Council,80483675,PG1,Rent Allowances,P07,Community Resources,REDACTED,09/07/2015,668.2
Bath & North East Somerset Council,80483692,PG1,Rent Allowances,P07,Community Resources,REDACTED,09/07/2015,1862.96
Bath & North East Somerset Council,80483773,PG1,Rent Allowances,P07,Community Resources,REDACTED,09/07/2015,507.7
Bath & North East Somerset Council,80483786,PG1,Rent Allowances,P07,Community Resources,REDACTED,09/07/2015,1518.88
Bath & North East Somerset Council,80483699,PG1,Rent Allowances,P07,Community Resources,REDACTED,09/07/2015,692.32
Bath & North East Somerset Council,80483578,PG1,Rent Allowances,P07,Community Resources,REDACTED,09/07/2015,507.68
Bath & North East Somerset Council,80483580,PG1,Rent Allowances,P07,Community Resources,REDACTED,09/07/2015,668.92
Bath & North East Somerset Council,80483551,PG1,Rent Allowances,P07,Community Resources,REDACTED,09/07/2015,500
Bath & North East Somerset Council,80483577,PG1,Rent Allowances,P07,Community Resources,REDACTED,09/07/2015,1179.88
Bath & North East Somerset Council,80483635,PG1,Rent Allowances,P07,Community Resources,REDACTED,09/07/2015,507.68
Bath & North East Somerset Council,80483776,PG1,Rent Allowances,P07,Community Resources,REDACTED,09/07/2015,1009.55
Bath & North East Somerset Council,80483606,PG1,Rent Allowances,P07,Community Resources,REDACTED,09/07/2015,507.68
Bath & North East Somerset Council,80483717,PG1,Rent Allowances,P07,Community Resources,REDACTED,09/07/2015,549.24
Bath & North East Somerset Council,80483672,PG1,Rent Allowances,P07,Community Resources,REDACTED,09/07/2015,665.78
Bath & North East Somerset Council,80483586,PG1,Rent Allowances,P07,Community Resources,REDACTED,09/07/2015,1595.28
Bath & North East Somerset Council,80483710,PG1,Rent Allowances,P07,Community Resources,REDACTED,09/07/2015,668.92
Bath & North East Somerset Council,80483553,PG1,Rent Allowances,P07,Community Resources,REDACTED,09/07/2015,542.96
Bath & North East Somerset Council,80483682,PG1,Rent Allowances,P07,Community Resources,REDACTED,09/07/2015,1365.46
Bath & North East Somerset Council,80483607,PG1,Rent Allowances,P07,Community Resources,REDACTED,09/07/2015,542.96
Bath & North East Somerset Council,80483587,PG1,Rent Allowances,P07,Community Resources,REDACTED,09/07/2015,707.44
Bath & North East Somerset Council,80483765,PG1,Rent Allowances,P07,Community Resources,REDACTED,09/07/2015,846.57
Bath & North East Somerset Council,10782200,LJ3,Other Services to the Council,P05,Neighbourhoods,GREENMAN ENVIRONMENTAL MANAGEMENT,09/07/2015,450
Bath & North East Somerset Council,80483402,LJ4,Contracts,P03,Wellbeing,Dr Blackwell & Partners,09/07/2015,503
Bath & North East Somerset Council,80483361,LJ4,Contracts,P03,Wellbeing,Hillcrest Surgery,09/07/2015,506
Bath & North East Somerset Council,80483476,LK4,Nursery/Childcare Vouchers,P02,"Early Years, Children & Youth",LEARNING TREE DAY NURSERY,09/07/2015,514.1
Bath & North East Somerset Council,80483348,LJ4,Contracts,P03,Wellbeing,Fairfield Park Health Centre,09/07/2015,516
Bath & North East Somerset Council,80483330,LJ4,Contracts,P03,Wellbeing,WEST VIEW SURGERY,09/07/2015,521
Bath & North East Somerset Council,80483357,LJ4,Contracts,P03,Wellbeing,Drs T J Gollin W A Coppock & P Guy,09/07/2015,531
Bath & North East Somerset Council,80483358,LJ4,Contracts,P03,Wellbeing,Drs T J Gollin W A Coppock & P Guy,09/07/2015,533
Bath & North East Somerset Council,10782166,LH3,Publicity,P06,Sustainable Development,HITCHED LIMITED,09/07/2015,535.5
Bath & North East Somerset Council,10782087,LP1,Hardware Purchase,P06,Sustainable Development,BLAZE NETWORKS LTD,09/07/2015,540
Bath & North East Somerset Council,80483336,LJ4,Contracts,P03,Wellbeing,Chew Medical Practice,09/07/2015,547
Bath & North East Somerset Council,80483396,LJ4,Contracts,P03,Wellbeing,Somerton House Surgery,09/07/2015,556
Bath & North East Somerset Council,80483632,PG1,Rent Allowances,P07,Community Resources,PG LETTINGS LTD,09/07/2015,600
Bath & North East Somerset Council,80483329,LJ4,Contracts,P03,Wellbeing,WEST VIEW SURGERY,09/07/2015,565
Bath & North East Somerset Council,80483531,PG1,Rent Allowances,P07,Community Resources,PLACES FOR PEOPLE,09/07/2015,1375.52
Bath & North East Somerset Council,80483411,LJ4,Contracts,P03,Wellbeing,St James Surgery,09/07/2015,582
Bath & North East Somerset Council,80483383,LJ4,Contracts,P03,Wellbeing,Oldfield Surgery,09/07/2015,590
Bath & North East Somerset Council,10782194,LP5,Software Support,P05,Neighbourhoods,MCPC SYSTEMS (UK) LTD,09/07/2015,593
Bath & North East Somerset Council,80483377,LJ4,Contracts,P03,Wellbeing,"Dr Prees, Wernham & Weldon",09/07/2015,610
Bath & North East Somerset Council,80483343,LJ4,Contracts,P03,Wellbeing,DR ROY & PARTNERS T/A ELM HAYES SURGERY,09/07/2015,611
Bath & North East Somerset Council,80483563,PG1,Rent Allowances,P07,Community Resources,RIVERSIDE - E.C.H.G.,09/07/2015,2803.56
Bath & North East Somerset Council,80483574,PG1,Rent Allowances,P07,Community Resources,RNID,09/07/2015,1822.32
Bath & North East Somerset Council,80483349,LJ4,Contracts,P03,Wellbeing,Fairfield Park Health Centre,09/07/2015,638
Bath & North East Somerset Council,80483489,LK4,Nursery/Childcare Vouchers,P02,"Early Years, Children & Youth",ROUNDHILL PRIMARY SCHOOL,09/07/2015,809.58
Bath & North East Somerset Council,80483419,LJ4,Contracts,P03,Wellbeing,St Michaels Partnership,09/07/2015,650
Bath & North East Somerset Council,80483345,LJ4,Contracts,P03,Wellbeing,DR ROY & PARTNERS T/A ELM HAYES SURGERY,09/07/2015,652
Bath & North East Somerset Council,80483684,PG1,Rent Allowances,P07,Community Resources,S.R. CONTRACTORS,09/07/2015,1000.45
Bath & North East Somerset Council,80483544,PG1,Rent Allowances,P07,Community Resources,S.W.A.L.L.O.W.,09/07/2015,5525.36
Bath & North East Somerset Council,80483375,LJ4,Contracts,P03,Wellbeing,"Drs Wharton, Cooper, Grabham & Brooks",09/07/2015,656
Bath & North East Somerset Council,80483401,LJ4,Contracts,P03,Wellbeing,Dr Blackwell & Partners,09/07/2015,668
Bath & North East Somerset Council,10782148,LH5,Marketing,P06,Sustainable Development,CITYSCAPE MAPS LTD,09/07/2015,700
Bath & North East Somerset Council,80483387,LJ4,Contracts,P03,Wellbeing,"DR TILLEY, STAGG, STANDING, BRUNSKILL & GARDNER-THORPE",09/07/2015,702
Bath & North East Somerset Council,80483384,LJ4,Contracts,P03,Wellbeing,Oldfield Surgery,09/07/2015,706
Bath & North East Somerset Council,80483532,PG1,Rent Allowances,P07,Community Resources,SANCTUARY HOUSING ASSOCIATION,09/07/2015,18873.91
Bath & North East Somerset Council,80483512,LK4,Nursery/Childcare Vouchers,P02,"Early Years, Children & Youth",MIDSOMER NORTON PRIMARY SCHOO,09/07/2015,751.01
Bath & North East Somerset Council,80483335,LJ4,Contracts,P03,Wellbeing,Chew Medical Practice,09/07/2015,755
Bath & North East Somerset Council,80483406,LJ4,Contracts,P03,Wellbeing,Dr G Jacson & Partners,09/07/2015,766
Bath & North East Somerset Council,80483530,PG1,Rent Allowances,P07,Community Resources,SOLON (SOUTH WEST) HOUSING ASSOC,09/07/2015,7926.13
Bath & North East Somerset Council,80483561,PG1,Rent Allowances,P07,Community Resources,SOLON HOUSING ASSOCIATION,09/07/2015,892.33
Bath & North East Somerset Council,80483636,PG1,Rent Allowances,P07,Community Resources,SOMER COMMUNITY HOUSING TRUST,09/07/2015,5547.38
Bath & North East Somerset Council,10782127,HV6,Sanitary Disposal,P06,Sustainable Development,AVANTI HYGIENE LTD,09/07/2015,804.86
Bath & North East Somerset Council,80483546,PG1,Rent Allowances,P07,Community Resources,SOVEREIGN HOUSING ASSOCIATION,09/07/2015,53301.23
Bath & North East Somerset Council,80483640,PG1,Rent Allowances,P07,Community Resources,ST MUNGOS,09/07/2015,11079.32
Bath & North East Somerset Council,80483535,PG1,Rent Allowances,P07,Community Resources,STONHAM HOUSING ASSOCIATION,09/07/2015,14272.88
Bath & North East Somerset Council,80483397,LJ4,Contracts,P03,Wellbeing,Somerton House Surgery,09/07/2015,868
Bath & North East Somerset Council,10782228,3F7,External Fees,P01,Transport,MDA CONSULTING LTD,09/07/2015,937.5
Bath & North East Somerset Council,10782229,3F7,External Fees,P01,Transport,MDA CONSULTING LTD,09/07/2015,937.5
Bath & North East Somerset Council,80483595,PG1,Rent Allowances,P07,Community Resources,SUPPORTED INDEPENDENCE LTD,09/07/2015,2352.36
Bath & North East Somerset Council,80483428,LJ4,Contracts,P03,Wellbeing,University Medical Centre,09/07/2015,968
Bath & North East Somerset Council,80483405,LJ4,Contracts,P03,Wellbeing,Dr G Jacson & Partners,09/07/2015,1001
Bath & North East Somerset Council,80483541,PG1,Rent Allowances,P07,Community Resources,THATCHER AND HALLAM,09/07/2015,2637.04
Bath & North East Somerset Council,80483502,LK4,Nursery/Childcare Vouchers,P02,"Early Years, Children & Youth",CASTLE PRIMARY SCHOOL,09/07/2015,1012.83
Bath & North East Somerset Council,10781971,HV4,Cleaning Materials,P07,Community Resources,PHS GROUP LTD,09/07/2015,1021.2
Bath & North East Somerset Council,80483482,LK4,Nursery/Childcare Vouchers,P02,"Early Years, Children & Youth",TWERTON INFANT SCHOOL,09/07/2015,1136.85
Bath & North East Somerset Council,80483513,LK4,Nursery/Childcare Vouchers,P02,"Early Years, Children & Youth",PEASEDOWN ST JOHN PRIMARY SCHOOL,09/07/2015,1157.52
Bath & North East Somerset Council,10782027,LK1,Fees,P04,Leader,ECO RESIDENTIAL LTD,09/07/2015,1200
Bath & North East Somerset Council,80483526,PG1,Rent Allowances,P07,Community Resources,THE GUINNESS PARTNERSHIP,09/07/2015,47848.29
Bath & North East Somerset Council,80483528,PG1,Rent Allowances,P07,Community Resources,THE GUINNESS TRUST,09/07/2015,42313.85
Bath & North East Somerset Council,10781689,HV3,Window Cleaning,P07,Community Resources,ABC WINDOW CLEANING SERVICES,09/07/2015,1295
Bath & North East Somerset Council,10782210,3F7,External Fees,P01,Transport,BRUNEL PROJECT MANAGEMENT LTD,09/07/2015,1350
Bath & North East Somerset Council,10781837,LF5,Postages,P07,Community Resources,WHISTL,09/07/2015,1447.4
Bath & North East Somerset Council,10782120,LK1,Fees,P06,Sustainable Development,GATEWAY TICKETING SYSTEMS UK LTD,09/07/2015,1515.03
Bath & North East Somerset Council,80483569,PG1,Rent Allowances,P07,Community Resources,TOUCHSTONE RESIDENTIAL LETTINGS,09/07/2015,1143.88
Bath & North East Somerset Council,10782200,LJ3,Other Services to the Council,P05,Neighbourhoods,GREENMAN ENVIRONMENTAL MANAGEMENT,09/07/2015,1697
Bath & North East Somerset Council,80483559,PG1,Rent Allowances,P07,Community Resources,TRUSTEES OF PARTIS COLLEGE,09/07/2015,964.64
Bath & North East Somerset Council,80483611,PG1,Rent Allowances,P07,Community Resources,U G PROPERTY MANAGEMENT,09/07/2015,1498
Bath & North East Somerset Council,80483533,PG1,Rent Allowances,P07,Community Resources,UNITED HOUSING ASSOCIATION,09/07/2015,2156.54
Bath & North East Somerset Council,80483687,PG1,Rent Allowances,P07,Community Resources,VALLEY PROPERTY MANAGERS,09/07/2015,542.96
Bath & North East Somerset Council,10782227,3F7,External Fees,P01,Transport,MDA CONSULTING LTD,09/07/2015,2062.5
Bath & North East Somerset Council,10782238,LP1,Hardware Purchase,P04,Leader,OGIER ELECTRONICS LTD,09/07/2015,2575
Bath & North East Somerset Council,10782046,LX1,Educational Activity,P02,"Early Years, Children & Youth",KANDU ARTS FOR SUSTAINABLE DEVELOPMENT LTD,09/07/2015,2625
Bath & North East Somerset Council,10782161,LH5,Marketing,P06,Sustainable Development,CONSIDERED CREATIVE,09/07/2015,2700
Bath & North East Somerset Council,10781780,3G1,Grants/Advances,P03,Wellbeing,OASIS BATHROOM CENTRE,09/07/2015,2758.49
Bath & North East Somerset Council,10781774,3G1,Grants/Advances,P03,Wellbeing,P & J SHOWERS LTD,09/07/2015,2780
Bath & North East Somerset Council,10780539,HA1,Responsive Maintenance,P06,Sustainable Development,N K S CONTRACTS LTD,09/07/2015,2880
Bath & North East Somerset Council,10781462,EG3,Recruitment Advertising,P07,Community Resources,TMP (UK) LTD,09/07/2015,2991
Bath & North East Somerset Council,10781894,LM2,Foster Carer Allowances,P02,"Early Years, Children & Youth",PATHWAY CARE (BRISTOL) LTD,09/07/2015,3072.2
Bath & North East Somerset Council,10782198,3C4,Building Works,P02,"Early Years, Children & Youth",MJT CONTROLS LIMITED,09/07/2015,3139.15
Bath & North East Somerset Council,10781773,3G1,Grants/Advances,P03,Wellbeing,ANDREW MAISEY,09/07/2015,3225
Bath & North East Somerset Council,10781892,LM2,Foster Carer Allowances,P02,"Early Years, Children & Youth",PATHWAY CARE (BRISTOL) LTD,09/07/2015,3238.27
Bath & North East Somerset Council,10781758,LJ4,Contracts,P05,Neighbourhoods,THE LANDSCAPE GROUP LTD,09/07/2015,3545.06
Bath & North East Somerset Council,10782230,3F7,External Fees,P01,Transport,MDA CONSULTING LTD,09/07/2015,3712.5
Bath & North East Somerset Council,10782202,LP5,Software Support,P07,Community Resources,SYSTEMSLINK 2000 LIMITED,09/07/2015,3950
Bath & North East Somerset Council,10782033,LL2,Personal Needs of Clients,P02,"Early Years, Children & Youth",FUSION INDEPENDENCE LTD,09/07/2015,4221.43
Bath & North East Somerset Council,10782136,LW8,Conservation,P06,Sustainable Development,SHEPHARD TRAVIS TCS LTD,09/07/2015,4560
Bath & North East Somerset Council,10782197,DB1,Agency Staff,P01,Transport,M WIDDOWSON LTD,09/07/2015,4605.16
Bath & North East Somerset Council,10782209,3F7,External Fees,P01,Transport,BRUNEL PROJECT MANAGEMENT LTD,09/07/2015,6750
Bath & North East Somerset Council,80483539,PG1,Rent Allowances,P07,Community Resources,REDACTED,09/07/2015,964.6
Bath & North East Somerset Council,80483656,PG1,Rent Allowances,P07,Community Resources,WILLIAMS & BLUNDEN LTD,09/07/2015,759.44
Bath & North East Somerset Council,10781727,LJ4,Contracts,P02,"Early Years, Children & Youth",SOUTH GLOUCESTERSHIRE COUNCIL,09/07/2015,8250
Bath & North East Somerset Council,10781362,3N7,Misc. Costs,P01,Transport,SELECT ELECTRICS LTD,09/07/2015,8270
Bath & North East Somerset Council,10781719,3G1,Grants/Advances,P03,Wellbeing,MARK NASH LTD,09/07/2015,10000
Bath & North East Somerset Council,10781015,PA3,Payments to Health Authorities,P02,"Early Years, Children & Youth",NHS BATH & NORTH EAST SOMERSET CCG,09/07/2015,10250
Bath & North East Somerset Council,10781858,LK1,Fees,P05,Neighbourhoods,SAFE & SOUND UK LTD,09/07/2015,11905
Bath & North East Somerset Council,10782154,LV2,Contributions to Organisations,Z98,West of England Partnership,CFH DOCMAIL LTD,09/07/2015,15147.67
Bath & North East Somerset Council,10781337,LF1,Printing/Design,P04,Leader,CANON (UK) LTD,09/07/2015,21703.96
Bath & North East Somerset Council,80483600,PG1,Rent Allowances,P07,Community Resources,WRIGHT LETTINGS,09/07/2015,664.05
Bath & North East Somerset Council,10779888,HK1,Highway Maintenance,P01,Transport,WDM LIMITED,09/07/2015,29071.85
Bath & North East Somerset Council,80483517,PG1,Rent Allowances,P07,Community Resources,Y.M.C.A.,09/07/2015,6958.96
Bath & North East Somerset Council,80483680,PG1,Rent Allowances,P07,Community Resources,YELLOW PROPERTY,09/07/2015,1578.48
Bath & North East Somerset Council,10782219,3C4,Building Works,P02,"Early Years, Children & Youth",H MEALING & SONS LTD,09/07/2015,67850.17
Bath & North East Somerset Council,10782274,LJ1,Consultants Fees,P07,Community Resources,NEPRO LTD,09/07/2015,71638.31
Bath & North East Somerset Council,10782272,LJ4,Contracts,P02,"Early Years, Children & Youth",FIRST STEPS CENTRE FOR CHILDREN & FAMILIES,09/07/2015,83063
Bath & North East Somerset Council,80483980,LM8,Home Care,P03,Wellbeing,AGINCARE LIVE IN CARE SERVICES LTD,10/07/2015,0.06
Bath & North East Somerset Council,80483981,LM8,Home Care,P03,Wellbeing,AGINCARE LIVE IN CARE SERVICES LTD,10/07/2015,0.06
Bath & North East Somerset Council,80483977,LM8,Home Care,P03,Wellbeing,AGINCARE LIVE IN CARE SERVICES LTD,10/07/2015,700
Bath & North East Somerset Council,80483977,LM8,Home Care,P03,Wellbeing,AGINCARE LIVE IN CARE SERVICES LTD,10/07/2015,700
Bath & North East Somerset Council,80483982,LM8,Home Care,P03,Wellbeing,AGINCARE LIVE IN CARE SERVICES LTD,10/07/2015,700
Bath & North East Somerset Council,80483982,LM8,Home Care,P03,Wellbeing,AGINCARE LIVE IN CARE SERVICES LTD,10/07/2015,700
Bath & North East Somerset Council,80483979,LM8,Home Care,P03,Wellbeing,AGINCARE LIVE IN CARE SERVICES LTD,10/07/2015,765
Bath & North East Somerset Council,80483979,LM8,Home Care,P03,Wellbeing,AGINCARE LIVE IN CARE SERVICES LTD,10/07/2015,765
Bath & North East Somerset Council,80483980,LM8,Home Care,P03,Wellbeing,AGINCARE LIVE IN CARE SERVICES LTD,10/07/2015,765
Bath & North East Somerset Council,80483980,LM8,Home Care,P03,Wellbeing,AGINCARE LIVE IN CARE SERVICES LTD,10/07/2015,765
Bath & North East Somerset Council,80483981,LM8,Home Care,P03,Wellbeing,AGINCARE LIVE IN CARE SERVICES LTD,10/07/2015,765
Bath & North East Somerset Council,80483981,LM8,Home Care,P03,Wellbeing,AGINCARE LIVE IN CARE SERVICES LTD,10/07/2015,765
Bath & North East Somerset Council,80484030,LM9,Day Care,P03,Wellbeing,ALZHEIMER'S SOCIETY,10/07/2015,140.68
Bath & North East Somerset Council,80484030,LM9,Day Care,P03,Wellbeing,ALZHEIMER'S SOCIETY,10/07/2015,140.68
Bath & North East Somerset Council,80484030,LM9,Day Care,P03,Wellbeing,ALZHEIMER'S SOCIETY,10/07/2015,140.68
Bath & North East Somerset Council,80484030,LM9,Day Care,P03,Wellbeing,ALZHEIMER'S SOCIETY,10/07/2015,140.68
Bath & North East Somerset Council,80484030,LM9,Day Care,P03,Wellbeing,ALZHEIMER'S SOCIETY,10/07/2015,140.68
Bath & North East Somerset Council,80483890,LM8,Home Care,P03,Wellbeing,APEX COMPANIONS LTD,10/07/2015,48
Bath & North East Somerset Council,80483891,LM8,Home Care,P03,Wellbeing,APEX COMPANIONS LTD,10/07/2015,53
Bath & North East Somerset Council,80483890,LM8,Home Care,P03,Wellbeing,APEX COMPANIONS LTD,10/07/2015,794
Bath & North East Somerset Council,80483890,LM8,Home Care,P03,Wellbeing,APEX COMPANIONS LTD,10/07/2015,794
Bath & North East Somerset Council,80483890,LM8,Home Care,P03,Wellbeing,APEX COMPANIONS LTD,10/07/2015,794
Bath & North East Somerset Council,80483890,LM8,Home Care,P03,Wellbeing,APEX COMPANIONS LTD,10/07/2015,794
Bath & North East Somerset Council,80483891,LM8,Home Care,P03,Wellbeing,APEX COMPANIONS LTD,10/07/2015,794
Bath & North East Somerset Council,80483891,LM8,Home Care,P03,Wellbeing,APEX COMPANIONS LTD,10/07/2015,794
Bath & North East Somerset Council,10781680,DB1,Agency Staff,P01,Transport,WESSEX RECRUITMENT LTD,10/07/2015,4.5
Bath & North East Somerset Council,80484012,LM8,Home Care,P03,Wellbeing,BUTTERFLY HOME HELP,10/07/2015,195
Bath & North East Somerset Council,80484012,LM8,Home Care,P03,Wellbeing,BUTTERFLY HOME HELP,10/07/2015,195
Bath & North East Somerset Council,80484012,LM8,Home Care,P03,Wellbeing,BUTTERFLY HOME HELP,10/07/2015,195
Bath & North East Somerset Council,80484009,LM8,Home Care,P03,Wellbeing,BUTTERFLY HOME HELP,10/07/2015,336
Bath & North East Somerset Council,80484010,LM8,Home Care,P03,Wellbeing,BUTTERFLY HOME HELP,10/07/2015,1547
Bath & North East Somerset Council,80484010,LM8,Home Care,P03,Wellbeing,BUTTERFLY HOME HELP,10/07/2015,1547
Bath & North East Somerset Council,80484010,LM8,Home Care,P03,Wellbeing,BUTTERFLY HOME HELP,10/07/2015,1547
Bath & North East Somerset Council,80484009,LM8,Home Care,P03,Wellbeing,BUTTERFLY HOME HELP,10/07/2015,1848
Bath & North East Somerset Council,80484009,LM8,Home Care,P03,Wellbeing,BUTTERFLY HOME HELP,10/07/2015,1848
Bath & North East Somerset Council,80484009,LM8,Home Care,P03,Wellbeing,BUTTERFLY HOME HELP,10/07/2015,1848
Bath & North East Somerset Council,80484000,LM8,Home Care,P03,Wellbeing,CANDLELIGHT HOMECARE SERVICES LTD,10/07/2015,416
Bath & North East Somerset Council,80484000,LM8,Home Care,P03,Wellbeing,CANDLELIGHT HOMECARE SERVICES LTD,10/07/2015,637
Bath & North East Somerset Council,80484000,LM8,Home Care,P03,Wellbeing,CANDLELIGHT HOMECARE SERVICES LTD,10/07/2015,637
Bath & North East Somerset Council,80484000,LM8,Home Care,P03,Wellbeing,CANDLELIGHT HOMECARE SERVICES LTD,10/07/2015,637
Bath & North East Somerset Council,80484000,LM8,Home Care,P03,Wellbeing,CANDLELIGHT HOMECARE SERVICES LTD,10/07/2015,637
Bath & North East Somerset Council,80483901,LM8,Home Care,P03,Wellbeing,CANDLELIGHT HOMECARE SERVICES LTD,10/07/2015,861
Bath & North East Somerset Council,80483901,LM8,Home Care,P03,Wellbeing,CANDLELIGHT HOMECARE SERVICES LTD,10/07/2015,861
Bath & North East Somerset Council,80483901,LM8,Home Care,P03,Wellbeing,CANDLELIGHT HOMECARE SERVICES LTD,10/07/2015,861
Bath & North East Somerset Council,80483901,LM8,Home Care,P03,Wellbeing,CANDLELIGHT HOMECARE SERVICES LTD,10/07/2015,861
Bath & North East Somerset Council,80484008,LM8,Home Care,P03,Wellbeing,COMPLETE CARE HOLDINGS LIMITED,10/07/2015,2823.09
Bath & North East Somerset Council,80484008,LM8,Home Care,P03,Wellbeing,COMPLETE CARE HOLDINGS LIMITED,10/07/2015,4644.41
Bath & North East Somerset Council,80484008,LM8,Home Care,P03,Wellbeing,COMPLETE CARE HOLDINGS LIMITED,10/07/2015,5418.48
Bath & North East Somerset Council,80484006,LM8,Home Care,P03,Wellbeing,CORINIUM CARE LIMITED,10/07/2015,1910.16
Bath & North East Somerset Council,80484006,LM8,Home Care,P03,Wellbeing,CORINIUM CARE LIMITED,10/07/2015,1910.16
Bath & North East Somerset Council,80484033,PG1,Rent Allowances,P07,Community Resources,CURO,10/07/2015,16246.11
Bath & North East Somerset Council,80484032,PG1,Rent Allowances,P07,Community Resources,CURO,10/07/2015,84025.61
Bath & North East Somerset Council,10782159,LJ4,Contracts,P01,Transport,PEASEDOWN TAXIS LTD,10/07/2015,8
Bath & North East Somerset Council,80484004,LM8,Home Care,P03,Wellbeing,WAY AHEAD COMMUNITY SERVICES LTD,10/07/2015,39.33
Bath & North East Somerset Council,80483821,LA7,Purchases for Resale,P06,Sustainable Development,GRANTHAM BOOK SERVICES LTD,10/07/2015,60.05
Bath & North East Somerset Council,80484027,LM9,Day Care,P03,Wellbeing,FREEWAYS TRUST LTD,10/07/2015,51.42
Bath & North East Somerset Council,80484027,LM9,Day Care,P03,Wellbeing,FREEWAYS TRUST LTD,10/07/2015,51.42
Bath & North East Somerset Council,80484027,LM9,Day Care,P03,Wellbeing,FREEWAYS TRUST LTD,10/07/2015,51.42
Bath & North East Somerset Council,80484027,LM9,Day Care,P03,Wellbeing,FREEWAYS TRUST LTD,10/07/2015,51.42
Bath & North East Somerset Council,80484027,LM9,Day Care,P03,Wellbeing,FREEWAYS TRUST LTD,10/07/2015,149.8
Bath & North East Somerset Council,80484027,LM9,Day Care,P03,Wellbeing,FREEWAYS TRUST LTD,10/07/2015,341.8
Bath & North East Somerset Council,80484027,LM9,Day Care,P03,Wellbeing,FREEWAYS TRUST LTD,10/07/2015,341.8
Bath & North East Somerset Council,80484027,LM9,Day Care,P03,Wellbeing,FREEWAYS TRUST LTD,10/07/2015,341.8
Bath & North East Somerset Council,10782205,HK1,Highway Maintenance,P01,Transport,M JENNINGS,10/07/2015,93
Bath & North East Somerset Council,80483867,LK1,Fees,P02,"Early Years, Children & Youth",GUINEA LANE NURSERY,10/07/2015,540
Bath & North East Somerset Council,80483932,LL3,Supported Living,P03,Wellbeing,HOME FARM TRUST,10/07/2015,699.88
Bath & North East Somerset Council,80483932,LL3,Supported Living,P03,Wellbeing,HOME FARM TRUST,10/07/2015,699.88
Bath & North East Somerset Council,80483932,LL3,Supported Living,P03,Wellbeing,HOME FARM TRUST,10/07/2015,699.88
Bath & North East Somerset Council,80483932,LL3,Supported Living,P03,Wellbeing,HOME FARM TRUST,10/07/2015,699.88
Bath & North East Somerset Council,80483933,LL3,Supported Living,P03,Wellbeing,HOME FARM TRUST,10/07/2015,1204.59
Bath & North East Somerset Council,80483933,LL3,Supported Living,P03,Wellbeing,HOME FARM TRUST,10/07/2015,1204.59
Bath & North East Somerset Council,80483933,LL3,Supported Living,P03,Wellbeing,HOME FARM TRUST,10/07/2015,1204.59
Bath & North East Somerset Council,80483933,LL3,Supported Living,P03,Wellbeing,HOME FARM TRUST,10/07/2015,1204.59
Bath & North East Somerset Council,80483923,LM8,Home Care,P03,Wellbeing,KUMARI HOMECARE SERVICE,10/07/2015,659.75
Bath & North East Somerset Council,80483824,LA7,Purchases for Resale,P06,Sustainable Development,THE MASTER HERBALIST LIMITED,10/07/2015,124.5
Bath & North East Somerset Council,80483821,LA7,Purchases for Resale,P06,Sustainable Development,GRANTHAM BOOK SERVICES LTD,10/07/2015,131.19
Bath & North East Somerset Council,80483821,LA7,Purchases for Resale,P06,Sustainable Development,GRANTHAM BOOK SERVICES LTD,10/07/2015,139.45
Bath & North East Somerset Council,10782172,LJ4,Contracts,P01,Transport,RIVERSIDE TAXIS,10/07/2015,158
Bath & North East Somerset Council,10782077,HE1,General Maintenance,P06,Sustainable Development,VALIANT ENGINEERING SERVICES LTD,10/07/2015,178
Bath & North East Somerset Council,80483821,LA7,Purchases for Resale,P06,Sustainable Development,GRANTHAM BOOK SERVICES LTD,10/07/2015,233.75
Bath & North East Somerset Council,80484004,LM8,Home Care,P03,Wellbeing,WAY AHEAD COMMUNITY SERVICES LTD,10/07/2015,235.98
Bath & North East Somerset Council,80484004,LM8,Home Care,P03,Wellbeing,WAY AHEAD COMMUNITY SERVICES LTD,10/07/2015,235.98
Bath & North East Somerset Council,80484004,LM8,Home Care,P03,Wellbeing,WAY AHEAD COMMUNITY SERVICES LTD,10/07/2015,235.98
Bath & North East Somerset Council,80484002,LM8,Home Care,P03,Wellbeing,WAY AHEAD COMMUNITY SERVICES LTD,10/07/2015,244.72
Bath & North East Somerset Council,80484002,LM8,Home Care,P03,Wellbeing,WAY AHEAD COMMUNITY SERVICES LTD,10/07/2015,244.72
Bath & North East Somerset Council,80484002,LM8,Home Care,P03,Wellbeing,WAY AHEAD COMMUNITY SERVICES LTD,10/07/2015,244.72
Bath & North East Somerset Council,80484002,LM8,Home Care,P03,Wellbeing,WAY AHEAD COMMUNITY SERVICES LTD,10/07/2015,244.72
Bath & North East Somerset Council,10782325,HV2,Non Contract Cleaning,P06,Sustainable Development,VALIANT ENGINEERING SERVICES LTD,10/07/2015,258
Bath & North East Somerset Council,80484004,LM8,Home Care,P03,Wellbeing,WAY AHEAD COMMUNITY SERVICES LTD,10/07/2015,275.31
Bath & North East Somerset Council,10782063,HA1,Responsive Maintenance,P06,Sustainable Development,VALIANT ENGINEERING SERVICES LTD,10/07/2015,279
Bath & North East Somerset Council,10782172,LJ4,Contracts,P01,Transport,RIVERSIDE TAXIS,10/07/2015,289
Bath & North East Somerset Council,10782063,HA1,Responsive Maintenance,P06,Sustainable Development,VALIANT ENGINEERING SERVICES LTD,10/07/2015,355
Bath & North East Somerset Council,80483934,LL3,Supported Living,P03,Wellbeing,NATIONAL AUTISTIC SOCIETY,10/07/2015,118.76
Bath & North East Somerset Council,10782325,HV2,Non Contract Cleaning,P06,Sustainable Development,VALIANT ENGINEERING SERVICES LTD,10/07/2015,400
Bath & North East Somerset Council,80483934,LL3,Supported Living,P03,Wellbeing,NATIONAL AUTISTIC SOCIETY,10/07/2015,2833.19
Bath & North East Somerset Council,80483934,LL3,Supported Living,P03,Wellbeing,NATIONAL AUTISTIC SOCIETY,10/07/2015,2833.19
Bath & North East Somerset Council,80483934,LL3,Supported Living,P03,Wellbeing,NATIONAL AUTISTIC SOCIETY,10/07/2015,2833.19
Bath & North East Somerset Council,80483934,LL3,Supported Living,P03,Wellbeing,NATIONAL AUTISTIC SOCIETY,10/07/2015,2833.19
Bath & North East Somerset Council,10782180,LJ1,Consultants Fees,P05,Neighbourhoods,B&W EQUINE GROUP LTD,10/07/2015,425
Bath & North East Somerset Council,80484025,LM8,Home Care,P03,Wellbeing,NURSING SOLUTIONS LIMITED,10/07/2015,1552
Bath & North East Somerset Council,10782130,HE1,General Maintenance,P06,Sustainable Development,MANNINGS FACILITIES MANAGEMENT LTD,10/07/2015,448.78
Bath & North East Somerset Council,10781794,LJ4,Contracts,P01,Transport,KEYNSHAM CARS,10/07/2015,456
Bath & North East Somerset Council,10782147,LJ4,Contracts,P01,Transport,KEYNSHAM CARS,10/07/2015,496
Bath & North East Somerset Council,10781768,3F7,External Fees,P05,Neighbourhoods,CASWELL ENVIRONMENTAL SERVICES LTD,10/07/2015,500
Bath & North East Somerset Council,10782361,3F7,External Fees,P01,Transport,SWARCO TRAFFIC LTD,10/07/2015,511.75
Bath & North East Somerset Council,80483819,LA7,Purchases for Resale,P06,Sustainable Development,EMBLEM PRINT PRODUCTS LTD,10/07/2015,512.64
Bath & North East Somerset Council,10782205,HK1,Highway Maintenance,P01,Transport,M JENNINGS,10/07/2015,557
Bath & North East Somerset Council,10782124,HA3,Planned Maintenance,P06,Sustainable Development,ASHTON AIR CONDITIONING SERVICES LIMITED,10/07/2015,560
Bath & North East Somerset Council,10782323,HV2,Non Contract Cleaning,P06,Sustainable Development,VALIANT ENGINEERING SERVICES LTD,10/07/2015,583
Bath & North East Somerset Council,10782077,HE1,General Maintenance,P06,Sustainable Development,VALIANT ENGINEERING SERVICES LTD,10/07/2015,585
Bath & North East Somerset Council,10781602,LK1,Fees,P02,"Early Years, Children & Youth",SIRONA CARE SERVICES LTD,10/07/2015,588
Bath & North East Somerset Council,10782179,LA1,Equipment Purchase,P02,"Early Years, Children & Youth",EARLY EDUCATION,10/07/2015,599.65
Bath & North East Somerset Council,10782145,LJ4,Contracts,P01,Transport,KEYNSHAM CARS,10/07/2015,600
Bath & North East Somerset Council,80483941,LL3,Supported Living,P03,Wellbeing,PRESTIGE NURSING HEALTHCARE,10/07/2015,122.75
Bath & North East Somerset Council,80483939,LL3,Supported Living,P03,Wellbeing,PRESTIGE NURSING HEALTHCARE,10/07/2015,2506.94
Bath & North East Somerset Council,80483941,LL3,Supported Living,P03,Wellbeing,PRESTIGE NURSING HEALTHCARE,10/07/2015,2590.45
Bath & North East Somerset Council,80483943,LL3,Supported Living,P03,Wellbeing,PRESTIGE NURSING HEALTHCARE,10/07/2015,2855.37
Bath & North East Somerset Council,10782144,LJ4,Contracts,P01,Transport,KEYNSHAM CARS,10/07/2015,616
Bath & North East Somerset Council,10782053,HA2,Servicing,P06,Sustainable Development,ASHTON AIR CONDITIONING SERVICES LIMITED,10/07/2015,640
Bath & North East Somerset Council,80483991,LM8,Home Care,P03,Wellbeing,ROBERT SAGE LTD T/A PRESTIGE NURSING PAYROLL,10/07/2015,1338.4
Bath & North East Somerset Council,10782168,LH5,Marketing,P06,Sustainable Development,THE JANE AUSTEN FESTIVAL LTD,10/07/2015,650
Bath & North East Somerset Council,80483968,LM8,Home Care,P03,Wellbeing,RV CARE LTD,10/07/2015,17
Bath & North East Somerset Council,80483970,LM8,Home Care,P03,Wellbeing,RV CARE LTD,10/07/2015,48.5
Bath & North East Somerset Council,80483968,LM8,Home Care,P03,Wellbeing,RV CARE LTD,10/07/2015,134
Bath & North East Somerset Council,80483968,LM8,Home Care,P03,Wellbeing,RV CARE LTD,10/07/2015,134
Bath & North East Somerset Council,80483968,LM8,Home Care,P03,Wellbeing,RV CARE LTD,10/07/2015,134
Bath & North East Somerset Council,80483968,LM8,Home Care,P03,Wellbeing,RV CARE LTD,10/07/2015,134
Bath & North East Somerset Council,80483971,LM8,Home Care,P03,Wellbeing,RV CARE LTD,10/07/2015,273
Bath & North East Somerset Council,80483971,LM8,Home Care,P03,Wellbeing,RV CARE LTD,10/07/2015,273
Bath & North East Somerset Council,80483971,LM8,Home Care,P03,Wellbeing,RV CARE LTD,10/07/2015,273
Bath & North East Somerset Council,80483971,LM8,Home Care,P03,Wellbeing,RV CARE LTD,10/07/2015,273
Bath & North East Somerset Council,80483970,LM8,Home Care,P03,Wellbeing,RV CARE LTD,10/07/2015,276.5
Bath & North East Somerset Council,80483970,LM8,Home Care,P03,Wellbeing,RV CARE LTD,10/07/2015,276.5
Bath & North East Somerset Council,80483970,LM8,Home Care,P03,Wellbeing,RV CARE LTD,10/07/2015,276.5
Bath & North East Somerset Council,80483970,LM8,Home Care,P03,Wellbeing,RV CARE LTD,10/07/2015,276.5
Bath & North East Somerset Council,80483975,LM8,Home Care,P03,Wellbeing,RV CARE LTD,10/07/2015,277.15
Bath & North East Somerset Council,80483975,LM8,Home Care,P03,Wellbeing,RV CARE LTD,10/07/2015,277.15
Bath & North East Somerset Council,80483975,LM8,Home Care,P03,Wellbeing,RV CARE LTD,10/07/2015,277.15
Bath & North East Somerset Council,80483975,LM8,Home Care,P03,Wellbeing,RV CARE LTD,10/07/2015,277.15
Bath & North East Somerset Council,80483972,LM8,Home Care,P03,Wellbeing,RV CARE LTD,10/07/2015,372
Bath & North East Somerset Council,80483972,LM8,Home Care,P03,Wellbeing,RV CARE LTD,10/07/2015,372
Bath & North East Somerset Council,80483972,LM8,Home Care,P03,Wellbeing,RV CARE LTD,10/07/2015,372
Bath & North East Somerset Council,80483972,LM8,Home Care,P03,Wellbeing,RV CARE LTD,10/07/2015,372
Bath & North East Somerset Council,80483969,LM8,Home Care,P03,Wellbeing,RV CARE LTD,10/07/2015,396.76
Bath & North East Somerset Council,80483969,LM8,Home Care,P03,Wellbeing,RV CARE LTD,10/07/2015,396.76
Bath & North East Somerset Council,10782150,LJ4,Contracts,P01,Transport,KEYNSHAM CARS,10/07/2015,672
Bath & North East Somerset Council,10782051,EA1,Training,P03,Wellbeing,SENSE,10/07/2015,675
Bath & North East Somerset Council,10782054,HA2,Servicing,P06,Sustainable Development,ASHTON AIR CONDITIONING SERVICES LIMITED,10/07/2015,678
Bath & North East Somerset Council,10781527,HK1,Highway Maintenance,P01,Transport,SAKNEL HIGHWAYS STRUCTURES CONTRACTOR,10/07/2015,680.08
Bath & North East Somerset Council,80484024,LM8,Home Care,P03,Wellbeing,SAFE & SOUND HOMECARE SERVICES,10/07/2015,70.08
Bath & North East Somerset Council,80484024,LM8,Home Care,P03,Wellbeing,SAFE & SOUND HOMECARE SERVICES,10/07/2015,221
Bath & North East Somerset Council,80484024,LM8,Home Care,P03,Wellbeing,SAFE & SOUND HOMECARE SERVICES,10/07/2015,221
Bath & North East Somerset Council,80484024,LM8,Home Care,P03,Wellbeing,SAFE & SOUND HOMECARE SERVICES,10/07/2015,221
Bath & North East Somerset Council,80484024,LM8,Home Care,P03,Wellbeing,SAFE & SOUND HOMECARE SERVICES,10/07/2015,221
Bath & North East Somerset Council,80484024,LM8,Home Care,P03,Wellbeing,SAFE & SOUND HOMECARE SERVICES,10/07/2015,420
Bath & North East Somerset Council,80484024,LM8,Home Care,P03,Wellbeing,SAFE & SOUND HOMECARE SERVICES,10/07/2015,420
Bath & North East Somerset Council,80484024,LM8,Home Care,P03,Wellbeing,SAFE & SOUND HOMECARE SERVICES,10/07/2015,420
Bath & North East Somerset Council,80484024,LM8,Home Care,P03,Wellbeing,SAFE & SOUND HOMECARE SERVICES,10/07/2015,420
Bath & North East Somerset Council,80483811,LA7,Purchases for Resale,P06,Sustainable Development,JONES THE THIMBLE LTD,10/07/2015,699.63
Bath & North East Somerset Council,10782226,EA1,Training,P04,Leader,MARLBOROUGH TRAINING & CONSULTANCY LTD,10/07/2015,700
Bath & North East Somerset Council,10782323,HV2,Non Contract Cleaning,P06,Sustainable Development,VALIANT ENGINEERING SERVICES LTD,10/07/2015,705
Bath & North East Somerset Council,80483801,LA7,Purchases for Resale,P06,Sustainable Development,ANCESTORS OF DOVER LTD,10/07/2015,708
Bath & North East Somerset Council,10782231,LP5,Software Support,P04,Leader,METRIC GROUP LIMITED,10/07/2015,729
Bath & North East Somerset Council,80483826,LA7,Purchases for Resale,P06,Sustainable Development,RB CERAMICS LTD,10/07/2015,740
Bath & North East Somerset Council,80483963,LL3,Supported Living,P03,Wellbeing,SELBORNE CARE LTD,10/07/2015,0.02
Bath & North East Somerset Council,80483963,LL3,Supported Living,P03,Wellbeing,SELBORNE CARE LTD,10/07/2015,17.25
Bath & North East Somerset Council,80483963,LL3,Supported Living,P03,Wellbeing,SELBORNE CARE LTD,10/07/2015,17.25
Bath & North East Somerset Council,80483963,LL3,Supported Living,P03,Wellbeing,SELBORNE CARE LTD,10/07/2015,17.25
Bath & North East Somerset Council,80483963,LL3,Supported Living,P03,Wellbeing,SELBORNE CARE LTD,10/07/2015,17.25
Bath & North East Somerset Council,80483963,LL3,Supported Living,P03,Wellbeing,SELBORNE CARE LTD,10/07/2015,171.92
Bath & North East Somerset Council,80483963,LL3,Supported Living,P03,Wellbeing,SELBORNE CARE LTD,10/07/2015,171.92
Bath & North East Somerset Council,80483963,LL3,Supported Living,P03,Wellbeing,SELBORNE CARE LTD,10/07/2015,171.92
Bath & North East Somerset Council,80483963,LL3,Supported Living,P03,Wellbeing,SELBORNE CARE LTD,10/07/2015,171.92
Bath & North East Somerset Council,80483964,LL3,Supported Living,P03,Wellbeing,SELBORNE CARE LTD,10/07/2015,215.6
Bath & North East Somerset Council,80483964,LL3,Supported Living,P03,Wellbeing,SELBORNE CARE LTD,10/07/2015,215.6
Bath & North East Somerset Council,80483964,LL3,Supported Living,P03,Wellbeing,SELBORNE CARE LTD,10/07/2015,215.6
Bath & North East Somerset Council,80484007,LM8,Home Care,P03,Wellbeing,SELBORNE CARE LTD,10/07/2015,772.5
Bath & North East Somerset Council,80484007,LM8,Home Care,P03,Wellbeing,SELBORNE CARE LTD,10/07/2015,772.5
Bath & North East Somerset Council,80483882,LK1,Fees,P02,"Early Years, Children & Youth",MONKTON COMBE PRE-PREPATORY SCHOOL,10/07/2015,768
Bath & North East Somerset Council,10782283,LK1,Fees,P05,Neighbourhoods,SOMERSET COUNTY COUNCIL,10/07/2015,300
Bath & North East Somerset Council,10782283,LA5,Materials,P05,Neighbourhoods,SOMERSET COUNTY COUNCIL,10/07/2015,2700
Bath & North East Somerset Council,10782283,LA5,Materials,P05,Neighbourhoods,SOMERSET COUNTY COUNCIL,10/07/2015,11000
Bath & North East Somerset Council,80483989,LM8,Home Care,P03,Wellbeing,STAR HOME CARE SERVICES LIMITED,10/07/2015,524.03
Bath & North East Somerset Council,10782319,LJ3,Other Services to the Council,P07,Community Resources,STEPHENS SCOWN LLP,10/07/2015,1193
Bath & North East Somerset Council,10781527,HK1,Highway Maintenance,P01,Transport,SAKNEL HIGHWAYS STRUCTURES CONTRACTOR,10/07/2015,855
Bath & North East Somerset Council,10781540,3F7,External Fees,P02,"Early Years, Children & Youth",BBA ARCHITECTS,10/07/2015,897.5
Bath & North East Somerset Council,10780951,LJ2,Legal Fees,P05,Neighbourhoods,BEVAN BRITTAN,10/07/2015,913
Bath & North East Somerset Council,10782172,LJ4,Contracts,P01,Transport,RIVERSIDE TAXIS,10/07/2015,924
Bath & North East Somerset Council,80483925,LL3,Supported Living,P03,Wellbeing,SUPPORTED INDEPENDENCE,10/07/2015,0.01
Bath & North East Somerset Council,80483925,LL3,Supported Living,P03,Wellbeing,SUPPORTED INDEPENDENCE,10/07/2015,0.03
Bath & North East Somerset Council,80483924,LL3,Supported Living,P03,Wellbeing,SUPPORTED INDEPENDENCE,10/07/2015,6.84
Bath & North East Somerset Council,80483924,LL3,Supported Living,P03,Wellbeing,SUPPORTED INDEPENDENCE,10/07/2015,169.83
Bath & North East Somerset Council,80483924,LL3,Supported Living,P03,Wellbeing,SUPPORTED INDEPENDENCE,10/07/2015,169.83
Bath & North East Somerset Council,80483924,LL3,Supported Living,P03,Wellbeing,SUPPORTED INDEPENDENCE,10/07/2015,169.83
Bath & North East Somerset Council,80483924,LL3,Supported Living,P03,Wellbeing,SUPPORTED INDEPENDENCE,10/07/2015,169.83
Bath & North East Somerset Council,80483925,LL3,Supported Living,P03,Wellbeing,SUPPORTED INDEPENDENCE,10/07/2015,359.75
Bath & North East Somerset Council,80483925,LL3,Supported Living,P03,Wellbeing,SUPPORTED INDEPENDENCE,10/07/2015,359.75
Bath & North East Somerset Council,80483925,LL3,Supported Living,P03,Wellbeing,SUPPORTED INDEPENDENCE,10/07/2015,359.75
Bath & North East Somerset Council,80483925,LL3,Supported Living,P03,Wellbeing,SUPPORTED INDEPENDENCE,10/07/2015,359.75
Bath & North East Somerset Council,80483927,LL3,Supported Living,P03,Wellbeing,SUPPORTED INDEPENDENCE,10/07/2015,468.6
Bath & North East Somerset Council,80483927,LL3,Supported Living,P03,Wellbeing,SUPPORTED INDEPENDENCE,10/07/2015,468.6
Bath & North East Somerset Council,80483927,LL3,Supported Living,P03,Wellbeing,SUPPORTED INDEPENDENCE,10/07/2015,468.6
Bath & North East Somerset Council,80483927,LL3,Supported Living,P03,Wellbeing,SUPPORTED INDEPENDENCE,10/07/2015,468.6
Bath & North East Somerset Council,80483922,LL3,Supported Living,P03,Wellbeing,SUPPORTED INDEPENDENCE,10/07/2015,469.41
Bath & North East Somerset Council,80483922,LL3,Supported Living,P03,Wellbeing,SUPPORTED INDEPENDENCE,10/07/2015,469.41
Bath & North East Somerset Council,80483922,LL3,Supported Living,P03,Wellbeing,SUPPORTED INDEPENDENCE,10/07/2015,469.41
Bath & North East Somerset Council,80483922,LL3,Supported Living,P03,Wellbeing,SUPPORTED INDEPENDENCE,10/07/2015,469.41
Bath & North East Somerset Council,80483926,LL3,Supported Living,P03,Wellbeing,SUPPORTED INDEPENDENCE,10/07/2015,563.9
Bath & North East Somerset Council,80483926,LL3,Supported Living,P03,Wellbeing,SUPPORTED INDEPENDENCE,10/07/2015,563.9
Bath & North East Somerset Council,80483926,LL3,Supported Living,P03,Wellbeing,SUPPORTED INDEPENDENCE,10/07/2015,563.9
Bath & North East Somerset Council,80483926,LL3,Supported Living,P03,Wellbeing,SUPPORTED INDEPENDENCE,10/07/2015,563.9
Bath & North East Somerset Council,10782172,DB1,Agency Staff,P01,Transport,RIVERSIDE TAXIS,10/07/2015,950
Bath & North East Somerset Council,10782073,HA1,Responsive Maintenance,P06,Sustainable Development,VALIANT ENGINEERING SERVICES LTD,10/07/2015,978
Bath & North East Somerset Council,80483883,LK1,Fees,P02,"Early Years, Children & Youth",MONKTON COMBE PRE-PREPATORY SCHOOL,10/07/2015,1000
Bath & North East Somerset Council,10782163,LJ4,Contracts,P01,Transport,T WESTLAKE ACCESS TRAVEL,10/07/2015,824
Bath & North East Somerset Council,10782160,LJ4,Contracts,P01,Transport,T WESTLAKE ACCESS TRAVEL,10/07/2015,1408
Bath & North East Somerset Council,10782162,LJ4,Contracts,P01,Transport,T WESTLAKE ACCESS TRAVEL,10/07/2015,2376
Bath & North East Somerset Council,10782307,LV2,Contributions to Organisations,P06,Sustainable Development,5 x 5 x 5 = CREATIVITY,10/07/2015,1000
Bath & North East Somerset Council,80483908,LL3,Supported Living,P03,Wellbeing,THE ALZHEIMER'S SOCIETY N.E.SO,10/07/2015,143.2
Bath & North East Somerset Council,80483908,LL3,Supported Living,P03,Wellbeing,THE ALZHEIMER'S SOCIETY N.E.SO,10/07/2015,143.2
Bath & North East Somerset Council,80483908,LL3,Supported Living,P03,Wellbeing,THE ALZHEIMER'S SOCIETY N.E.SO,10/07/2015,143.2
Bath & North East Somerset Council,80483908,LL3,Supported Living,P03,Wellbeing,THE ALZHEIMER'S SOCIETY N.E.SO,10/07/2015,143.2
Bath & North East Somerset Council,80483908,LL3,Supported Living,P03,Wellbeing,THE ALZHEIMER'S SOCIETY N.E.SO,10/07/2015,143.2
Bath & North East Somerset Council,80483916,LM9,Day Care,P03,Wellbeing,THE ALZHEIMER'S SOCIETY N.E.SO,10/07/2015,143.2
Bath & North East Somerset Council,80483916,LM9,Day Care,P03,Wellbeing,THE ALZHEIMER'S SOCIETY N.E.SO,10/07/2015,143.2
Bath & North East Somerset Council,80483916,LM9,Day Care,P03,Wellbeing,THE ALZHEIMER'S SOCIETY N.E.SO,10/07/2015,143.2
Bath & North East Somerset Council,80483916,LM9,Day Care,P03,Wellbeing,THE ALZHEIMER'S SOCIETY N.E.SO,10/07/2015,143.2
Bath & North East Somerset Council,80483916,LM9,Day Care,P03,Wellbeing,THE ALZHEIMER'S SOCIETY N.E.SO,10/07/2015,143.2
Bath & North East Somerset Council,80483898,LL3,Supported Living,P03,Wellbeing,THE ALZHEIMER'S SOCIETY N.E.SO,10/07/2015,177.6
Bath & North East Somerset Council,80483898,LL3,Supported Living,P03,Wellbeing,THE ALZHEIMER'S SOCIETY N.E.SO,10/07/2015,177.6
Bath & North East Somerset Council,80483898,LL3,Supported Living,P03,Wellbeing,THE ALZHEIMER'S SOCIETY N.E.SO,10/07/2015,177.6
Bath & North East Somerset Council,80483898,LL3,Supported Living,P03,Wellbeing,THE ALZHEIMER'S SOCIETY N.E.SO,10/07/2015,177.6
Bath & North East Somerset Council,10782165,LJ4,Contracts,P01,Transport,KEYNSHAM CARS,10/07/2015,1056
Bath & North East Somerset Council,80483920,LL3,Supported Living,P03,Wellbeing,THE BRANDON TRUST,10/07/2015,11.79
Bath & North East Somerset Council,80483881,LK1,Fees,P02,"Early Years, Children & Youth",MONKTON COMBE PRE-PREPATORY SCHOOL,10/07/2015,1100
Bath & North East Somerset Council,80483824,LA7,Purchases for Resale,P06,Sustainable Development,THE MASTER HERBALIST LIMITED,10/07/2015,1111
Bath & North East Somerset Council,10782143,LJ4,Contracts,P01,Transport,KEYNSHAM CARS,10/07/2015,1120
Bath & North East Somerset Council,80483920,LL3,Supported Living,P03,Wellbeing,THE BRANDON TRUST,10/07/2015,165.64
Bath & North East Somerset Council,80483920,LL3,Supported Living,P03,Wellbeing,THE BRANDON TRUST,10/07/2015,165.64
Bath & North East Somerset Council,80483920,LL3,Supported Living,P03,Wellbeing,THE BRANDON TRUST,10/07/2015,165.64
Bath & North East Somerset Council,80483920,LL3,Supported Living,P03,Wellbeing,THE BRANDON TRUST,10/07/2015,165.64
Bath & North East Somerset Council,80484028,LM9,Day Care,P03,Wellbeing,THE BRANDON TRUST,10/07/2015,246
Bath & North East Somerset Council,80484028,LM9,Day Care,P03,Wellbeing,THE BRANDON TRUST,10/07/2015,246
Bath & North East Somerset Council,80484028,LM9,Day Care,P03,Wellbeing,THE BRANDON TRUST,10/07/2015,246
Bath & North East Somerset Council,80484028,LM9,Day Care,P03,Wellbeing,THE BRANDON TRUST,10/07/2015,246
Bath & North East Somerset Council,80484028,LM9,Day Care,P03,Wellbeing,THE BRANDON TRUST,10/07/2015,246
Bath & North East Somerset Council,80483921,LL3,Supported Living,P03,Wellbeing,THE BRANDON TRUST,10/07/2015,838.8
Bath & North East Somerset Council,80483921,LL3,Supported Living,P03,Wellbeing,THE BRANDON TRUST,10/07/2015,838.8
Bath & North East Somerset Council,80483802,LA7,Purchases for Resale,P06,Sustainable Development,ASHLEIGH & BURWOOD LTD,10/07/2015,1170
Bath & North East Somerset Council,10782321,HV2,Non Contract Cleaning,P06,Sustainable Development,VALIANT ENGINEERING SERVICES LTD,10/07/2015,1205
Bath & North East Somerset Council,10782170,LK6,Photography/Artworks/Graphics,P06,Sustainable Development,SARAH-JANE HUNTER,10/07/2015,1250
Bath & North East Somerset Council,80483815,LA7,Purchases for Resale,P06,Sustainable Development,AHMAD TEA LIMITED,10/07/2015,1284.72
Bath & North East Somerset Council,10781538,3F7,External Fees,P06,Sustainable Development,BBA ARCHITECTS,10/07/2015,1300
Bath & North East Somerset Council,80483809,LA7,Purchases for Resale,P06,Sustainable Development,THE HISTORY PRESS LTD,10/07/2015,1308.76
Bath & North East Somerset Council,80483820,LA7,Purchases for Resale,P06,Sustainable Development,FIKKERTS LTD,10/07/2015,1320
Bath & North East Somerset Council,80483807,LA7,Purchases for Resale,P06,Sustainable Development,FIKKERTS LTD,10/07/2015,1323
Bath & North East Somerset Council,10781680,DB1,Agency Staff,P01,Transport,WESSEX RECRUITMENT LTD,10/07/2015,1400
Bath & North East Somerset Council,80483873,LK1,Fees,P02,"Early Years, Children & Youth",LITTLE WILLOW DAY NURSERY,10/07/2015,1440
Bath & North East Somerset Council,10782321,HV2,Non Contract Cleaning,P06,Sustainable Development,VALIANT ENGINEERING SERVICES LTD,10/07/2015,1482
Bath & North East Somerset Council,80483829,LA7,Purchases for Resale,P06,Sustainable Development,WESTAIR REPRODUCTIONS LIMITED,10/07/2015,1485.6
Bath & North East Somerset Council,10782216,LJ2,Legal Fees,P05,Neighbourhoods,BEVAN BRITTAN,10/07/2015,1500
Bath & North East Somerset Council,10782124,HA3,Planned Maintenance,P06,Sustainable Development,ASHTON AIR CONDITIONING SERVICES LIMITED,10/07/2015,1660
Bath & North East Somerset Council,10782099,LJ4,Contracts,P01,Transport,MR C A HIGGS T/A LIBRA TRAVEL,10/07/2015,1760
Bath & North East Somerset Council,10781750,LJ4,Contracts,P01,Transport,V CARS,10/07/2015,224
Bath & North East Somerset Council,10781750,LJ4,Contracts,P01,Transport,V CARS,10/07/2015,681
Bath & North East Somerset Council,10781750,LJ4,Contracts,P01,Transport,V CARS,10/07/2015,1184
Bath & North East Somerset Council,10781928,HK1,Highway Maintenance,P01,Transport,M JENNINGS,10/07/2015,2010
Bath & North East Somerset Council,10782098,HA1,Responsive Maintenance,P06,Sustainable Development,AVON ALARMS LIMITED,10/07/2015,2203
Bath & North East Somerset Council,10782146,LJ4,Contracts,P01,Transport,KEYNSHAM CARS,10/07/2015,2264
Bath & North East Somerset Council,10782172,LJ4,Contracts,P01,Transport,RIVERSIDE TAXIS,10/07/2015,2269
Bath & North East Somerset Council,80483828,LA7,Purchases for Resale,P06,Sustainable Development,UNEX DESIGNS LTD,10/07/2015,2337.87
Bath & North East Somerset Council,10782101,LJ4,Contracts,P01,Transport,A TAXIS,10/07/2015,2391
Bath & North East Somerset Council,10781962,KB1,Hire of Vehicles,P05,Neighbourhoods,SFS LIMITED T/A CTS,10/07/2015,2420
Bath & North East Somerset Council,10782114,LJ4,Contracts,P01,Transport,BUGLERS COACHES LIMITED,10/07/2015,2640
Bath & North East Somerset Council,10782093,LJ4,Contracts,P01,Transport,MR C A HIGGS T/A LIBRA TRAVEL,10/07/2015,2730
Bath & North East Somerset Council,10782097,LJ4,Contracts,P01,Transport,MR C A HIGGS T/A LIBRA TRAVEL,10/07/2015,2831.4
Bath & North East Somerset Council,10782083,LJ4,Contracts,P01,Transport,MR C A HIGGS T/A LIBRA TRAVEL,10/07/2015,2898
Bath & North East Somerset Council,10782089,LJ4,Contracts,P01,Transport,MR C A HIGGS T/A LIBRA TRAVEL,10/07/2015,2926
Bath & North East Somerset Council,10782073,HA1,Responsive Maintenance,P06,Sustainable Development,VALIANT ENGINEERING SERVICES LTD,10/07/2015,2945
Bath & North East Somerset Council,10782095,LJ4,Contracts,P01,Transport,MR C A HIGGS T/A LIBRA TRAVEL,10/07/2015,3058
Bath & North East Somerset Council,10782090,LJ4,Contracts,P01,Transport,MR C A HIGGS T/A LIBRA TRAVEL,10/07/2015,3213
Bath & North East Somerset Council,10782111,LJ4,Contracts,P01,Transport,BUGLERS COACHES LIMITED,10/07/2015,3300
Bath & North East Somerset Council,10781605,LJ1,Consultants Fees,P02,"Early Years, Children & Youth",SIRONA CARE SERVICES LTD,10/07/2015,3500
Bath & North East Somerset Council,10781985,LM1,Volunt Homes Placements Top/Up,P02,"Early Years, Children & Youth",PREMIER CARE MANAGEMENT LTD,10/07/2015,3712
Bath & North East Somerset Council,10782106,LJ4,Contracts,P01,Transport,BUGLERS COACHES LIMITED,10/07/2015,3780
Bath & North East Somerset Council,10782084,LJ4,Contracts,P01,Transport,MR C A HIGGS T/A LIBRA TRAVEL,10/07/2015,3780
Bath & North East Somerset Council,10781928,HK1,Highway Maintenance,P01,Transport,M JENNINGS,10/07/2015,3990
Bath & North East Somerset Council,10782247,LK1,Fees,P05,Neighbourhoods,AQUATERRA LEISURE LIMITED,10/07/2015,4000
Bath & North East Somerset Council,10782237,LP1,Hardware Purchase,P04,Leader,OGIER ELECTRONICS LTD,10/07/2015,4390
Bath & North East Somerset Council,10781839,LX1,Educational Activity,P04,Leader,GBS RE DBS POA,10/07/2015,4562
Bath & North East Somerset Council,10782159,LJ4,Contracts,P01,Transport,PEASEDOWN TAXIS LTD,10/07/2015,4859.36
Bath & North East Somerset Council,10782138,LJ4,Contracts,P01,Transport,ARLEEN COACH & HIRE SERVICES L,10/07/2015,5522
Bath & North East Somerset Council,10782384,HK2,Street Lighting Maintenance,P01,Transport,SOUTHERN ELECTRIC CONTRACTING LTD,10/07/2015,5582.66
Bath & North East Somerset Council,10781490,3C4,Building Works,P07,Community Resources,MANNINGS FACILITIES MANAGEMENT LTD,10/07/2015,8243.43
Bath & North East Somerset Council,10782212,LJ1,Consultants Fees,P04,Leader,I.P.L. INFORMATION PROCESSING LIMITED,10/07/2015,9380
Bath & North East Somerset Council,10781312,LJ4,Contracts,P03,Wellbeing,AVON & WILTS MENTAL HEALTH PARTNERSHIP,10/07/2015,12500
Bath & North East Somerset Council,10782172,LJ4,Contracts,P01,Transport,RIVERSIDE TAXIS,10/07/2015,12730
Bath & North East Somerset Council,10782292,3C4,Building Works,P05,Neighbourhoods,CANVAS SPACES LIMITED,10/07/2015,15000
Bath & North East Somerset Council,10781982,LM1,Volunt Homes Placements Top/Up,P02,"Early Years, Children & Youth",PREMIER CARE MANAGEMENT LTD,10/07/2015,19721
Bath & North East Somerset Council,80483857,PB3,Payments to Other Establishments,P02,"Early Years, Children & Youth",FOSSE WAY SCHOOL,10/07/2015,20000
Bath & North East Somerset Council,10781987,LM1,Volunt Homes Placements Top/Up,P02,"Early Years, Children & Youth",PREMIER CARE MANAGEMENT LTD,10/07/2015,23008
Bath & North East Somerset Council,10782292,3C4,Building Works,P05,Neighbourhoods,CANVAS SPACES LIMITED,10/07/2015,28312.8
Bath & North East Somerset Council,10782304,3F7,External Fees,P07,Community Resources,H MEALING & SONS LTD,10/07/2015,40448
Bath & North East Somerset Council,10782211,DB1,Agency Staff,P07,Community Resources,COMENSURA LTD,10/07/2015,76392.39
Bath & North East Somerset Council,10782303,3C4,Building Works,P02,"Early Years, Children & Youth",H MEALING & SONS LTD,10/07/2015,99434.64
Bath & North East Somerset Council,10782275,3F7,External Fees,P01,Transport,NORTH MIDLAND CONSTRUCTION PLC,10/07/2015,114407.63
Bath & North East Somerset Council,10782305,3F7,External Fees,P02,"Early Years, Children & Youth",H MEALING & SONS LTD,10/07/2015,194281.37
Bath & North East Somerset Council,10781140,LK1,Fees,P07,Community Resources,NORTH SOMERSET COUNCIL,10/07/2015,238098
Bath & North East Somerset Council,10782934,LH2,Advertising,P05,Neighbourhoods,LOCAL WORLD LTD,12/07/2015,598.4
Bath & North East Somerset Council,80484757,LM3,Residential Care,P03,Wellbeing,6 THE AVENUE -KEYNSHAM MENCAP,13/07/2015,5.78
Bath & North East Somerset Council,80484757,LM3,Residential Care,P03,Wellbeing,6 THE AVENUE -KEYNSHAM MENCAP,13/07/2015,5.78
Bath & North East Somerset Council,80484757,LM3,Residential Care,P03,Wellbeing,6 THE AVENUE -KEYNSHAM MENCAP,13/07/2015,5.78
Bath & North East Somerset Council,80484757,LM3,Residential Care,P03,Wellbeing,6 THE AVENUE -KEYNSHAM MENCAP,13/07/2015,5.78
Bath & North East Somerset Council,80484757,LM3,Residential Care,P03,Wellbeing,6 THE AVENUE -KEYNSHAM MENCAP,13/07/2015,5.78
Bath & North East Somerset Council,80484757,LM3,Residential Care,P03,Wellbeing,6 THE AVENUE -KEYNSHAM MENCAP,13/07/2015,5.78
Bath & North East Somerset Council,80484757,LM3,Residential Care,P03,Wellbeing,6 THE AVENUE -KEYNSHAM MENCAP,13/07/2015,5.78
Bath & North East Somerset Council,80484757,LM3,Residential Care,P03,Wellbeing,6 THE AVENUE -KEYNSHAM MENCAP,13/07/2015,5.78
Bath & North East Somerset Council,80484757,LM3,Residential Care,P03,Wellbeing,6 THE AVENUE -KEYNSHAM MENCAP,13/07/2015,5.78
Bath & North East Somerset Council,80484757,LM3,Residential Care,P03,Wellbeing,6 THE AVENUE -KEYNSHAM MENCAP,13/07/2015,5.78
Bath & North East Somerset Council,80484757,LM3,Residential Care,P03,Wellbeing,6 THE AVENUE -KEYNSHAM MENCAP,13/07/2015,5.78
Bath & North East Somerset Council,80484757,LM3,Residential Care,P03,Wellbeing,6 THE AVENUE -KEYNSHAM MENCAP,13/07/2015,5.78
Bath & North East Somerset Council,80484757,LM3,Residential Care,P03,Wellbeing,6 THE AVENUE -KEYNSHAM MENCAP,13/07/2015,5.78
Bath & North East Somerset Council,80484757,LM3,Residential Care,P03,Wellbeing,6 THE AVENUE -KEYNSHAM MENCAP,13/07/2015,5.78
Bath & North East Somerset Council,80484757,LM3,Residential Care,P03,Wellbeing,6 THE AVENUE -KEYNSHAM MENCAP,13/07/2015,5.78
Bath & North East Somerset Council,80484757,LM3,Residential Care,P03,Wellbeing,6 THE AVENUE -KEYNSHAM MENCAP,13/07/2015,5.78
Bath & North East Somerset Council,80484757,LM3,Residential Care,P03,Wellbeing,6 THE AVENUE -KEYNSHAM MENCAP,13/07/2015,5.78
Bath & North East Somerset Council,80484757,LM3,Residential Care,P03,Wellbeing,6 THE AVENUE -KEYNSHAM MENCAP,13/07/2015,5.78
Bath & North East Somerset Council,80484757,LM3,Residential Care,P03,Wellbeing,6 THE AVENUE -KEYNSHAM MENCAP,13/07/2015,5.78
Bath & North East Somerset Council,80484757,LM3,Residential Care,P03,Wellbeing,6 THE AVENUE -KEYNSHAM MENCAP,13/07/2015,5.78
Bath & North East Somerset Council,80484757,LM3,Residential Care,P03,Wellbeing,6 THE AVENUE -KEYNSHAM MENCAP,13/07/2015,5.78
Bath & North East Somerset Council,80484757,LM3,Residential Care,P03,Wellbeing,6 THE AVENUE -KEYNSHAM MENCAP,13/07/2015,5.78
Bath & North East Somerset Council,80484757,LM3,Residential Care,P03,Wellbeing,6 THE AVENUE -KEYNSHAM MENCAP,13/07/2015,5.78
Bath & North East Somerset Council,80484757,LM3,Residential Care,P03,Wellbeing,6 THE AVENUE -KEYNSHAM MENCAP,13/07/2015,5.78
Bath & North East Somerset Council,80484757,LM3,Residential Care,P03,Wellbeing,6 THE AVENUE -KEYNSHAM MENCAP,13/07/2015,5.78
Bath & North East Somerset Council,80484757,LM3,Residential Care,P03,Wellbeing,6 THE AVENUE -KEYNSHAM MENCAP,13/07/2015,5.78
Bath & North East Somerset Council,80484757,LM3,Residential Care,P03,Wellbeing,6 THE AVENUE -KEYNSHAM MENCAP,13/07/2015,5.78
Bath & North East Somerset Council,80484757,LM3,Residential Care,P03,Wellbeing,6 THE AVENUE -KEYNSHAM MENCAP,13/07/2015,5.78
Bath & North East Somerset Council,80484757,LM3,Residential Care,P03,Wellbeing,6 THE AVENUE -KEYNSHAM MENCAP,13/07/2015,5.78
Bath & North East Somerset Council,80484757,LM3,Residential Care,P03,Wellbeing,6 THE AVENUE -KEYNSHAM MENCAP,13/07/2015,5.78
Bath & North East Somerset Council,80484757,LM3,Residential Care,P03,Wellbeing,6 THE AVENUE -KEYNSHAM MENCAP,13/07/2015,5.78
Bath & North East Somerset Council,80484757,LM3,Residential Care,P03,Wellbeing,6 THE AVENUE -KEYNSHAM MENCAP,13/07/2015,5.78
Bath & North East Somerset Council,80484757,LM3,Residential Care,P03,Wellbeing,6 THE AVENUE -KEYNSHAM MENCAP,13/07/2015,5.78
Bath & North East Somerset Council,80484757,LM3,Residential Care,P03,Wellbeing,6 THE AVENUE -KEYNSHAM MENCAP,13/07/2015,5.78
Bath & North East Somerset Council,80484757,LM3,Residential Care,P03,Wellbeing,6 THE AVENUE -KEYNSHAM MENCAP,13/07/2015,5.78
Bath & North East Somerset Council,80484757,LM3,Residential Care,P03,Wellbeing,6 THE AVENUE -KEYNSHAM MENCAP,13/07/2015,5.78
Bath & North East Somerset Council,80484757,LM3,Residential Care,P03,Wellbeing,6 THE AVENUE -KEYNSHAM MENCAP,13/07/2015,5.78
Bath & North East Somerset Council,80484757,LM3,Residential Care,P03,Wellbeing,6 THE AVENUE -KEYNSHAM MENCAP,13/07/2015,5.78
Bath & North East Somerset Council,80484757,LM3,Residential Care,P03,Wellbeing,6 THE AVENUE -KEYNSHAM MENCAP,13/07/2015,5.78
Bath & North East Somerset Council,80484757,LM3,Residential Care,P03,Wellbeing,6 THE AVENUE -KEYNSHAM MENCAP,13/07/2015,6.69
Bath & North East Somerset Council,80484757,LM3,Residential Care,P03,Wellbeing,6 THE AVENUE -KEYNSHAM MENCAP,13/07/2015,6.69
Bath & North East Somerset Council,80484757,LM3,Residential Care,P03,Wellbeing,6 THE AVENUE -KEYNSHAM MENCAP,13/07/2015,6.69
Bath & North East Somerset Council,80484757,LM3,Residential Care,P03,Wellbeing,6 THE AVENUE -KEYNSHAM MENCAP,13/07/2015,6.69
Bath & North East Somerset Council,80484757,LM3,Residential Care,P03,Wellbeing,6 THE AVENUE -KEYNSHAM MENCAP,13/07/2015,6.69
Bath & North East Somerset Council,80484757,LM3,Residential Care,P03,Wellbeing,6 THE AVENUE -KEYNSHAM MENCAP,13/07/2015,6.69
Bath & North East Somerset Council,80484757,LM3,Residential Care,P03,Wellbeing,6 THE AVENUE -KEYNSHAM MENCAP,13/07/2015,6.69
Bath & North East Somerset Council,80484757,LM3,Residential Care,P03,Wellbeing,6 THE AVENUE -KEYNSHAM MENCAP,13/07/2015,6.69
Bath & North East Somerset Council,80484757,LM3,Residential Care,P03,Wellbeing,6 THE AVENUE -KEYNSHAM MENCAP,13/07/2015,6.69
Bath & North East Somerset Council,80484757,LM3,Residential Care,P03,Wellbeing,6 THE AVENUE -KEYNSHAM MENCAP,13/07/2015,6.69
Bath & North East Somerset Council,80484757,LM3,Residential Care,P03,Wellbeing,6 THE AVENUE -KEYNSHAM MENCAP,13/07/2015,6.69
Bath & North East Somerset Council,80484757,LM3,Residential Care,P03,Wellbeing,6 THE AVENUE -KEYNSHAM MENCAP,13/07/2015,6.69
Bath & North East Somerset Council,80484757,LM3,Residential Care,P03,Wellbeing,6 THE AVENUE -KEYNSHAM MENCAP,13/07/2015,6.69
Bath & North East Somerset Council,80484757,LM3,Residential Care,P03,Wellbeing,6 THE AVENUE -KEYNSHAM MENCAP,13/07/2015,9.72
Bath & North East Somerset Council,80484757,LM3,Residential Care,P03,Wellbeing,6 THE AVENUE -KEYNSHAM MENCAP,13/07/2015,9.72
Bath & North East Somerset Council,80484757,LM3,Residential Care,P03,Wellbeing,6 THE AVENUE -KEYNSHAM MENCAP,13/07/2015,9.72
Bath & North East Somerset Council,80484757,LM3,Residential Care,P03,Wellbeing,6 THE AVENUE -KEYNSHAM MENCAP,13/07/2015,9.72
Bath & North East Somerset Council,80484757,LM3,Residential Care,P03,Wellbeing,6 THE AVENUE -KEYNSHAM MENCAP,13/07/2015,9.72
Bath & North East Somerset Council,80484757,LM3,Residential Care,P03,Wellbeing,6 THE AVENUE -KEYNSHAM MENCAP,13/07/2015,9.72
Bath & North East Somerset Council,80484757,LM3,Residential Care,P03,Wellbeing,6 THE AVENUE -KEYNSHAM MENCAP,13/07/2015,9.72
Bath & North East Somerset Council,80484757,LM3,Residential Care,P03,Wellbeing,6 THE AVENUE -KEYNSHAM MENCAP,13/07/2015,9.72
Bath & North East Somerset Council,80484757,LM3,Residential Care,P03,Wellbeing,6 THE AVENUE -KEYNSHAM MENCAP,13/07/2015,9.72
Bath & North East Somerset Council,80484757,LM3,Residential Care,P03,Wellbeing,6 THE AVENUE -KEYNSHAM MENCAP,13/07/2015,9.72
Bath & North East Somerset Council,80484757,LM3,Residential Care,P03,Wellbeing,6 THE AVENUE -KEYNSHAM MENCAP,13/07/2015,9.72
Bath & North East Somerset Council,80484757,LM3,Residential Care,P03,Wellbeing,6 THE AVENUE -KEYNSHAM MENCAP,13/07/2015,9.72
Bath & North East Somerset Council,80484757,LM3,Residential Care,P03,Wellbeing,6 THE AVENUE -KEYNSHAM MENCAP,13/07/2015,9.72
Bath & North East Somerset Council,80484757,LM3,Residential Care,P03,Wellbeing,6 THE AVENUE -KEYNSHAM MENCAP,13/07/2015,11.96
Bath & North East Somerset Council,80484757,LM3,Residential Care,P03,Wellbeing,6 THE AVENUE -KEYNSHAM MENCAP,13/07/2015,11.96
Bath & North East Somerset Council,80484757,LM3,Residential Care,P03,Wellbeing,6 THE AVENUE -KEYNSHAM MENCAP,13/07/2015,11.96
Bath & North East Somerset Council,80484757,LM3,Residential Care,P03,Wellbeing,6 THE AVENUE -KEYNSHAM MENCAP,13/07/2015,11.96
Bath & North East Somerset Council,80484757,LM3,Residential Care,P03,Wellbeing,6 THE AVENUE -KEYNSHAM MENCAP,13/07/2015,11.96
Bath & North East Somerset Council,80484757,LM3,Residential Care,P03,Wellbeing,6 THE AVENUE -KEYNSHAM MENCAP,13/07/2015,11.96
Bath & North East Somerset Council,80484757,LM3,Residential Care,P03,Wellbeing,6 THE AVENUE -KEYNSHAM MENCAP,13/07/2015,11.96
Bath & North East Somerset Council,80484757,LM3,Residential Care,P03,Wellbeing,6 THE AVENUE -KEYNSHAM MENCAP,13/07/2015,11.96
Bath & North East Somerset Council,80484757,LM3,Residential Care,P03,Wellbeing,6 THE AVENUE -KEYNSHAM MENCAP,13/07/2015,11.96
Bath & North East Somerset Council,80484757,LM3,Residential Care,P03,Wellbeing,6 THE AVENUE -KEYNSHAM MENCAP,13/07/2015,11.96
Bath & North East Somerset Council,80484757,LM3,Residential Care,P03,Wellbeing,6 THE AVENUE -KEYNSHAM MENCAP,13/07/2015,11.96
Bath & North East Somerset Council,80484757,LM3,Residential Care,P03,Wellbeing,6 THE AVENUE -KEYNSHAM MENCAP,13/07/2015,11.96
Bath & North East Somerset Council,80484757,LM3,Residential Care,P03,Wellbeing,6 THE AVENUE -KEYNSHAM MENCAP,13/07/2015,11.96
Bath & North East Somerset Council,80484757,LM3,Residential Care,P03,Wellbeing,6 THE AVENUE -KEYNSHAM MENCAP,13/07/2015,577.87
Bath & North East Somerset Council,80484757,LM3,Residential Care,P03,Wellbeing,6 THE AVENUE -KEYNSHAM MENCAP,13/07/2015,577.87
Bath & North East Somerset Council,80484757,LM3,Residential Care,P03,Wellbeing,6 THE AVENUE -KEYNSHAM MENCAP,13/07/2015,583.65
Bath & North East Somerset Council,80484757,LM3,Residential Care,P03,Wellbeing,6 THE AVENUE -KEYNSHAM MENCAP,13/07/2015,583.65
Bath & North East Somerset Council,80484757,LM3,Residential Care,P03,Wellbeing,6 THE AVENUE -KEYNSHAM MENCAP,13/07/2015,583.65
Bath & North East Somerset Council,80484757,LM3,Residential Care,P03,Wellbeing,6 THE AVENUE -KEYNSHAM MENCAP,13/07/2015,583.65
Bath & North East Somerset Council,80484757,LM3,Residential Care,P03,Wellbeing,6 THE AVENUE -KEYNSHAM MENCAP,13/07/2015,583.65
Bath & North East Somerset Council,80484757,LM3,Residential Care,P03,Wellbeing,6 THE AVENUE -KEYNSHAM MENCAP,13/07/2015,583.65
Bath & North East Somerset Council,80484757,LM3,Residential Care,P03,Wellbeing,6 THE AVENUE -KEYNSHAM MENCAP,13/07/2015,675.61
Bath & North East Somerset Council,80484757,LM3,Residential Care,P03,Wellbeing,6 THE AVENUE -KEYNSHAM MENCAP,13/07/2015,675.61
Bath & North East Somerset Council,80484757,LM3,Residential Care,P03,Wellbeing,6 THE AVENUE -KEYNSHAM MENCAP,13/07/2015,981.65
Bath & North East Somerset Council,80484757,LM3,Residential Care,P03,Wellbeing,6 THE AVENUE -KEYNSHAM MENCAP,13/07/2015,981.65
Bath & North East Somerset Council,80484757,LM3,Residential Care,P03,Wellbeing,6 THE AVENUE -KEYNSHAM MENCAP,13/07/2015,1208.13
Bath & North East Somerset Council,80484757,LM3,Residential Care,P03,Wellbeing,6 THE AVENUE -KEYNSHAM MENCAP,13/07/2015,1208.13
Bath & North East Somerset Council,80484687,LM6,Nursing Care,P03,Wellbeing,ADIEMUS CARE LTD - T/A WICKWAR,13/07/2015,6
Bath & North East Somerset Council,80484687,LM6,Nursing Care,P03,Wellbeing,ADIEMUS CARE LTD - T/A WICKWAR,13/07/2015,6
Bath & North East Somerset Council,80484687,LM6,Nursing Care,P03,Wellbeing,ADIEMUS CARE LTD - T/A WICKWAR,13/07/2015,6
Bath & North East Somerset Council,80484687,LM6,Nursing Care,P03,Wellbeing,ADIEMUS CARE LTD - T/A WICKWAR,13/07/2015,6
Bath & North East Somerset Council,80484687,LM6,Nursing Care,P03,Wellbeing,ADIEMUS CARE LTD - T/A WICKWAR,13/07/2015,6
Bath & North East Somerset Council,80484687,LM6,Nursing Care,P03,Wellbeing,ADIEMUS CARE LTD - T/A WICKWAR,13/07/2015,6
Bath & North East Somerset Council,80484687,LM6,Nursing Care,P03,Wellbeing,ADIEMUS CARE LTD - T/A WICKWAR,13/07/2015,6
Bath & North East Somerset Council,80484687,LM6,Nursing Care,P03,Wellbeing,ADIEMUS CARE LTD - T/A WICKWAR,13/07/2015,6
Bath & North East Somerset Council,80484687,LM6,Nursing Care,P03,Wellbeing,ADIEMUS CARE LTD - T/A WICKWAR,13/07/2015,6
Bath & North East Somerset Council,80484687,LM6,Nursing Care,P03,Wellbeing,ADIEMUS CARE LTD - T/A WICKWAR,13/07/2015,6
Bath & North East Somerset Council,80484687,LM6,Nursing Care,P03,Wellbeing,ADIEMUS CARE LTD - T/A WICKWAR,13/07/2015,6
Bath & North East Somerset Council,80484687,LM6,Nursing Care,P03,Wellbeing,ADIEMUS CARE LTD - T/A WICKWAR,13/07/2015,6
Bath & North East Somerset Council,80484687,LM6,Nursing Care,P03,Wellbeing,ADIEMUS CARE LTD - T/A WICKWAR,13/07/2015,6
Bath & North East Somerset Council,80484687,LM6,Nursing Care,P03,Wellbeing,ADIEMUS CARE LTD - T/A WICKWAR,13/07/2015,570
Bath & North East Somerset Council,80484687,LM6,Nursing Care,P03,Wellbeing,ADIEMUS CARE LTD - T/A WICKWAR,13/07/2015,570
Bath & North East Somerset Council,80484557,LL8,Individualised Budget,P03,Wellbeing,REDACTED,13/07/2015,1469.8
Bath & North East Somerset Council,80484557,LL8,Individualised Budget,P03,Wellbeing,REDACTED,13/07/2015,1469.8
Bath & North East Somerset Council,80484643,LM3,Residential Care,P03,Wellbeing,ALEXANDRA HOMES (BRISTOL) LTD,13/07/2015,18
